{"text_format":"1","workbook":"xlsx","n_sheets":50,"sheets":["modList00","Лог обновления","Форма 1.0.1 | Т-транс","Форма 3.2 | Т-транс","Форма 1.0.1 | Т-подкл(инд)","Форма 3.4 | Т-подкл(инд)","Форма 1.0.1 | Т-подкл","Форма 3.4 | Т-подкл","Форма 3.10","Форма 1.0.2","modListTempFilter","modCheckCyan","REESTR_LINK","REESTR_DS","modHTTP","modfrmRezimChoose","modSheetMain","REESTR_VT","REESTR_VED","modfrmReestrObj","AllSheetsInThisWorkbook","et_union_vert","modInstruction","modRegion","modReestr","modfrmReestr","modUpdTemplMain","REESTR_ORG","modClassifierValidate","modProv","modHyp","modServiceModule","modList01","modList02","modList03","et_union_hor","REESTR_MO_FILTER","REESTR_MO","TEHSHEET","modInfo","modList05","modList06","modList07","modList11","modList12","modfrmDateChoose","modComm","modThisWorkbook","modfrmReestrMR","modfrmCheckUpdates"],"not_rendered":{"charts":0,"images":3,"macros":1,"external_links":0,"defined_names":561,"comments":0,"pivot_tables":0},"unopened":[],"bounds":{"document_bytes":16777216,"sheet_cells":100000,"rows_first":2000,"rows_last":500,"rows_between":2000,"halvings":0,"cell_chars":16384,"cell_head_chars":4096},"cells_cut":0,"cells_raw":0,"read":"whole","date_system":"1900"}

{"sheet":"modList00","index":0,"n_rows":0,"n_cols":0,"rows_kept":0,"cut":false,"hidden":true,"merged":[]}

{"sheet":"Лог обновления","index":1,"n_rows":9,"n_cols":3,"rows_kept":9,"cut":false,"hidden":true,"merged":[]}
["Дата/Время","Сообщение","Статус"]
["2022-11-25T14:34:49","Проверка доступных обновлений...","Информация"]
["2022-11-25T14:34:50","Нет доступных обновлений для отчёта с кодом FAS.JKH.OPEN.INFO.PRICE.VO!","Информация"]
["2022-11-25T14:35:01","Проверка доступных обновлений...","Информация"]
["2022-11-25T14:35:02","Нет доступных обновлений для отчёта с кодом FAS.JKH.OPEN.INFO.PRICE.VO!","Информация"]
["2022-11-25T14:38:34","Проверка доступных обновлений...","Информация"]
["2022-11-25T14:38:36","Нет доступных обновлений для отчёта с кодом FAS.JKH.OPEN.INFO.PRICE.VO!","Информация"]
["2022-11-25T16:25:03","Проверка доступных обновлений...","Информация"]
["2022-11-25T16:25:05","Нет доступных обновлений для отчёта с кодом FAS.JKH.OPEN.INFO.PRICE.VO!","Информация"]

{"sheet":"Форма 1.0.1 | Т-транс","index":2,"n_rows":19,"n_cols":10,"rows_kept":19,"cut":false,"hidden":true,"merged":[[18,6,18,7],[1,5,1,7],[3,5,3,7],[3,8,4,8],[7,0,15,0],[11,2,13,2],[12,8,13,8],[10,1,14,1]]}
["2"]
[null,null,null,null,null,"Форма 1.0.1 Основные параметры раскрываемой информации 1"]
[]
[null,null,null,null,null,"Параметры формы",null,null,"Описание параметров формы"]
[null,null,null,null,null,"№ п/п","Наименование параметра","Информация"]
[null,null,null,null,null,"1",2,3,4,4]
[null,null,null,null,null,1,"Дата заполнения/внесения изменений",{"$f":"IF(dateCh=\"\",\"\",dateCh)","v":{"$error":"#REF!"}},"Указывается календарная дата первичного заполнения или внесения изменений в форму в виде «ДД.ММ.ГГГГ»."]
[1,null,null,null,null,{"$f":"\"2.\" &mergeValue(A8)","v":"2.1"},"Наименование централизованной системы коммунальной инфраструктуры",null,"Указывается наименование централизованной системы холодного водоснабжения/горячего водоснабжения/водоотведения/теплоснабжения, к которой относится размещаемая информация.\nВ случае наличия нескольких централизованных систем коммунальной инфраструктуры, информация по каждой из них указывается в отдельной строке."]
[null,null,null,null,null,{"$f":"\"3.\" &mergeValue(A9)","v":"3.1"},"Наименование регулируемого вида деятельности",null,"Указывается наименование вида регулируемой деятельности."]
[null,null,null,null,null,{"$f":"\"4.\"&mergeValue(A10)","v":"4.1"},"Территория оказания услуги по регулируемому виду деятельности","x"]
[null,1,null,null,null,{"$f":"\"4.\"&mergeValue(A11) &\".\"&mergeValue(B11)","v":"4.1.1"},"Субъект Российской Федерации",{"$f":"IF(region_name=\"\",\"\",region_name)","v":{"$error":"#REF!"}},"Указывается наименование субъекта Российской Федерации"]
[null,null,1,null,null,{"$f":"\"4.\"&mergeValue(A12) &\".\"&mergeValue(B12)&\".\"&mergeValue(C12)","v":"4.1.1.1"},"муниципальный район",null,"Указывается наименование муниципального района, на территории которого организация оказывает услуги по регулируемому виду деятельности."]
[null,null,null,1,null,{"$f":"\"4.\"&mergeValue(A13) &\".\"&mergeValue(B13)&\".\"&mergeValue(C13)&\".\"&mergeValue(D13)","v":"4.1.1.1.1"},"муниципальное образование",null,"Указывается наименование и код муниципального района, муниципального образования в соответствии с Общероссийским классификатором территорий муниципальных образований (далее - ОКТМО), входящего в муниципальный район, на территории которого организация оказывает услуги по регулируемому виду деятельности.\nВ случае оказания услуг по регулируемому виду деятельности на территории нескольких муниципальных районов (муниципальных образований) данные по каждому их них указываются в отдельной строке."]
[null,null,null,null,null,null,"Добавить МО"]
[null,null,null,null,null,null,"Добавить МР"]
[null,null,null,null,null,null,"Добавить территорию"]
[null,null,null,null,null,null,"Добавить ЦС"]
[]
[null,null,null,null,null,null,"  1 Информация размещается при раскрытии информации по каждой из форм."]

{"sheet":"Форма 3.2 | Т-транс","index":3,"n_rows":32,"n_cols":26,"rows_kept":32,"cut":false,"hidden":true,"merged":[[22,22,24,22],[4,11,4,20],[14,15,14,16],[15,18,15,19],[22,17,23,17],[22,20,23,20],[10,11,10,12],[6,14,6,21],[13,21,15,21],[12,22,15,22],[7,14,7,21],[8,14,8,21],[9,14,9,21],[16,18,16,19],[12,11,12,21],[11,14,11,20],[31,12,31,21],[21,9,24,9],[20,14,20,21],[19,14,19,21],[22,19,23,19],[21,14,21,21],[22,18,23,18],[13,11,15,11],[13,12,15,12],[18,14,18,21],[17,0,28,0],[18,1,27,1],[19,2,26,2],[20,3,25,3],[20,8,25,8],[22,13,23,13],[21,4,24,4],[17,14,17,21],[13,14,13,19],[14,17,14,19],[13,13,15,13],[13,20,15,20]]}
[]
[]
[]
[]
[null,null,null,null,null,null,null,null,null,null,null,"Форма 3.2 Информация о величинах тарифов на водоотведение, транспортировку воды1"]
[]
[null,null,null,null,null,null,null,null,null,null,null,null,{"$f":"\"Наименование органа регулирования, принявшего решение об \"&IF(NameOrPr_ch=\"\",\"утверждении\",\"изменении\") & \" тарифов\"","v":{"$error":"#REF!"}},null,{"$f":"IF(NameOrPr_ch=\"\",IF(NameOrPr=\"\",\"\",NameOrPr),NameOrPr_ch)","v":{"$error":"#REF!"}}]
[null,null,null,null,null,null,null,null,null,null,null,null,{"$f":"IF(datePr_ch=\"\",\"Дата документа об утверждении тарифов\",\"Дата принятия решения об изменении тарифов\")","v":{"$error":"#REF!"}},null,{"$f":"IF(datePr_ch=\"\",IF(datePr=\"\",\"\",datePr),datePr_ch)","v":{"$error":"#REF!"}}]
[null,null,null,null,null,null,null,null,null,null,null,null,{"$f":"IF(numberPr_ch=\"\",\"Номер документа об утверждении тарифов\",\"Номер принятия решения об изменении тарифов\")","v":{"$error":"#REF!"}},null,{"$f":"IF(numberPr_ch=\"\",IF(numberPr=\"\",\"\",numberPr),numberPr_ch)","v":{"$error":"#REF!"}}]
[null,null,null,null,null,null,null,null,null,null,null,null,"Источник официального опубликования решения",null,{"$f":"IF(IstPub_ch=\"\",IF(IstPub=\"\",\"\",IstPub),IstPub_ch)","v":{"$error":"#REF!"}}]
[null,null,null,null,null,null,null,null,null,null,null,null,null,null,null,null,null,null,null,null,"dp"]
[]
[null,null,null,null,null,null,null,null,null,null,null,"Параметры формы",null,null,null,null,null,null,null,null,null,null,"Описание параметров формы"]
[null,null,null,null,null,null,null,null,null,null,null,"№ п/п","Параметры дифференциации",null,"Период действия тарифа",null,null,null,null,null,"Наличие других периодов действия тарифа","Добавить период"]
[null,null,null,null,null,null,null,null,null,null,null,null,null,null,"Одноставочный тариф","Двухставочный тариф",null,"Период действия"]
[null,null,null,null,null,null,null,null,null,null,null,null,null,null,"Одноставочный тариф, руб./куб. м","ставка платы за объем принятых сточных вод, руб./куб. м","ставка платы за содержание мощности, руб./куб. м в час","дата начала","дата окончания"]
[null,null,null,null,null,null,null,null,null,null,1,"1","2",{"$f":"OFFSET(N17,0,-1)","v":"2"},{"$f":"OFFSET(O17,0,-1)+1","v":3},{"$f":"OFFSET(P17,0,-1)+1","v":4},{"$f":"OFFSET(Q17,0,-1)+1","v":5},{"$f":"OFFSET(R17,0,-1)+1","v":6},{"$f":"OFFSET(S17,0,-1)+1","v":7},null,{"$f":"OFFSET(U17,0,-2)+1","v":8},{"$f":"OFFSET(V17,0,-1)","v":8},{"$f":"OFFSET(W17,0,-1)+1","v":9}]
[1,null,null,null,null,null,null,null,null,null,null,{"$f":"mergeValue(A18)","v":1},"Наименование тарифа",null,null,null,null,null,null,null,null,null,"Указывается наименование тарифа в случае утверждения нескольких тарифов.\nВ случае наличия нескольких тарифов информация по ним указывается в отдельных строках."]
[null,1,null,null,null,null,null,null,null,null,null,{"$f":"mergeValue(A19) &\".\"& mergeValue(B19)","v":"1.1"},"Территория действия тарифа",null,null,null,null,null,null,null,null,null,"Указывается наименование территории действия тарифа при наличии дифференциации тарифа по территориальному признаку.\nВ случае дифференциации тарифов по территориальному признаку информация по ним указывается в отдельных строках."]
[null,null,1,null,null,null,null,null,null,null,null,{"$f":"mergeValue(A20) &\".\"& mergeValue(B20)&\".\"& mergeValue(C20)","v":"1.1.1"},"Наименование централизованной системы водоотведения",null,null,null,null,null,null,null,null,null,"Указывается наименование централизованной системы водоотведения при наличии дифференциации тарифа по централизованным системам водоотведения.\nВ случае дифференциации тарифов по централизованным системам водоотведения информация по ним указывается в отдельных строках."]
[null,null,null,1,null,null,null,null,null,null,null,{"$f":"mergeValue(A21) &\".\"& mergeValue(B21)&\".\"& mergeValue(C21)&\".\"& mergeValue(D21)","v":"1.1.1.1"},"Наименование признака дифференциации",null,null,null,null,null,null,null,null,null,"Указывается наименование дополнительного признака дифференциации (при наличии).\nДифференциация тарифа осуществляется в соответствии с законодательством в сфере водоснабжении и водоотведении.\nВ случае дифференциации тарифов по дополнительным признакам информация по ним указывается в отдельных строках."]
[null,null,null,null,1,null,null,null,null,null,null,{"$f":"mergeValue(A22) &\".\"& mergeValue(B22)&\".\"& mergeValue(C22)&\".\"& mergeValue(D22)&\".\"& mergeValue(E22)","v":"1.1.1.1.1"},"Группа потребителей",null,null,null,null,null,null,null,null,null,"Указывается группа потребителей при наличии дифференциации тарифа по группам потребителей.\nЗначение выбирается из перечня: Организации-перепродавцы; Бюджетные организации; Население; Прочие; Без дифференциации.\nВ случае дифференциации тарифов группам потребителей информация по ним указывается в отдельных строках.",null,{"$f":"strCheckUnique(Z22:Z25)","v":""}]
[null,null,null,null,null,1,null,null,null,null,null,{"$f":"mergeValue(A23) &\".\"& mergeValue(B23)&\".\"& mergeValue(C23)&\".\"& mergeValue(D23)&\".\"& mergeValue(E23)&\".\"& mergeValue(F23)","v":"1.1.1.1.1.1"},null,null,null,null,null,null,"да",null,"нет",null,"В колонке «Параметр дифференциации тарифов» указывается значение дополнительного признака дифференциации.\nПри утверждении двухставочного тарифа колонка «Одноставочный тариф» не заполняется.\nПри утверждении одноставочного тарифа колонки в блоке «Двухставочный тариф» не заполняются.\nДаты начала и окончания действия тарифов указываются в виде «ДД.ММ.ГГГГ».\nВ случае отсутствия даты окончания действия тарифа в колонке «Дата окончания» указывается «Нет».\nВ случае наличия нескольких значений признака дифференциации тарифов информация по ним указывается в отдельных строках.\nВ случае дифференциации тарифов по периодам действия тарифа информация по ним указывается в отдельных колонках.",{"$f":"strCheckDate(O24:V24)","v":""},null,{"$f":"IF(M23=\"\",\"\",M23 )","v":""}]
[null,null,null,null,null,null,null,null,null,null,null,null,null,null,null,null,{"$f":"R23 & \"-\" & T23","v":"-"}]
[null,null,null,null,null,null,null,null,null,null,null,null,"Добавить значение признака дифференциации"]
[null,null,null,null,null,null,null,null,null,null,null,null,"Добавить группу потребителей"]
[null,null,null,null,null,null,null,null,null,null,null,null,"Добавить наименование признака дифференциации"]
[null,null,null,null,null,null,null,null,null,null,null,null,"Добавить наименование системы водоотведения"]
[null,null,null,null,null,null,null,null,null,null,null,null,"Добавить территорию действия тарифа"]
[null,null,null,null,null,null,null,null,null,null,null,null,"Добавить наименование тарифа"]
[]
[null,null,null,null,null,null,null,null,null,null,null,null,"1 Для каждого вида тарифа в сфере водоотведения форма заполняется отдельно. При размещении информации по данной форме дополнительно указываются: наименование органа регулирования тарифов, принявшего решение об утверждении(изменении) тарифа, дата и номер документа об утверждении(изменении) тарифа, источник официального опубликования решения."]

{"sheet":"Форма 1.0.1 | Т-подкл(инд)","index":4,"n_rows":19,"n_cols":10,"rows_kept":19,"cut":false,"hidden":true,"merged":[[18,6,18,7],[1,5,1,7],[3,5,3,7],[3,8,4,8],[7,0,15,0],[11,2,13,2],[12,8,13,8],[10,1,14,1]]}
["9"]
[null,null,null,null,null,"Форма 1.0.1 Основные параметры раскрываемой информации 1"]
[]
[null,null,null,null,null,"Параметры формы",null,null,"Описание параметров формы"]
[null,null,null,null,null,"№ п/п","Наименование параметра","Информация"]
[null,null,null,null,null,"1",2,3,4,4]
[null,null,null,null,null,1,"Дата заполнения/внесения изменений",{"$f":"IF(dateCh=\"\",\"\",dateCh)","v":{"$error":"#REF!"}},"Указывается календарная дата первичного заполнения или внесения изменений в форму в виде «ДД.ММ.ГГГГ»."]
[1,null,null,null,null,{"$f":"\"2.\" &mergeValue(A8)","v":"2.1"},"Наименование централизованной системы коммунальной инфраструктуры",null,"Указывается наименование централизованной системы холодного водоснабжения/горячего водоснабжения/водоотведения/теплоснабжения, к которой относится размещаемая информация.\nВ случае наличия нескольких централизованных систем коммунальной инфраструктуры, информация по каждой из них указывается в отдельной строке."]
[null,null,null,null,null,{"$f":"\"3.\" &mergeValue(A9)","v":"3.1"},"Наименование регулируемого вида деятельности",null,"Указывается наименование вида регулируемой деятельности."]
[null,null,null,null,null,{"$f":"\"4.\"&mergeValue(A10)","v":"4.1"},"Территория оказания услуги по регулируемому виду деятельности","x"]
[null,1,null,null,null,{"$f":"\"4.\"&mergeValue(A11) &\".\"&mergeValue(B11)","v":"4.1.1"},"Субъект Российской Федерации",{"$f":"IF(region_name=\"\",\"\",region_name)","v":{"$error":"#REF!"}},"Указывается наименование субъекта Российской Федерации"]
[null,null,1,null,null,{"$f":"\"4.\"&mergeValue(A12) &\".\"&mergeValue(B12)&\".\"&mergeValue(C12)","v":"4.1.1.1"},"муниципальный район",null,"Указывается наименование муниципального района, на территории которого организация оказывает услуги по регулируемому виду деятельности."]
[null,null,null,1,null,{"$f":"\"4.\"&mergeValue(A13) &\".\"&mergeValue(B13)&\".\"&mergeValue(C13)&\".\"&mergeValue(D13)","v":"4.1.1.1.1"},"муниципальное образование",null,"Указывается наименование и код муниципального района, муниципального образования в соответствии с Общероссийским классификатором территорий муниципальных образований (далее - ОКТМО), входящего в муниципальный район, на территории которого организация оказывает услуги по регулируемому виду деятельности.\nВ случае оказания услуг по регулируемому виду деятельности на территории нескольких муниципальных районов (муниципальных образований) данные по каждому их них указываются в отдельной строке."]
[null,null,null,null,null,null,"Добавить МО"]
[null,null,null,null,null,null,"Добавить МР"]
[null,null,null,null,null,null,"Добавить территорию"]
[null,null,null,null,null,null,"Добавить ЦС"]
[]
[null,null,null,null,null,null,"  1 Информация размещается при раскрытии информации по каждой из форм."]

{"sheet":"Форма 3.4 | Т-подкл(инд)","index":5,"n_rows":32,"n_cols":41,"rows_kept":32,"cut":false,"hidden":true,"merged":[[12,29,12,36],[14,11,16,11],[14,12,16,12],[14,13,16,16],[14,17,16,20],[14,21,16,24],[14,25,16,28],[14,36,16,36],[16,34,16,35],[15,31,15,32],[15,33,15,35],[14,29,14,35],[15,29,15,30],[10,11,10,12],[10,18,10,23],[11,11,11,12],[11,18,11,23],[12,18,12,23],[20,2,26,2],[21,3,25,3],[18,0,28,0],[19,1,27,1],[21,14,24,14],[20,13,20,37],[19,13,19,37],[18,13,18,37],[21,8,25,8],[21,25,22,25],[21,9,25,9],[21,11,25,11],[21,12,25,12],[21,13,25,13],[21,10,25,10],[21,21,23,21],[21,38,26,38],[13,11,13,37],[17,13,17,16],[17,17,17,20],[17,21,17,24],[14,37,16,37],[13,38,16,38],[21,22,22,22],[21,23,22,23],[21,24,22,24],[21,15,24,15],[21,16,24,16],[21,17,24,17],[21,18,23,18],[21,19,23,19],[21,20,23,20],[4,11,4,20],[6,13,6,20],[7,13,7,20],[8,13,8,20],[9,13,9,20]]}
[]
[]
[]
[]
[null,null,null,null,null,null,null,null,null,null,null,"Форма 3.4 Информация о величинах тарифов на подключение к централизованной системе водоотведения1"]
[]
[null,null,null,null,null,null,null,null,null,null,null,null,{"$f":"\"Наименование органа регулирования, принявшего решение об \"&IF(NameOrPr_ch=\"\",\"утверждении\",\"изменении\") & \" тарифов\"","v":{"$error":"#REF!"}},{"$f":"IF(NameOrPr_ch=\"\",IF(NameOrPr=\"\",\"\",NameOrPr),NameOrPr_ch)","v":{"$error":"#REF!"}}]
[null,null,null,null,null,null,null,null,null,null,null,null,{"$f":"IF(datePr_ch=\"\",\"Дата документа об утверждении тарифов\",\"Дата принятия решения об изменении тарифов\")","v":{"$error":"#REF!"}},{"$f":"IF(datePr_ch=\"\",IF(datePr=\"\",\"\",datePr),datePr_ch)","v":{"$error":"#REF!"}}]
[null,null,null,null,null,null,null,null,null,null,null,null,{"$f":"IF(numberPr_ch=\"\",\"Номер документа об утверждении тарифов\",\"Номер принятия решения об изменении тарифов\")","v":{"$error":"#REF!"}},{"$f":"IF(numberPr_ch=\"\",IF(numberPr=\"\",\"\",numberPr),numberPr_ch)","v":{"$error":"#REF!"}}]
[null,null,null,null,null,null,null,null,null,null,null,null,"Источник официального опубликования решения",{"$f":"IF(IstPub_ch=\"\",IF(IstPub=\"\",\"\",IstPub),IstPub_ch)","v":{"$error":"#REF!"}}]
[null,null,null,null,null,null,null,null,null,null,null,null,null,null,null,null,null,null,null,null,null,null,null,null,null,null,null,null,null,"NDS","woNDS","NDS","woNDS"]
[null,null,null,null,null,null,null,null,null,null,null,null,null,null,null,null,null,null,null,null,null,null,null,null,null,null,null,null,null,null,null,null,null,null,null,null,"dp"]
[]
[null,null,null,null,null,null,null,null,null,null,null,"Параметры формы",null,null,null,null,null,null,null,null,null,null,null,null,null,null,null,null,null,null,null,null,null,null,null,null,null,null,"Описание параметров формы"]
[null,null,null,null,null,null,null,null,null,null,null,"№ п/п","Параметр дифференциации тарифа/Заявитель","Подключаемая нагрузка канализационной сети, куб. м/сут",null,null,null,"Диапазон диаметров канализационной сети, мм",null,null,null,"Протяженность канализационной сети, км",null,null,null,"Условия прокладки сетей",null,null,null,"Период действия тарифа",null,null,null,null,null,null,"Наличие других периодов действия тарифа","Добавить период"]
[null,null,null,null,null,null,null,null,null,null,null,null,null,null,null,null,null,null,null,null,null,null,null,null,null,null,null,null,null,"Ставка тарифа за подключаемую нагрузку канализационной сети, тыс. руб./куб. м в сут",null,"Ставка тарифа за протяженность канализационной сети диаметром d, тыс. руб./км",null,"Период действия"]
[null,null,null,null,null,null,null,null,null,null,null,null,null,null,null,null,null,null,null,null,null,null,null,null,null,null,null,null,null,"С НДС","Без НДС","С НДС","Без НДС","Дата начала","Дата окончания"]
[null,null,null,null,null,null,null,null,null,null,1,"1","2",{"$f":"OFFSET(N18,0,-1)+1","v":3},null,null,null,{"$f":"OFFSET(R18,0,-4)+1","v":4},null,null,null,{"$f":"OFFSET(V18,0,-4)+1","v":5},null,null,null,null,null,{"$f":"OFFSET(V18,0,0)+1","v":6},{"$f":"AB18","v":6},{"$f":"OFFSET(AD18,0,-1)+1","v":7},{"$f":"OFFSET(AE18,0,-1)+1","v":8},9,10,11,12,13,{"$f":"OFFSET(AK18,0,-1)+1","v":14},null,15]
[1,null,null,null,null,null,null,null,null,null,null,{"$f":"mergeValue(A19)","v":1},"Наименование тарифа",null,null,null,null,null,null,null,null,null,null,null,null,null,null,null,null,null,null,null,null,null,null,null,null,null,"Указывается наименование тарифа в случае утверждения нескольких тарифов.\nВ случае наличия нескольких тарифов информация по ним указывается в отдельных строках."]
[null,1,null,null,null,null,null,null,null,null,null,{"$f":"mergeValue(A20) &\".\"& mergeValue(B20)","v":"1.1"},"Территория действия тарифа",null,null,null,null,null,null,null,null,null,null,null,null,null,null,null,null,null,null,null,null,null,null,null,null,null,"Указывается наименование территории действия тарифа при наличии дифференциации тарифа по территориальному признаку.\nВ случае дифференциации тарифов по территориальному признаку информация по ним указывается в отдельных строках."]
[null,null,1,null,null,null,null,null,null,null,null,{"$f":"mergeValue(A21) &\".\"& mergeValue(B21)&\".\"& mergeValue(C21)","v":"1.1.1"},"Наименование централизованной системы водоотведения",null,null,null,null,null,null,null,null,null,null,null,null,null,null,null,null,null,null,null,null,null,null,null,null,null,"Указывается наименование централизованной системы водоотведения при наличии дифференциации тарифа по централизованным системам водоотведения.\nВ случае дифференциации тарифов по централизованным системам водоотведения информация по ним указывается в отдельных строках."]
[null,null,null,1,null,null,null,null,null,null,null,{"$f":"mergeValue(A22) &\".\"& mergeValue(B22)&\".\"& mergeValue(C22)&\".\"& mergeValue(D22)","v":"1.1.1.1"},null,"да",null,"1",null,"нет",null,1,null,"нет",null,1,null,"нет",null,1,null,null,null,null,null,null,"да",null,"нет",null,"В колодке «Параметр дифференциации тарифа/Заявитель» указывается наименование категории потребителей, к которой относится тариф.\nДаты начала и окончания указываются в виде «ДД.ММ.ГГГГ».\nВ случае отсутствия даты окончания тарифа в колонке «Дата окончания» указывается «Нет».\nВ случае наличия дифференциации по подключаемой нагрузке, диапазону диаметров, протяженности, условиям прокладки канализационной сети информация по ним указывается в отдельных строках.\nВ случае дифференциации тарифов по периодам действия тарифа информация по ним указывается в отдельных колонках.",{"$f":"strCheckDateOnDP(V22:AL22,List06_9_DP)","v":""},{"$f":"IF(AND(COUNTIF(AP18:AP26,AP22)>1,AP22<>\"\"),\"ErrUnique:HasDoubleConn\",\"\")","v":""}]
[null,null,null,null,null,null,null,null,null,null,null,null,null,null,null,null,null,null,null,null,null,null,null,null,null,null,null,null,null,null,null,null,{"$f":"AH22 & \"-\" & AJ22","v":"-"},null,null,null,"нет"]
[]
[]
[null,null,null,null,null,null,null,null,null,null,null,null,null,null,null,null,"Добавить подключаемую нагрузку"]
[null,null,null,null,null,null,null,null,null,null,null,null,"Добавить строку"]
[null,null,null,null,null,null,null,null,null,null,null,null,"Добавить наименование системы водоотведения"]
[null,null,null,null,null,null,null,null,null,null,null,null,"Добавить территорию действия тарифа"]
[null,null,null,null,null,null,null,null,null,null,null,null,"Добавить наименование тарифа"]
[]
[null,null,null,null,null,null,null,null,null,null,null,null,"1 При размещении информации дополнительно указываются: наименование органа регулирования тарифов, принявшего решение об утверждении(изменении) тарифа, дата и номер документа об утверждении(изменении) тарифа, источник официального опубликования решения."]

{"sheet":"Форма 1.0.1 | Т-подкл","index":6,"n_rows":19,"n_cols":10,"rows_kept":19,"cut":false,"hidden":true,"merged":[[18,6,18,7],[1,5,1,7],[3,5,3,7],[3,8,4,8],[7,0,15,0],[11,2,13,2],[12,8,13,8],[10,1,14,1]]}
["10"]
[null,null,null,null,null,"Форма 1.0.1 Основные параметры раскрываемой информации 1"]
[]
[null,null,null,null,null,"Параметры формы",null,null,"Описание параметров формы"]
[null,null,null,null,null,"№ п/п","Наименование параметра","Информация"]
[null,null,null,null,null,"1",2,3,4,4]
[null,null,null,null,null,1,"Дата заполнения/внесения изменений",{"$f":"IF(dateCh=\"\",\"\",dateCh)","v":{"$error":"#REF!"}},"Указывается календарная дата первичного заполнения или внесения изменений в форму в виде «ДД.ММ.ГГГГ»."]
[1,null,null,null,null,{"$f":"\"2.\" &mergeValue(A8)","v":"2.1"},"Наименование централизованной системы коммунальной инфраструктуры",null,"Указывается наименование централизованной системы холодного водоснабжения/горячего водоснабжения/водоотведения/теплоснабжения, к которой относится размещаемая информация.\nВ случае наличия нескольких централизованных систем коммунальной инфраструктуры, информация по каждой из них указывается в отдельной строке."]
[null,null,null,null,null,{"$f":"\"3.\" &mergeValue(A9)","v":"3.1"},"Наименование регулируемого вида деятельности",null,"Указывается наименование вида регулируемой деятельности."]
[null,null,null,null,null,{"$f":"\"4.\"&mergeValue(A10)","v":"4.1"},"Территория оказания услуги по регулируемому виду деятельности","x"]
[null,1,null,null,null,{"$f":"\"4.\"&mergeValue(A11) &\".\"&mergeValue(B11)","v":"4.1.1"},"Субъект Российской Федерации",{"$f":"IF(region_name=\"\",\"\",region_name)","v":{"$error":"#REF!"}},"Указывается наименование субъекта Российской Федерации"]
[null,null,1,null,null,{"$f":"\"4.\"&mergeValue(A12) &\".\"&mergeValue(B12)&\".\"&mergeValue(C12)","v":"4.1.1.1"},"муниципальный район",null,"Указывается наименование муниципального района, на территории которого организация оказывает услуги по регулируемому виду деятельности."]
[null,null,null,1,null,{"$f":"\"4.\"&mergeValue(A13) &\".\"&mergeValue(B13)&\".\"&mergeValue(C13)&\".\"&mergeValue(D13)","v":"4.1.1.1.1"},"муниципальное образование",null,"Указывается наименование и код муниципального района, муниципального образования в соответствии с Общероссийским классификатором территорий муниципальных образований (далее - ОКТМО), входящего в муниципальный район, на территории которого организация оказывает услуги по регулируемому виду деятельности.\nВ случае оказания услуг по регулируемому виду деятельности на территории нескольких муниципальных районов (муниципальных образований) данные по каждому их них указываются в отдельной строке."]
[null,null,null,null,null,null,"Добавить МО"]
[null,null,null,null,null,null,"Добавить МР"]
[null,null,null,null,null,null,"Добавить территорию"]
[null,null,null,null,null,null,"Добавить ЦС"]
[]
[null,null,null,null,null,null,"  1 Информация размещается при раскрытии информации по каждой из форм."]

{"sheet":"Форма 3.4 | Т-подкл","index":7,"n_rows":32,"n_cols":40,"rows_kept":32,"cut":false,"hidden":true,"merged":[[4,11,4,20],[13,37,16,37],[21,37,26,37],[14,36,16,36],[14,16,16,19],[14,20,16,23],[21,18,23,18],[21,22,22,22],[21,16,24,16],[14,28,14,34],[14,35,16,35],[21,23,22,23],[15,28,15,29],[15,32,15,34],[18,13,18,36],[16,33,16,34],[17,20,17,23],[17,16,17,19],[17,13,17,15],[21,12,25,12],[21,15,24,15],[21,13,24,13],[21,19,23,19],[20,13,20,36],[21,21,22,21],[21,14,24,14],[21,11,25,11],[21,17,23,17],[21,20,23,20],[19,13,19,36],[21,24,22,24],[18,0,28,0],[19,1,27,1],[20,2,26,2],[21,3,25,3],[21,10,25,10],[21,8,25,8],[21,9,25,9],[12,28,12,35],[14,12,16,12],[14,11,16,11],[6,13,6,19],[7,13,7,19],[8,13,8,19],[9,13,9,19],[12,17,12,22],[11,17,11,22],[10,17,10,22],[10,11,10,12],[11,11,11,12],[14,24,16,27],[13,11,13,36],[14,13,16,15],[15,30,15,31]]}
[]
[]
[]
[]
[null,null,null,null,null,null,null,null,null,null,null,"Форма 3.4 Информация о величинах тарифов на подключение к централизованной системе водоотведения1"]
[]
[null,null,null,null,null,null,null,null,null,null,null,null,{"$f":"\"Наименование органа регулирования, принявшего решение об \"&IF(NameOrPr_ch=\"\",\"утверждении\",\"изменении\") & \" тарифов\"","v":{"$error":"#REF!"}},{"$f":"IF(NameOrPr_ch=\"\",IF(NameOrPr=\"\",\"\",NameOrPr),NameOrPr_ch)","v":{"$error":"#REF!"}}]
[null,null,null,null,null,null,null,null,null,null,null,null,{"$f":"IF(datePr_ch=\"\",\"Дата документа об утверждении тарифов\",\"Дата принятия решения об изменении тарифов\")","v":{"$error":"#REF!"}},{"$f":"IF(datePr_ch=\"\",IF(datePr=\"\",\"\",datePr),datePr_ch)","v":{"$error":"#REF!"}}]
[null,null,null,null,null,null,null,null,null,null,null,null,{"$f":"IF(numberPr_ch=\"\",\"Номер документа об утверждении тарифов\",\"Номер принятия решения об изменении тарифов\")","v":{"$error":"#REF!"}},{"$f":"IF(numberPr_ch=\"\",IF(numberPr=\"\",\"\",numberPr),numberPr_ch)","v":{"$error":"#REF!"}}]
[null,null,null,null,null,null,null,null,null,null,null,null,"Источник официального опубликования решения",{"$f":"IF(IstPub_ch=\"\",IF(IstPub=\"\",\"\",IstPub),IstPub_ch)","v":{"$error":"#REF!"}}]
[null,null,null,null,null,null,null,null,null,null,null,null,null,null,null,null,null,null,null,null,null,null,null,null,null,null,null,null,"NDS","woNDS","NDS","woNDS"]
[null,null,null,null,null,null,null,null,null,null,null,null,null,null,null,null,null,null,null,null,null,null,null,null,null,null,null,null,null,null,null,null,null,null,null,"dp"]
[]
[null,null,null,null,null,null,null,null,null,null,null,"Параметры формы",null,null,null,null,null,null,null,null,null,null,null,null,null,null,null,null,null,null,null,null,null,null,null,null,null,"Описание параметров формы"]
[null,null,null,null,null,null,null,null,null,null,null,"№ п/п","Параметр дифференциации тарифа/Заявитель","Подключаемая нагрузка канализационной сети, куб. м/сут",null,null,"Диапазон диаметров канализационной сети, мм",null,null,null,"Протяженность канализационной сети, км",null,null,null,"Условия прокладки сетей",null,null,null,"Период действия тарифа",null,null,null,null,null,null,"Наличие других периодов действия тарифа","Добавить период"]
[null,null,null,null,null,null,null,null,null,null,null,null,null,null,null,null,null,null,null,null,null,null,null,null,null,null,null,null,"Ставка тарифа за подключаемую нагрузку канализационной сети, тыс. руб./куб. м в сут",null,"Ставка тарифа за протяженность канализационной сети диаметром d, тыс. руб./км",null,"Период действия"]
[null,null,null,null,null,null,null,null,null,null,null,null,null,null,null,null,null,null,null,null,null,null,null,null,null,null,null,null,"С НДС","Без НДС","С НДС","Без НДС","Дата начала","Дата окончания"]
[null,null,null,null,null,null,null,null,null,null,1,"1","2",{"$f":"OFFSET(N18,0,-1)+1","v":3},null,null,{"$f":"OFFSET(Q18,0,-3)+1","v":4},null,null,null,{"$f":"OFFSET(U18,0,-4)+1","v":5},null,null,null,null,null,{"$f":"OFFSET(U18,0,0)+1","v":6},{"$f":"AA18","v":6},{"$f":"OFFSET(AC18,0,-1)+1","v":7},8,9,10,11,12,13,14,null,15]
[1,null,null,null,null,null,null,null,null,null,null,{"$f":"mergeValue(A19)","v":1},"Наименование тарифа",null,null,null,null,null,null,null,null,null,null,null,null,null,null,null,null,null,null,null,null,null,null,null,null,"Указывается наименование тарифа в случае утверждения нескольких тарифов.\nВ случае наличия нескольких тарифов информация по ним указывается в отдельных строках."]
[null,1,null,null,null,null,null,null,null,null,null,{"$f":"mergeValue(A20) &\".\"& mergeValue(B20)","v":"1.1"},"Территория действия тарифа",null,null,null,null,null,null,null,null,null,null,null,null,null,null,null,null,null,null,null,null,null,null,null,null,"Указывается наименование территории действия тарифа при наличии дифференциации тарифа по территориальному признаку.\nВ случае дифференциации тарифов по территориальному признаку информация по ним указывается в отдельных строках."]
[null,null,1,null,null,null,null,null,null,null,null,{"$f":"mergeValue(A21) &\".\"& mergeValue(B21)&\".\"& mergeValue(C21)","v":"1.1.1"},"Наименование централизованной системы водоотведения",null,null,null,null,null,null,null,null,null,null,null,null,null,null,null,null,null,null,null,null,null,null,null,null,"Указывается наименование централизованной системы водоотведения при наличии дифференциации тарифа по централизованным системам водоотведения.\nВ случае дифференциации тарифов по централизованным системам водоотведения информация по ним указывается в отдельных строках."]
[null,null,null,1,null,null,null,null,null,null,null,{"$f":"mergeValue(A22) &\".\"& mergeValue(B22)&\".\"& mergeValue(C22)&\".\"& mergeValue(D22)","v":"1.1.1.1"},null,null,"1",null,"нет",null,1,null,"нет",null,"1",null,"нет",null,1,null,null,null,null,null,null,"да",null,"нет",null,"В колодке «Параметр дифференциации тарифа/Заявитель» указывается наименование категории потребителей, к которой относится тариф.\nДаты начала и окончания указываются в виде «ДД.ММ.ГГГГ».\nВ случае отсутствия даты окончания тарифа в колонке «Дата окончания» указывается «Нет».\nВ случае наличия дифференциации по подключаемой нагрузке, диапазону диаметров, протяженности, условиям прокладки канализационной сети информация по ним указывается в отдельных строках.\nВ случае дифференциации тарифов по периодам действия тарифа информация по ним указывается в отдельных колонках.",{"$f":"strCheckDateOnDP(AC22:AK22,List06_10_DP)","v":""},{"$f":"IF(AND(COUNTIF(AO18:AO26,AO22)>1,AO22<>\"\"),\"ErrUnique:HasDoubleConn\",\"\")","v":""}]
[null,null,null,null,null,null,null,null,null,null,null,null,null,null,null,null,null,null,null,null,null,null,null,null,null,null,null,null,null,null,null,{"$f":"AG22 & \"-\" & AI22","v":"-"},null,null,null,"нет"]
[]
[]
[null,null,null,null,null,null,null,null,null,null,null,null,null,null,null,"Добавить подключаемую нагрузку"]
[null,null,null,null,null,null,null,null,null,null,null,null,"Добавить строку"]
[null,null,null,null,null,null,null,null,null,null,null,null,"Добавить наименование системы водоотведения"]
[null,null,null,null,null,null,null,null,null,null,null,null,"Добавить территорию действия тарифа"]
[null,null,null,null,null,null,null,null,null,null,null,null,"Добавить наименование тарифа"]
[]
[null,null,null,null,null,null,null,null,null,null,null,null,"1 При размещении информации дополнительно указываются: наименование органа регулирования тарифов, принявшего решение об утверждении(изменении) тарифа, дата и номер документа об утверждении(изменении) тарифа, источник официального опубликования решения."]

{"sheet":"Форма 3.10","index":8,"n_rows":34,"n_cols":12,"rows_kept":34,"cut":false,"hidden":false,"merged":[[17,8,18,8],[19,4,19,7],[4,3,4,7],[6,3,6,7],[6,8,7,8],[9,4,9,7],[13,4,13,7],[14,8,15,8],[16,4,16,7],[33,4,33,8],[29,4,29,7],[20,4,20,7],[23,4,23,7],[26,4,26,7],[21,8,22,8],[24,8,25,8],[27,8,28,8],[30,8,31,8]]}
[]
[]
[]
[]
[null,null,null,"Форма 3.10 Информация о порядке выполнения технологических, технических и других мероприятий, связанных с подключением к централизованной системе водоотведения1"]
[]
[null,null,null,"Параметры формы",null,null,null,null,"Описание параметров формы"]
[null,null,null,"№ п/п","Наименование параметра",null,"Информация","Ссылка на документ"]
[null,null,null,"1","2",null,"3","4","5"]
[null,null,null,1,"Информация о размещении данных на сайте регулируемой организации"]
[null,null,null,"1.1","дата размещения информации",null,"22.09.2022","x","Дата размещения информации указывается в виде «ДД.ММ.ГГГГ»."]
[null,null,null,"1.2","адрес страницы сайта в сети «Интернет» и ссылка на документ",null,"https://sakhalin.rosvodokanal.ru/","https://portal.eias.ru/Portal/DownloadPage.aspx?type=12&guid=62d3ee19-b902-4568-b34d-7b9963ba5808","В колонке «Информация» указывается адрес страницы сайта в сети «Интернет», на которой размещена информация.\nВ колонке «Ссылка на документ» указывается ссылка на скриншот страницы сайта в сети «Интернет», предварительно загруженный в хранилище файлов ФГИС ЕИАС, на которой размещена информация."]
[null,3,null,2,"Форма заявки о подключении к централизованной системе водоотведения",null,"x","https://portal.eias.ru/Portal/DownloadPage.aspx?type=12&guid=feb8c36b-9041-42f9-83c6-6a97d7f3c6f0","Указывается ссылка на документ, предварительно загруженный в хранилище файлов ФГИС ЕИАС."]
[null,null,null,3,"Перечень документов и сведений, представляемых одновременно с заявкой о подключении к централизованной системе водоотведения, и указание на запрет требовать представления документов и сведений или осуществления действий, представление или осуществление которых не предусмотрено законодательством Российской Федерации о градостроительной деятельности и законодательством в сфере водоснабжения и водоотведения"]
[null,null,null,"3.1","Перечень ",null,"x","https://portal.eias.ru/Portal/DownloadPage.aspx?type=12&guid=22a65035-1244-49dd-ab10-68808c91f67d","Указывается ссылка на документ, предварительно загруженный в хранилище файлов ФГИС ЕИАС.\nВ случае наличия дополнительных сведений информация по ним указывается в отдельных строках."]
[null,null,null,null,"Добавить сведения"]
[null,3,null,4,"Реквизиты НПА, регламентирующих порядок действий заявителя и регулируемой организации при подаче, приеме, обработке заявки о подключении к централизованной системе водоотведения (в том числе в форме электронного документа), принятии решения и информировании о принятом по результатам рассмотрения указанной заявки решении (возврат документов, прилагаемых к заявке о подключении к централизованной системе водоотведения, либо направление подписанного проекта договора о подключении к централизованной системе водоотведения), основания для отказа в принятии к рассмотрению документов, прилагаемых к заявлению о подключении к централизованной системе водоотведения, в подписании договора о подключении к централизованной системе водоотведения"]
[null,null,null,"4.1","наименование НПА",null,"ПОСТАНОВЛЕНИЕ\nот 30 ноября 2021 г. N 2130\n\nОБ УТВЕРЖДЕНИИ ПРАВИЛ\nПОДКЛЮЧЕНИЯ (ТЕХНОЛОГИЧЕСКОГО ПРИСОЕДИНЕНИЯ)\nОБЪЕКТОВ КАПИТАЛЬНОГО СТРОИТЕЛЬСТВА К ЦЕНТРАЛИЗОВАННЫМ\nСИСТЕМАМ ГОРЯЧЕГО ВОДОСНАБЖЕНИЯ, ХОЛОДНОГО ВОДОСНАБЖЕНИЯ\nИ (ИЛИ) ВОДООТВЕДЕНИЯ","x","В колонке «Информация» указывается полное наименование и реквизиты НПА.\nВ случае наличия нескольких НПА каждое из них указывается в отдельной строке."]
[null,null,null,null,"Добавить сведения"]
[null,3,null,5,"Телефоны, адреса и график работы службы, ответственной за прием и обработку заявок о подключении к централизованной системе водоотведения"]
[null,null,null,"5.1","телефоны службы, ответственной за прием и обработку заявок о подключении к централизованной системе водоотведения"]
[null,null,null,"5.1.1","контактный телефон службы",null,"8 (4242) 49-79-10","x","Указывается номер контактного телефона службы, ответственной за прием и обработку заявок о подключении к централизованной системе водоотведения. \nВ случае наличия нескольких служб и (или) номеров телефонов, информация по каждому из них указывается в отдельной строке."]
[null,null,null,null,"Добавить сведения"]
[null,null,null,"5.2","адреса службы, ответственной за прием и обработку заявок о подключении к централизованной системе водоотведения"]
[null,null,null,"5.2.1","адрес службы",null,"693020, г. Южно-Сахалинск, ул. Крюкова Д.Н., 38","x","Указывается наименование субъекта Российской Федерации, муниципального района, города, иного населенного пункта, улицы, номер дома, при необходимости указывается корпус, строение, литера или дополнительная территория. Данные указываются согласно наименованиям адресных объектов в ФИАС.\nВ случае наличия нескольких служб и (или) адресов, информация по каждому из них указывается в отдельной строке."]
[null,null,null,null,"Добавить сведения"]
[null,null,null,"5.3","график работы службы, ответственной за прием и обработку заявок о подключении к централизованной системе водоотведения"]
[null,null,null,"5.3.1","график работы службы",null,"c 08:30 до 17:00","x","Указывается график работы службы, ответственной за прием и обработку заявок о подключении к централизованной системе водоотведения. \nВ случае наличия нескольких служб и (или) графиков работы, информация по каждому из них указывается в отдельной строке.",null,null,"c 08:30 до 17:00"]
[null,null,null,null,"Добавить сведения"]
[null,3,null,"6","Регламент подключения к централизованной системе водоотведения, утверждаемый регулируемой организацией, включающий сроки, состав и последовательность действий при осуществлении подключения к централизованной системе водоотведения, сведения о размере платы за услуги по подключению к централизованной системе водоотведения, информацию о месте нахождения и графике работы, справочных телефонах, адресе официального сайта регулируемой организации в сети «Интернет» и блок-схему, отражающую графическое изображение последовательности действий, осуществляемых при подключении к централизованной системе водоотведения"]
[null,null,null,"6.1","перечень",null,"x","https://portal.eias.ru/Portal/DownloadPage.aspx?type=12&guid=22a65035-1244-49dd-ab10-68808c91f67d","Указывается ссылка на документ, предварительно загруженный в хранилище файлов ФГИС ЕИАС.\nВ случае наличия дополнительных сведений информация по ним указывается в отдельных строках."]
[null,null,null,null,"Добавить сведения"]
[]
[null,null,null,1,"Информация раскрывается в случае, если регулируемая организация осуществляет услуги по подключению (технологическому присоединению) к централизованной системе водоотведения."]

{"sheet":"Форма 1.0.2","index":9,"n_rows":15,"n_cols":13,"rows_kept":15,"cut":false,"hidden":true,"merged":[[4,3,4,9],[14,4,14,9],[11,10,12,10],[7,3,7,9],[8,4,8,5],[7,10,9,10],[8,6,8,9],[8,3,9,3]]}
[]
[]
[]
[]
[null,null,null,"Форма 1.0.2 Информация о публикации в печатных изданиях 2"]
[]
[]
[null,null,null,"Параметры формы",null,null,null,null,null,null,"Описание параметров формы"]
[null,null,null,"№ п/п","Форма публикации",null,"Официальное печатное издание"]
[null,null,null,null,"Номер","Наименование","Наименование","Номер","Дата выпуска","Ссылка на документ"]
[null,null,null,"1","2","3","4","5","6","7","8"]
["3","",null,"1",null,null,null,null,null,null,"В колонке «Дата выпуска» дата выпуска печатного издания указывается в виде «ДД.ММ.ГГГГ».\nВ колонке «Ссылка на документ» указывается ссылка на отсканированную копию печатного издания, предварительно загруженную в хранилище федеральной государственной информационной системы «Единая информационно-аналитическая система «Федеральный орган регулирования - региональные органы регулирования - субъекты регулирования» (далее – ФГИС ЕИАС), с опубликованной информацией.\nВ случае публикации информации в нескольких печатных изданиях информация по каждому из них указывается в отдельной строке.",null,{"$f":"IF(ISERROR(INDEX(kind_of_nameforms,MATCH(E12,kind_of_forms,0),1)),\"\",INDEX(kind_of_nameforms,MATCH(E12,kind_of_forms,0),1))","v":""}]
[null,null,null,null,"Добавить строку"]
[]
[null,null,null,null,"2 Размещается информация по каждой из форм раскрытия, данные в которой относятся к муниципальному образованию, в котором отсутствует доступ в сеть «Интернет»."]

{"sheet":"modListTempFilter","index":10,"n_rows":0,"n_cols":0,"rows_kept":0,"cut":false,"hidden":true,"merged":[]}

{"sheet":"modCheckCyan","index":11,"n_rows":632,"n_cols":1,"rows_kept":632,"cut":false,"hidden":true,"merged":[]}
[{"$f":"IF(#REF!=\"\",1,0)","v":{"$error":"#REF!"}}]
[{"$f":"IF(#REF!=\"\",1,0)","v":{"$error":"#REF!"}}]
[{"$f":"IF(#REF!=\"\",1,0)","v":{"$error":"#REF!"}}]
[{"$f":"IF(#REF!=\"\",1,0)","v":{"$error":"#REF!"}}]
[{"$f":"IF(#REF!=\"\",1,0)","v":{"$error":"#REF!"}}]
[{"$f":"IF('Форма 3.2 | Т-транс'!$O$22=\"\",1,0)","v":1}]
[{"$f":"IF('Форма 3.2 | Т-транс'!$R$23=\"\",1,0)","v":1}]
[{"$f":"IF('Форма 3.2 | Т-транс'!$T$23=\"\",1,0)","v":1}]
[{"$f":"IF('Форма 3.2 | Т-транс'!$S$23=\"\",1,0)","v":0}]
[{"$f":"IF('Форма 3.2 | Т-транс'!$U$23=\"\",1,0)","v":0}]
[{"$f":"IF('Форма 3.4 | Т-подкл(инд)'!$M$22=\"\",1,0)","v":1}]
[{"$f":"IF('Форма 3.4 | Т-подкл(инд)'!$Q$22=\"\",1,0)","v":1}]
[{"$f":"IF('Форма 3.4 | Т-подкл(инд)'!$AD$22=\"\",1,0)","v":1}]
[{"$f":"IF('Форма 3.4 | Т-подкл(инд)'!$AE$22=\"\",1,0)","v":1}]
[{"$f":"IF('Форма 3.4 | Т-подкл(инд)'!$AF$22=\"\",1,0)","v":1}]
[{"$f":"IF('Форма 3.4 | Т-подкл(инд)'!$AG$22=\"\",1,0)","v":1}]
[{"$f":"IF('Форма 3.4 | Т-подкл(инд)'!$AH$22=\"\",1,0)","v":1}]
[{"$f":"IF('Форма 3.4 | Т-подкл(инд)'!$AJ$22=\"\",1,0)","v":1}]
[{"$f":"IF('Форма 3.4 | Т-подкл(инд)'!$N$22=\"\",1,0)","v":0}]
[{"$f":"IF('Форма 3.4 | Т-подкл(инд)'!$R$22=\"\",1,0)","v":0}]
[{"$f":"IF('Форма 3.4 | Т-подкл(инд)'!$V$22=\"\",1,0)","v":0}]
[{"$f":"IF('Форма 3.4 | Т-подкл(инд)'!$Z$22=\"\",1,0)","v":0}]
[{"$f":"IF('Форма 3.4 | Т-подкл(инд)'!$AI$22=\"\",1,0)","v":0}]
[{"$f":"IF('Форма 3.4 | Т-подкл(инд)'!$AK$22=\"\",1,0)","v":0}]
[{"$f":"IF('Форма 3.4 | Т-подкл'!$P$22=\"\",1,0)","v":1}]
[{"$f":"IF('Форма 3.4 | Т-подкл'!$AC$22=\"\",1,0)","v":1}]
[{"$f":"IF('Форма 3.4 | Т-подкл'!$AD$22=\"\",1,0)","v":1}]
[{"$f":"IF('Форма 3.4 | Т-подкл'!$AE$22=\"\",1,0)","v":1}]
[{"$f":"IF('Форма 3.4 | Т-подкл'!$AF$22=\"\",1,0)","v":1}]
[{"$f":"IF('Форма 3.4 | Т-подкл'!$AG$22=\"\",1,0)","v":1}]
[{"$f":"IF('Форма 3.4 | Т-подкл'!$AI$22=\"\",1,0)","v":1}]
[{"$f":"IF('Форма 3.4 | Т-подкл'!$Q$22=\"\",1,0)","v":0}]
[{"$f":"IF('Форма 3.4 | Т-подкл'!$U$22=\"\",1,0)","v":0}]
[{"$f":"IF('Форма 3.4 | Т-подкл'!$Y$22=\"\",1,0)","v":0}]
[{"$f":"IF('Форма 3.4 | Т-подкл'!$AH$22=\"\",1,0)","v":0}]
[{"$f":"IF('Форма 3.4 | Т-подкл'!$AJ$22=\"\",1,0)","v":0}]
[{"$f":"IF(#REF!=\"\",1,0)","v":{"$error":"#REF!"}}]
[{"$f":"IF(#REF!=\"\",1,0)","v":{"$error":"#REF!"}}]
[{"$f":"IF('Форма 3.10'!$G$11=\"\",1,0)","v":0}]
[{"$f":"IF('Форма 3.10'!$G$12=\"\",1,0)","v":0}]
[{"$f":"IF('Форма 3.10'!$H$12=\"\",1,0)","v":0}]
[{"$f":"IF('Форма 3.10'!$H$13=\"\",1,0)","v":0}]
[{"$f":"IF('Форма 3.10'!$E$15=\"\",1,0)","v":0}]
[{"$f":"IF('Форма 3.10'!$H$15=\"\",1,0)","v":0}]
[{"$f":"IF('Форма 3.10'!$G$18=\"\",1,0)","v":0}]
[{"$f":"IF('Форма 3.10'!$G$22=\"\",1,0)","v":0}]
[{"$f":"IF('Форма 3.10'!$G$25=\"\",1,0)","v":0}]
[{"$f":"IF('Форма 3.10'!$E$31=\"\",1,0)","v":0}]
[{"$f":"IF('Форма 3.10'!$H$31=\"\",1,0)","v":0}]
[{"$f":"IF('Форма 3.10'!$G$28=\"\",1,0)","v":0}]
[{"$f":"IF('Форма 1.0.2'!$E$12=\"\",1,0)","v":1}]
[{"$f":"IF('Форма 1.0.2'!$F$12=\"\",1,0)","v":1}]
[{"$f":"IF('Форма 1.0.2'!$G$12=\"\",1,0)","v":1}]
[{"$f":"IF('Форма 1.0.2'!$H$12=\"\",1,0)","v":1}]
[{"$f":"IF('Форма 1.0.2'!$I$12=\"\",1,0)","v":1}]
[{"$f":"IF('Форма 1.0.2'!$J$12=\"\",1,0)","v":1}]
[{"$f":"IF(#REF!=\"\",1,0)","v":{"$error":"#REF!"}}]
[{"$f":"IF(#REF!=\"\",1,0)","v":{"$error":"#REF!"}}]
[{"$f":"IF(#REF!=\"\",1,0)","v":{"$error":"#REF!"}}]
[{"$f":"IF(#REF!=\"\",1,0)","v":{"$error":"#REF!"}}]
[{"$f":"IF(#REF!=\"\",1,0)","v":{"$error":"#REF!"}}]
[{"$f":"IF(#REF!=\"\",1,0)","v":{"$error":"#REF!"}}]
[{"$f":"IF(#REF!=\"\",1,0)","v":{"$error":"#REF!"}}]
[{"$f":"IF(#REF!=\"\",1,0)","v":{"$error":"#REF!"}}]
[{"$f":"IF(#REF!=\"\",1,0)","v":{"$error":"#REF!"}}]
[{"$f":"IF(#REF!=\"\",1,0)","v":{"$error":"#REF!"}}]
[{"$f":"IF(#REF!=\"\",1,0)","v":{"$error":"#REF!"}}]
[{"$f":"IF(#REF!=\"\",1,0)","v":{"$error":"#REF!"}}]
[{"$f":"IF(#REF!=\"\",1,0)","v":{"$error":"#REF!"}}]
[{"$f":"IF(#REF!=\"\",1,0)","v":{"$error":"#REF!"}}]
[{"$f":"IF(#REF!=\"\",1,0)","v":{"$error":"#REF!"}}]
[{"$f":"IF(#REF!=\"\",1,0)","v":{"$error":"#REF!"}}]
[{"$f":"IF(#REF!=\"\",1,0)","v":{"$error":"#REF!"}}]
[{"$f":"IF(#REF!=\"\",1,0)","v":{"$error":"#REF!"}}]
[{"$f":"IF(#REF!=\"\",1,0)","v":{"$error":"#REF!"}}]
[{"$f":"IF(#REF!=\"\",1,0)","v":{"$error":"#REF!"}}]
[{"$f":"IF(#REF!=\"\",1,0)","v":{"$error":"#REF!"}}]
[{"$f":"IF(#REF!=\"\",1,0)","v":{"$error":"#REF!"}}]
[{"$f":"IF(#REF!=\"\",1,0)","v":{"$error":"#REF!"}}]
[{"$f":"IF(#REF!=\"\",1,0)","v":{"$error":"#REF!"}}]
[{"$f":"IF(#REF!=\"\",1,0)","v":{"$error":"#REF!"}}]
[{"$f":"IF(#REF!=\"\",1,0)","v":{"$error":"#REF!"}}]
[{"$f":"IF(#REF!=\"\",1,0)","v":{"$error":"#REF!"}}]
[{"$f":"IF(#REF!=\"\",1,0)","v":{"$error":"#REF!"}}]
[{"$f":"IF(#REF!=\"\",1,0)","v":{"$error":"#REF!"}}]
[{"$f":"IF(#REF!=\"\",1,0)","v":{"$error":"#REF!"}}]
[{"$f":"IF(#REF!=\"\",1,0)","v":{"$error":"#REF!"}}]
[{"$f":"IF(#REF!=\"\",1,0)","v":{"$error":"#REF!"}}]
[{"$f":"IF(#REF!=\"\",1,0)","v":{"$error":"#REF!"}}]
[{"$f":"IF(#REF!=\"\",1,0)","v":{"$error":"#REF!"}}]
[{"$f":"IF(#REF!=\"\",1,0)","v":{"$error":"#REF!"}}]
[{"$f":"IF(#REF!=\"\",1,0)","v":{"$error":"#REF!"}}]
[{"$f":"IF(#REF!=\"\",1,0)","v":{"$error":"#REF!"}}]
[{"$f":"IF(#REF!=\"\",1,0)","v":{"$error":"#REF!"}}]
[{"$f":"IF(#REF!=\"\",1,0)","v":{"$error":"#REF!"}}]
[{"$f":"IF(#REF!=\"\",1,0)","v":{"$error":"#REF!"}}]
[{"$f":"IF(#REF!=\"\",1,0)","v":{"$error":"#REF!"}}]
[{"$f":"IF(#REF!=\"\",1,0)","v":{"$error":"#REF!"}}]
[{"$f":"IF(#REF!=\"\",1,0)","v":{"$error":"#REF!"}}]
[{"$f":"IF(#REF!=\"\",1,0)","v":{"$error":"#REF!"}}]
[{"$f":"IF(#REF!=\"\",1,0)","v":{"$error":"#REF!"}}]
[{"$f":"IF(#REF!=\"\",1,0)","v":{"$error":"#REF!"}}]
[{"$f":"IF(#REF!=\"\",1,0)","v":{"$error":"#REF!"}}]
[{"$f":"IF(#REF!=\"\",1,0)","v":{"$error":"#REF!"}}]
[{"$f":"IF(#REF!=\"\",1,0)","v":{"$error":"#REF!"}}]
[{"$f":"IF(#REF!=\"\",1,0)","v":{"$error":"#REF!"}}]
[{"$f":"IF(#REF!=\"\",1,0)","v":{"$error":"#REF!"}}]
[{"$f":"IF(#REF!=\"\",1,0)","v":{"$error":"#REF!"}}]
[{"$f":"IF(#REF!=\"\",1,0)","v":{"$error":"#REF!"}}]
[{"$f":"IF(#REF!=\"\",1,0)","v":{"$error":"#REF!"}}]
[{"$f":"IF(#REF!=\"\",1,0)","v":{"$error":"#REF!"}}]
[{"$f":"IF(#REF!=\"\",1,0)","v":{"$error":"#REF!"}}]
[{"$f":"IF(#REF!=\"\",1,0)","v":{"$error":"#REF!"}}]
[{"$f":"IF(#REF!=\"\",1,0)","v":{"$error":"#REF!"}}]
[{"$f":"IF(#REF!=\"\",1,0)","v":{"$error":"#REF!"}}]
[{"$f":"IF(#REF!=\"\",1,0)","v":{"$error":"#REF!"}}]
[{"$f":"IF(#REF!=\"\",1,0)","v":{"$error":"#REF!"}}]
[{"$f":"IF(#REF!=\"\",1,0)","v":{"$error":"#REF!"}}]
[{"$f":"IF(#REF!=\"\",1,0)","v":{"$error":"#REF!"}}]
[{"$f":"IF(#REF!=\"\",1,0)","v":{"$error":"#REF!"}}]
[{"$f":"IF(#REF!=\"\",1,0)","v":{"$error":"#REF!"}}]
[{"$f":"IF(#REF!=\"\",1,0)","v":{"$error":"#REF!"}}]
[{"$f":"IF(#REF!=\"\",1,0)","v":{"$error":"#REF!"}}]
[{"$f":"IF(#REF!=\"\",1,0)","v":{"$error":"#REF!"}}]
[{"$f":"IF(#REF!=\"\",1,0)","v":{"$error":"#REF!"}}]
[{"$f":"IF(#REF!=\"\",1,0)","v":{"$error":"#REF!"}}]
[{"$f":"IF(#REF!=\"\",1,0)","v":{"$error":"#REF!"}}]
[{"$f":"IF(#REF!=\"\",1,0)","v":{"$error":"#REF!"}}]
[{"$f":"IF(#REF!=\"\",1,0)","v":{"$error":"#REF!"}}]
[{"$f":"IF(#REF!=\"\",1,0)","v":{"$error":"#REF!"}}]
[{"$f":"IF(#REF!=\"\",1,0)","v":{"$error":"#REF!"}}]
[{"$f":"IF(#REF!=\"\",1,0)","v":{"$error":"#REF!"}}]
[{"$f":"IF(#REF!=\"\",1,0)","v":{"$error":"#REF!"}}]
[{"$f":"IF(#REF!=\"\",1,0)","v":{"$error":"#REF!"}}]
[{"$f":"IF(#REF!=\"\",1,0)","v":{"$error":"#REF!"}}]
[{"$f":"IF(#REF!=\"\",1,0)","v":{"$error":"#REF!"}}]
[{"$f":"IF(#REF!=\"\",1,0)","v":{"$error":"#REF!"}}]
[{"$f":"IF(#REF!=\"\",1,0)","v":{"$error":"#REF!"}}]
[{"$f":"IF(#REF!=\"\",1,0)","v":{"$error":"#REF!"}}]
[{"$f":"IF(#REF!=\"\",1,0)","v":{"$error":"#REF!"}}]
[{"$f":"IF(#REF!=\"\",1,0)","v":{"$error":"#REF!"}}]
[{"$f":"IF(#REF!=\"\",1,0)","v":{"$error":"#REF!"}}]
[{"$f":"IF(#REF!=\"\",1,0)","v":{"$error":"#REF!"}}]
[{"$f":"IF(#REF!=\"\",1,0)","v":{"$error":"#REF!"}}]
[{"$f":"IF(#REF!=\"\",1,0)","v":{"$error":"#REF!"}}]
[{"$f":"IF(#REF!=\"\",1,0)","v":{"$error":"#REF!"}}]
[{"$f":"IF(#REF!=\"\",1,0)","v":{"$error":"#REF!"}}]
[{"$f":"IF(#REF!=\"\",1,0)","v":{"$error":"#REF!"}}]
[{"$f":"IF(#REF!=\"\",1,0)","v":{"$error":"#REF!"}}]
[{"$f":"IF(#REF!=\"\",1,0)","v":{"$error":"#REF!"}}]
[{"$f":"IF(#REF!=\"\",1,0)","v":{"$error":"#REF!"}}]
[{"$f":"IF(#REF!=\"\",1,0)","v":{"$error":"#REF!"}}]
[{"$f":"IF(#REF!=\"\",1,0)","v":{"$error":"#REF!"}}]
[{"$f":"IF(#REF!=\"\",1,0)","v":{"$error":"#REF!"}}]
[{"$f":"IF(#REF!=\"\",1,0)","v":{"$error":"#REF!"}}]
[{"$f":"IF(#REF!=\"\",1,0)","v":{"$error":"#REF!"}}]
[{"$f":"IF(#REF!=\"\",1,0)","v":{"$error":"#REF!"}}]
[{"$f":"IF(#REF!=\"\",1,0)","v":{"$error":"#REF!"}}]
[{"$f":"IF(#REF!=\"\",1,0)","v":{"$error":"#REF!"}}]
[{"$f":"IF(#REF!=\"\",1,0)","v":{"$error":"#REF!"}}]
[{"$f":"IF(#REF!=\"\",1,0)","v":{"$error":"#REF!"}}]
[{"$f":"IF(#REF!=\"\",1,0)","v":{"$error":"#REF!"}}]
[{"$f":"IF(#REF!=\"\",1,0)","v":{"$error":"#REF!"}}]
[{"$f":"IF(#REF!=\"\",1,0)","v":{"$error":"#REF!"}}]
[{"$f":"IF(#REF!=\"\",1,0)","v":{"$error":"#REF!"}}]
[{"$f":"IF(#REF!=\"\",1,0)","v":{"$error":"#REF!"}}]
[{"$f":"IF(#REF!=\"\",1,0)","v":{"$error":"#REF!"}}]
[{"$f":"IF(#REF!=\"\",1,0)","v":{"$error":"#REF!"}}]
[{"$f":"IF(#REF!=\"\",1,0)","v":{"$error":"#REF!"}}]
[{"$f":"IF(#REF!=\"\",1,0)","v":{"$error":"#REF!"}}]
[{"$f":"IF(#REF!=\"\",1,0)","v":{"$error":"#REF!"}}]
[{"$f":"IF(#REF!=\"\",1,0)","v":{"$error":"#REF!"}}]
[{"$f":"IF(#REF!=\"\",1,0)","v":{"$error":"#REF!"}}]
[{"$f":"IF(#REF!=\"\",1,0)","v":{"$error":"#REF!"}}]
[{"$f":"IF(#REF!=\"\",1,0)","v":{"$error":"#REF!"}}]
[{"$f":"IF(#REF!=\"\",1,0)","v":{"$error":"#REF!"}}]
[{"$f":"IF(#REF!=\"\",1,0)","v":{"$error":"#REF!"}}]
[{"$f":"IF(#REF!=\"\",1,0)","v":{"$error":"#REF!"}}]
[{"$f":"IF(#REF!=\"\",1,0)","v":{"$error":"#REF!"}}]
[{"$f":"IF(#REF!=\"\",1,0)","v":{"$error":"#REF!"}}]
[{"$f":"IF(#REF!=\"\",1,0)","v":{"$error":"#REF!"}}]
[{"$f":"IF(#REF!=\"\",1,0)","v":{"$error":"#REF!"}}]
[{"$f":"IF(#REF!=\"\",1,0)","v":{"$error":"#REF!"}}]
[{"$f":"IF(#REF!=\"\",1,0)","v":{"$error":"#REF!"}}]
[{"$f":"IF(#REF!=\"\",1,0)","v":{"$error":"#REF!"}}]
[{"$f":"IF(#REF!=\"\",1,0)","v":{"$error":"#REF!"}}]
[{"$f":"IF(#REF!=\"\",1,0)","v":{"$error":"#REF!"}}]
[{"$f":"IF(#REF!=\"\",1,0)","v":{"$error":"#REF!"}}]
[{"$f":"IF(#REF!=\"\",1,0)","v":{"$error":"#REF!"}}]
[{"$f":"IF(#REF!=\"\",1,0)","v":{"$error":"#REF!"}}]
[{"$f":"IF(#REF!=\"\",1,0)","v":{"$error":"#REF!"}}]
[{"$f":"IF(#REF!=\"\",1,0)","v":{"$error":"#REF!"}}]
[{"$f":"IF(#REF!=\"\",1,0)","v":{"$error":"#REF!"}}]
[{"$f":"IF(#REF!=\"\",1,0)","v":{"$error":"#REF!"}}]
[{"$f":"IF(#REF!=\"\",1,0)","v":{"$error":"#REF!"}}]
[{"$f":"IF(#REF!=\"\",1,0)","v":{"$error":"#REF!"}}]
[{"$f":"IF(#REF!=\"\",1,0)","v":{"$error":"#REF!"}}]
[{"$f":"IF(#REF!=\"\",1,0)","v":{"$error":"#REF!"}}]
[{"$f":"IF(#REF!=\"\",1,0)","v":{"$error":"#REF!"}}]
[{"$f":"IF(#REF!=\"\",1,0)","v":{"$error":"#REF!"}}]
[{"$f":"IF(#REF!=\"\",1,0)","v":{"$error":"#REF!"}}]
[{"$f":"IF(#REF!=\"\",1,0)","v":{"$error":"#REF!"}}]
[{"$f":"IF(#REF!=\"\",1,0)","v":{"$error":"#REF!"}}]
[{"$f":"IF(#REF!=\"\",1,0)","v":{"$error":"#REF!"}}]
[{"$f":"IF(#REF!=\"\",1,0)","v":{"$error":"#REF!"}}]
[{"$f":"IF(#REF!=\"\",1,0)","v":{"$error":"#REF!"}}]
[{"$f":"IF(#REF!=\"\",1,0)","v":{"$error":"#REF!"}}]
[{"$f":"IF(#REF!=\"\",1,0)","v":{"$error":"#REF!"}}]
[{"$f":"IF(#REF!=\"\",1,0)","v":{"$error":"#REF!"}}]
[{"$f":"IF(#REF!=\"\",1,0)","v":{"$error":"#REF!"}}]
[{"$f":"IF(#REF!=\"\",1,0)","v":{"$error":"#REF!"}}]
[{"$f":"IF(#REF!=\"\",1,0)","v":{"$error":"#REF!"}}]
[{"$f":"IF(#REF!=\"\",1,0)","v":{"$error":"#REF!"}}]
[{"$f":"IF(#REF!=\"\",1,0)","v":{"$error":"#REF!"}}]
[{"$f":"IF(#REF!=\"\",1,0)","v":{"$error":"#REF!"}}]
[{"$f":"IF(#REF!=\"\",1,0)","v":{"$error":"#REF!"}}]
[{"$f":"IF(#REF!=\"\",1,0)","v":{"$error":"#REF!"}}]
[{"$f":"IF(#REF!=\"\",1,0)","v":{"$error":"#REF!"}}]
[{"$f":"IF(#REF!=\"\",1,0)","v":{"$error":"#REF!"}}]
[{"$f":"IF(#REF!=\"\",1,0)","v":{"$error":"#REF!"}}]
[{"$f":"IF(#REF!=\"\",1,0)","v":{"$error":"#REF!"}}]
[{"$f":"IF(#REF!=\"\",1,0)","v":{"$error":"#REF!"}}]
[{"$f":"IF(#REF!=\"\",1,0)","v":{"$error":"#REF!"}}]
[{"$f":"IF(#REF!=\"\",1,0)","v":{"$error":"#REF!"}}]
[{"$f":"IF(#REF!=\"\",1,0)","v":{"$error":"#REF!"}}]
[{"$f":"IF(#REF!=\"\",1,0)","v":{"$error":"#REF!"}}]
[{"$f":"IF(#REF!=\"\",1,0)","v":{"$error":"#REF!"}}]
[{"$f":"IF(#REF!=\"\",1,0)","v":{"$error":"#REF!"}}]
[{"$f":"IF(#REF!=\"\",1,0)","v":{"$error":"#REF!"}}]
[{"$f":"IF(#REF!=\"\",1,0)","v":{"$error":"#REF!"}}]
[{"$f":"IF(#REF!=\"\",1,0)","v":{"$error":"#REF!"}}]
[{"$f":"IF(#REF!=\"\",1,0)","v":{"$error":"#REF!"}}]
[{"$f":"IF(#REF!=\"\",1,0)","v":{"$error":"#REF!"}}]
[{"$f":"IF(#REF!=\"\",1,0)","v":{"$error":"#REF!"}}]
[{"$f":"IF(#REF!=\"\",1,0)","v":{"$error":"#REF!"}}]
[{"$f":"IF(#REF!=\"\",1,0)","v":{"$error":"#REF!"}}]
[{"$f":"IF(#REF!=\"\",1,0)","v":{"$error":"#REF!"}}]
[{"$f":"IF(#REF!=\"\",1,0)","v":{"$error":"#REF!"}}]
[{"$f":"IF(#REF!=\"\",1,0)","v":{"$error":"#REF!"}}]
[{"$f":"IF(#REF!=\"\",1,0)","v":{"$error":"#REF!"}}]
[{"$f":"IF(#REF!=\"\",1,0)","v":{"$error":"#REF!"}}]
[{"$f":"IF(#REF!=\"\",1,0)","v":{"$error":"#REF!"}}]
[{"$f":"IF(#REF!=\"\",1,0)","v":{"$error":"#REF!"}}]
[{"$f":"IF(#REF!=\"\",1,0)","v":{"$error":"#REF!"}}]
[{"$f":"IF(#REF!=\"\",1,0)","v":{"$error":"#REF!"}}]
[{"$f":"IF(#REF!=\"\",1,0)","v":{"$error":"#REF!"}}]
[{"$f":"IF(#REF!=\"\",1,0)","v":{"$error":"#REF!"}}]
[{"$f":"IF(#REF!=\"\",1,0)","v":{"$error":"#REF!"}}]
[{"$f":"IF(#REF!=\"\",1,0)","v":{"$error":"#REF!"}}]
[{"$f":"IF(#REF!=\"\",1,0)","v":{"$error":"#REF!"}}]
[{"$f":"IF(#REF!=\"\",1,0)","v":{"$error":"#REF!"}}]
[{"$f":"IF(#REF!=\"\",1,0)","v":{"$error":"#REF!"}}]
[{"$f":"IF(#REF!=\"\",1,0)","v":{"$error":"#REF!"}}]
[{"$f":"IF(#REF!=\"\",1,0)","v":{"$error":"#REF!"}}]
[{"$f":"IF(#REF!=\"\",1,0)","v":{"$error":"#REF!"}}]
[{"$f":"IF(#REF!=\"\",1,0)","v":{"$error":"#REF!"}}]
[{"$f":"IF(#REF!=\"\",1,0)","v":{"$error":"#REF!"}}]
[{"$f":"IF(#REF!=\"\",1,0)","v":{"$error":"#REF!"}}]
[{"$f":"IF(#REF!=\"\",1,0)","v":{"$error":"#REF!"}}]
[{"$f":"IF(#REF!=\"\",1,0)","v":{"$error":"#REF!"}}]
[{"$f":"IF(#REF!=\"\",1,0)","v":{"$error":"#REF!"}}]
[{"$f":"IF(#REF!=\"\",1,0)","v":{"$error":"#REF!"}}]
[{"$f":"IF(#REF!=\"\",1,0)","v":{"$error":"#REF!"}}]
[{"$f":"IF(#REF!=\"\",1,0)","v":{"$error":"#REF!"}}]
[{"$f":"IF(#REF!=\"\",1,0)","v":{"$error":"#REF!"}}]
[{"$f":"IF(#REF!=\"\",1,0)","v":{"$error":"#REF!"}}]
[{"$f":"IF(#REF!=\"\",1,0)","v":{"$error":"#REF!"}}]
[{"$f":"IF(#REF!=\"\",1,0)","v":{"$error":"#REF!"}}]
[{"$f":"IF(#REF!=\"\",1,0)","v":{"$error":"#REF!"}}]
[{"$f":"IF(#REF!=\"\",1,0)","v":{"$error":"#REF!"}}]
[{"$f":"IF(#REF!=\"\",1,0)","v":{"$error":"#REF!"}}]
[{"$f":"IF(#REF!=\"\",1,0)","v":{"$error":"#REF!"}}]
[{"$f":"IF(#REF!=\"\",1,0)","v":{"$error":"#REF!"}}]
[{"$f":"IF(#REF!=\"\",1,0)","v":{"$error":"#REF!"}}]
[{"$f":"IF(#REF!=\"\",1,0)","v":{"$error":"#REF!"}}]
[{"$f":"IF(#REF!=\"\",1,0)","v":{"$error":"#REF!"}}]
[{"$f":"IF(#REF!=\"\",1,0)","v":{"$error":"#REF!"}}]
[{"$f":"IF(#REF!=\"\",1,0)","v":{"$error":"#REF!"}}]
[{"$f":"IF(#REF!=\"\",1,0)","v":{"$error":"#REF!"}}]
[{"$f":"IF(#REF!=\"\",1,0)","v":{"$error":"#REF!"}}]
[{"$f":"IF(#REF!=\"\",1,0)","v":{"$error":"#REF!"}}]
[{"$f":"IF(#REF!=\"\",1,0)","v":{"$error":"#REF!"}}]
[{"$f":"IF(#REF!=\"\",1,0)","v":{"$error":"#REF!"}}]
[{"$f":"IF(#REF!=\"\",1,0)","v":{"$error":"#REF!"}}]
[{"$f":"IF(#REF!=\"\",1,0)","v":{"$error":"#REF!"}}]
[{"$f":"IF(#REF!=\"\",1,0)","v":{"$error":"#REF!"}}]
[{"$f":"IF(#REF!=\"\",1,0)","v":{"$error":"#REF!"}}]
[{"$f":"IF(#REF!=\"\",1,0)","v":{"$error":"#REF!"}}]
[{"$f":"IF(#REF!=\"\",1,0)","v":{"$error":"#REF!"}}]
[{"$f":"IF(#REF!=\"\",1,0)","v":{"$error":"#REF!"}}]
[{"$f":"IF(#REF!=\"\",1,0)","v":{"$error":"#REF!"}}]
[{"$f":"IF(#REF!=\"\",1,0)","v":{"$error":"#REF!"}}]
[{"$f":"IF(#REF!=\"\",1,0)","v":{"$error":"#REF!"}}]
[{"$f":"IF(#REF!=\"\",1,0)","v":{"$error":"#REF!"}}]
[{"$f":"IF(#REF!=\"\",1,0)","v":{"$error":"#REF!"}}]
[{"$f":"IF(#REF!=\"\",1,0)","v":{"$error":"#REF!"}}]
[{"$f":"IF(#REF!=\"\",1,0)","v":{"$error":"#REF!"}}]
[{"$f":"IF(#REF!=\"\",1,0)","v":{"$error":"#REF!"}}]
[{"$f":"IF(#REF!=\"\",1,0)","v":{"$error":"#REF!"}}]
[{"$f":"IF(#REF!=\"\",1,0)","v":{"$error":"#REF!"}}]
[{"$f":"IF(#REF!=\"\",1,0)","v":{"$error":"#REF!"}}]
[{"$f":"IF(#REF!=\"\",1,0)","v":{"$error":"#REF!"}}]
[{"$f":"IF(#REF!=\"\",1,0)","v":{"$error":"#REF!"}}]
[{"$f":"IF(#REF!=\"\",1,0)","v":{"$error":"#REF!"}}]
[{"$f":"IF(#REF!=\"\",1,0)","v":{"$error":"#REF!"}}]
[{"$f":"IF(#REF!=\"\",1,0)","v":{"$error":"#REF!"}}]
[{"$f":"IF(#REF!=\"\",1,0)","v":{"$error":"#REF!"}}]
[{"$f":"IF(#REF!=\"\",1,0)","v":{"$error":"#REF!"}}]
[{"$f":"IF(#REF!=\"\",1,0)","v":{"$error":"#REF!"}}]
[{"$f":"IF(#REF!=\"\",1,0)","v":{"$error":"#REF!"}}]
[{"$f":"IF(#REF!=\"\",1,0)","v":{"$error":"#REF!"}}]
[{"$f":"IF(#REF!=\"\",1,0)","v":{"$error":"#REF!"}}]
[{"$f":"IF(#REF!=\"\",1,0)","v":{"$error":"#REF!"}}]
[{"$f":"IF(#REF!=\"\",1,0)","v":{"$error":"#REF!"}}]
[{"$f":"IF(#REF!=\"\",1,0)","v":{"$error":"#REF!"}}]
[{"$f":"IF(#REF!=\"\",1,0)","v":{"$error":"#REF!"}}]
[{"$f":"IF(#REF!=\"\",1,0)","v":{"$error":"#REF!"}}]
[{"$f":"IF(#REF!=\"\",1,0)","v":{"$error":"#REF!"}}]
[{"$f":"IF(#REF!=\"\",1,0)","v":{"$error":"#REF!"}}]
[{"$f":"IF(#REF!=\"\",1,0)","v":{"$error":"#REF!"}}]
[{"$f":"IF(#REF!=\"\",1,0)","v":{"$error":"#REF!"}}]
[{"$f":"IF(#REF!=\"\",1,0)","v":{"$error":"#REF!"}}]
[{"$f":"IF(#REF!=\"\",1,0)","v":{"$error":"#REF!"}}]
[{"$f":"IF(#REF!=\"\",1,0)","v":{"$error":"#REF!"}}]
[{"$f":"IF(#REF!=\"\",1,0)","v":{"$error":"#REF!"}}]
[{"$f":"IF(#REF!=\"\",1,0)","v":{"$error":"#REF!"}}]
[{"$f":"IF(#REF!=\"\",1,0)","v":{"$error":"#REF!"}}]
[{"$f":"IF(#REF!=\"\",1,0)","v":{"$error":"#REF!"}}]
[{"$f":"IF(#REF!=\"\",1,0)","v":{"$error":"#REF!"}}]
[{"$f":"IF(#REF!=\"\",1,0)","v":{"$error":"#REF!"}}]
[{"$f":"IF(#REF!=\"\",1,0)","v":{"$error":"#REF!"}}]
[{"$f":"IF(#REF!=\"\",1,0)","v":{"$error":"#REF!"}}]
[{"$f":"IF(#REF!=\"\",1,0)","v":{"$error":"#REF!"}}]
[{"$f":"IF(#REF!=\"\",1,0)","v":{"$error":"#REF!"}}]
[{"$f":"IF(#REF!=\"\",1,0)","v":{"$error":"#REF!"}}]
[{"$f":"IF(#REF!=\"\",1,0)","v":{"$error":"#REF!"}}]
[{"$f":"IF(#REF!=\"\",1,0)","v":{"$error":"#REF!"}}]
[{"$f":"IF(#REF!=\"\",1,0)","v":{"$error":"#REF!"}}]
[{"$f":"IF(#REF!=\"\",1,0)","v":{"$error":"#REF!"}}]
[{"$f":"IF(#REF!=\"\",1,0)","v":{"$error":"#REF!"}}]
[{"$f":"IF(#REF!=\"\",1,0)","v":{"$error":"#REF!"}}]
[{"$f":"IF(#REF!=\"\",1,0)","v":{"$error":"#REF!"}}]
[{"$f":"IF(#REF!=\"\",1,0)","v":{"$error":"#REF!"}}]
[{"$f":"IF(#REF!=\"\",1,0)","v":{"$error":"#REF!"}}]
[{"$f":"IF(#REF!=\"\",1,0)","v":{"$error":"#REF!"}}]
[{"$f":"IF(#REF!=\"\",1,0)","v":{"$error":"#REF!"}}]
[{"$f":"IF(#REF!=\"\",1,0)","v":{"$error":"#REF!"}}]
[{"$f":"IF(#REF!=\"\",1,0)","v":{"$error":"#REF!"}}]
[{"$f":"IF(#REF!=\"\",1,0)","v":{"$error":"#REF!"}}]
[{"$f":"IF(#REF!=\"\",1,0)","v":{"$error":"#REF!"}}]
[{"$f":"IF(#REF!=\"\",1,0)","v":{"$error":"#REF!"}}]
[{"$f":"IF(#REF!=\"\",1,0)","v":{"$error":"#REF!"}}]
[{"$f":"IF(#REF!=\"\",1,0)","v":{"$error":"#REF!"}}]
[{"$f":"IF(#REF!=\"\",1,0)","v":{"$error":"#REF!"}}]
[{"$f":"IF(#REF!=\"\",1,0)","v":{"$error":"#REF!"}}]
[{"$f":"IF(#REF!=\"\",1,0)","v":{"$error":"#REF!"}}]
[{"$f":"IF(#REF!=\"\",1,0)","v":{"$error":"#REF!"}}]
[{"$f":"IF(#REF!=\"\",1,0)","v":{"$error":"#REF!"}}]
[{"$f":"IF(#REF!=\"\",1,0)","v":{"$error":"#REF!"}}]
[{"$f":"IF(#REF!=\"\",1,0)","v":{"$error":"#REF!"}}]
[{"$f":"IF(#REF!=\"\",1,0)","v":{"$error":"#REF!"}}]
[{"$f":"IF(#REF!=\"\",1,0)","v":{"$error":"#REF!"}}]
[{"$f":"IF(#REF!=\"\",1,0)","v":{"$error":"#REF!"}}]
[{"$f":"IF(#REF!=\"\",1,0)","v":{"$error":"#REF!"}}]
[{"$f":"IF(#REF!=\"\",1,0)","v":{"$error":"#REF!"}}]
[{"$f":"IF(#REF!=\"\",1,0)","v":{"$error":"#REF!"}}]
[{"$f":"IF(#REF!=\"\",1,0)","v":{"$error":"#REF!"}}]
[{"$f":"IF(#REF!=\"\",1,0)","v":{"$error":"#REF!"}}]
[{"$f":"IF(#REF!=\"\",1,0)","v":{"$error":"#REF!"}}]
[{"$f":"IF(#REF!=\"\",1,0)","v":{"$error":"#REF!"}}]
[{"$f":"IF(#REF!=\"\",1,0)","v":{"$error":"#REF!"}}]
[{"$f":"IF(#REF!=\"\",1,0)","v":{"$error":"#REF!"}}]
[{"$f":"IF(#REF!=\"\",1,0)","v":{"$error":"#REF!"}}]
[{"$f":"IF(#REF!=\"\",1,0)","v":{"$error":"#REF!"}}]
[{"$f":"IF(#REF!=\"\",1,0)","v":{"$error":"#REF!"}}]
[{"$f":"IF(#REF!=\"\",1,0)","v":{"$error":"#REF!"}}]
[{"$f":"IF(#REF!=\"\",1,0)","v":{"$error":"#REF!"}}]
[{"$f":"IF(#REF!=\"\",1,0)","v":{"$error":"#REF!"}}]
[{"$f":"IF(#REF!=\"\",1,0)","v":{"$error":"#REF!"}}]
[{"$f":"IF(#REF!=\"\",1,0)","v":{"$error":"#REF!"}}]
[{"$f":"IF(#REF!=\"\",1,0)","v":{"$error":"#REF!"}}]
[{"$f":"IF(#REF!=\"\",1,0)","v":{"$error":"#REF!"}}]
[{"$f":"IF(#REF!=\"\",1,0)","v":{"$error":"#REF!"}}]
[{"$f":"IF(#REF!=\"\",1,0)","v":{"$error":"#REF!"}}]
[{"$f":"IF(#REF!=\"\",1,0)","v":{"$error":"#REF!"}}]
[{"$f":"IF(#REF!=\"\",1,0)","v":{"$error":"#REF!"}}]
[{"$f":"IF(#REF!=\"\",1,0)","v":{"$error":"#REF!"}}]
[{"$f":"IF(#REF!=\"\",1,0)","v":{"$error":"#REF!"}}]
[{"$f":"IF(#REF!=\"\",1,0)","v":{"$error":"#REF!"}}]
[{"$f":"IF(#REF!=\"\",1,0)","v":{"$error":"#REF!"}}]
[{"$f":"IF(#REF!=\"\",1,0)","v":{"$error":"#REF!"}}]
[{"$f":"IF(#REF!=\"\",1,0)","v":{"$error":"#REF!"}}]
[{"$f":"IF(#REF!=\"\",1,0)","v":{"$error":"#REF!"}}]
[{"$f":"IF(#REF!=\"\",1,0)","v":{"$error":"#REF!"}}]
[{"$f":"IF(#REF!=\"\",1,0)","v":{"$error":"#REF!"}}]
[{"$f":"IF(#REF!=\"\",1,0)","v":{"$error":"#REF!"}}]
[{"$f":"IF(#REF!=\"\",1,0)","v":{"$error":"#REF!"}}]
[{"$f":"IF(#REF!=\"\",1,0)","v":{"$error":"#REF!"}}]
[{"$f":"IF(#REF!=\"\",1,0)","v":{"$error":"#REF!"}}]
[{"$f":"IF(#REF!=\"\",1,0)","v":{"$error":"#REF!"}}]
[{"$f":"IF(#REF!=\"\",1,0)","v":{"$error":"#REF!"}}]
[{"$f":"IF(#REF!=\"\",1,0)","v":{"$error":"#REF!"}}]
[{"$f":"IF(#REF!=\"\",1,0)","v":{"$error":"#REF!"}}]
[{"$f":"IF(#REF!=\"\",1,0)","v":{"$error":"#REF!"}}]
[{"$f":"IF(#REF!=\"\",1,0)","v":{"$error":"#REF!"}}]
[{"$f":"IF(#REF!=\"\",1,0)","v":{"$error":"#REF!"}}]
[{"$f":"IF(#REF!=\"\",1,0)","v":{"$error":"#REF!"}}]
[{"$f":"IF(#REF!=\"\",1,0)","v":{"$error":"#REF!"}}]
[{"$f":"IF(#REF!=\"\",1,0)","v":{"$error":"#REF!"}}]
[{"$f":"IF(#REF!=\"\",1,0)","v":{"$error":"#REF!"}}]
[{"$f":"IF(#REF!=\"\",1,0)","v":{"$error":"#REF!"}}]
[{"$f":"IF(#REF!=\"\",1,0)","v":{"$error":"#REF!"}}]
[{"$f":"IF(#REF!=\"\",1,0)","v":{"$error":"#REF!"}}]
[{"$f":"IF(#REF!=\"\",1,0)","v":{"$error":"#REF!"}}]
[{"$f":"IF(#REF!=\"\",1,0)","v":{"$error":"#REF!"}}]
[{"$f":"IF(#REF!=\"\",1,0)","v":{"$error":"#REF!"}}]
[{"$f":"IF(#REF!=\"\",1,0)","v":{"$error":"#REF!"}}]
[{"$f":"IF(#REF!=\"\",1,0)","v":{"$error":"#REF!"}}]
[{"$f":"IF(#REF!=\"\",1,0)","v":{"$error":"#REF!"}}]
[{"$f":"IF(#REF!=\"\",1,0)","v":{"$error":"#REF!"}}]
[{"$f":"IF(#REF!=\"\",1,0)","v":{"$error":"#REF!"}}]
[{"$f":"IF(#REF!=\"\",1,0)","v":{"$error":"#REF!"}}]
[{"$f":"IF(#REF!=\"\",1,0)","v":{"$error":"#REF!"}}]
[{"$f":"IF(#REF!=\"\",1,0)","v":{"$error":"#REF!"}}]
[{"$f":"IF(#REF!=\"\",1,0)","v":{"$error":"#REF!"}}]
[{"$f":"IF(#REF!=\"\",1,0)","v":{"$error":"#REF!"}}]
[{"$f":"IF(#REF!=\"\",1,0)","v":{"$error":"#REF!"}}]
[{"$f":"IF(#REF!=\"\",1,0)","v":{"$error":"#REF!"}}]
[{"$f":"IF(#REF!=\"\",1,0)","v":{"$error":"#REF!"}}]
[{"$f":"IF(#REF!=\"\",1,0)","v":{"$error":"#REF!"}}]
[{"$f":"IF(#REF!=\"\",1,0)","v":{"$error":"#REF!"}}]
[{"$f":"IF(#REF!=\"\",1,0)","v":{"$error":"#REF!"}}]
[{"$f":"IF(#REF!=\"\",1,0)","v":{"$error":"#REF!"}}]
[{"$f":"IF(#REF!=\"\",1,0)","v":{"$error":"#REF!"}}]
[{"$f":"IF(#REF!=\"\",1,0)","v":{"$error":"#REF!"}}]
[{"$f":"IF(#REF!=\"\",1,0)","v":{"$error":"#REF!"}}]
[{"$f":"IF(#REF!=\"\",1,0)","v":{"$error":"#REF!"}}]
[{"$f":"IF(#REF!=\"\",1,0)","v":{"$error":"#REF!"}}]
[{"$f":"IF(#REF!=\"\",1,0)","v":{"$error":"#REF!"}}]
[{"$f":"IF(#REF!=\"\",1,0)","v":{"$error":"#REF!"}}]
[{"$f":"IF(#REF!=\"\",1,0)","v":{"$error":"#REF!"}}]
[{"$f":"IF(#REF!=\"\",1,0)","v":{"$error":"#REF!"}}]
[{"$f":"IF(#REF!=\"\",1,0)","v":{"$error":"#REF!"}}]
[{"$f":"IF(#REF!=\"\",1,0)","v":{"$error":"#REF!"}}]
[{"$f":"IF(#REF!=\"\",1,0)","v":{"$error":"#REF!"}}]
[{"$f":"IF(#REF!=\"\",1,0)","v":{"$error":"#REF!"}}]
[{"$f":"IF(#REF!=\"\",1,0)","v":{"$error":"#REF!"}}]
[{"$f":"IF(#REF!=\"\",1,0)","v":{"$error":"#REF!"}}]
[{"$f":"IF(#REF!=\"\",1,0)","v":{"$error":"#REF!"}}]
[{"$f":"IF(#REF!=\"\",1,0)","v":{"$error":"#REF!"}}]
[{"$f":"IF(#REF!=\"\",1,0)","v":{"$error":"#REF!"}}]
[{"$f":"IF(#REF!=\"\",1,0)","v":{"$error":"#REF!"}}]
[{"$f":"IF(#REF!=\"\",1,0)","v":{"$error":"#REF!"}}]
[{"$f":"IF(#REF!=\"\",1,0)","v":{"$error":"#REF!"}}]
[{"$f":"IF(#REF!=\"\",1,0)","v":{"$error":"#REF!"}}]
[{"$f":"IF(#REF!=\"\",1,0)","v":{"$error":"#REF!"}}]
[{"$f":"IF(#REF!=\"\",1,0)","v":{"$error":"#REF!"}}]
[{"$f":"IF(#REF!=\"\",1,0)","v":{"$error":"#REF!"}}]
[{"$f":"IF(#REF!=\"\",1,0)","v":{"$error":"#REF!"}}]
[{"$f":"IF(#REF!=\"\",1,0)","v":{"$error":"#REF!"}}]
[{"$f":"IF(#REF!=\"\",1,0)","v":{"$error":"#REF!"}}]
[{"$f":"IF(#REF!=\"\",1,0)","v":{"$error":"#REF!"}}]
[{"$f":"IF(#REF!=\"\",1,0)","v":{"$error":"#REF!"}}]
[{"$f":"IF(#REF!=\"\",1,0)","v":{"$error":"#REF!"}}]
[{"$f":"IF(#REF!=\"\",1,0)","v":{"$error":"#REF!"}}]
[{"$f":"IF(#REF!=\"\",1,0)","v":{"$error":"#REF!"}}]
[{"$f":"IF(#REF!=\"\",1,0)","v":{"$error":"#REF!"}}]
[{"$f":"IF(#REF!=\"\",1,0)","v":{"$error":"#REF!"}}]
[{"$f":"IF(#REF!=\"\",1,0)","v":{"$error":"#REF!"}}]
[{"$f":"IF(#REF!=\"\",1,0)","v":{"$error":"#REF!"}}]
[{"$f":"IF(#REF!=\"\",1,0)","v":{"$error":"#REF!"}}]
[{"$f":"IF(#REF!=\"\",1,0)","v":{"$error":"#REF!"}}]
[{"$f":"IF(#REF!=\"\",1,0)","v":{"$error":"#REF!"}}]
[{"$f":"IF(#REF!=\"\",1,0)","v":{"$error":"#REF!"}}]
[{"$f":"IF(#REF!=\"\",1,0)","v":{"$error":"#REF!"}}]
[{"$f":"IF(#REF!=\"\",1,0)","v":{"$error":"#REF!"}}]
[{"$f":"IF(#REF!=\"\",1,0)","v":{"$error":"#REF!"}}]
[{"$f":"IF(#REF!=\"\",1,0)","v":{"$error":"#REF!"}}]
[{"$f":"IF(#REF!=\"\",1,0)","v":{"$error":"#REF!"}}]
[{"$f":"IF(#REF!=\"\",1,0)","v":{"$error":"#REF!"}}]
[{"$f":"IF(#REF!=\"\",1,0)","v":{"$error":"#REF!"}}]
[{"$f":"IF(#REF!=\"\",1,0)","v":{"$error":"#REF!"}}]
[{"$f":"IF(#REF!=\"\",1,0)","v":{"$error":"#REF!"}}]
[{"$f":"IF(#REF!=\"\",1,0)","v":{"$error":"#REF!"}}]
[{"$f":"IF(#REF!=\"\",1,0)","v":{"$error":"#REF!"}}]
[{"$f":"IF(#REF!=\"\",1,0)","v":{"$error":"#REF!"}}]
[{"$f":"IF(#REF!=\"\",1,0)","v":{"$error":"#REF!"}}]
[{"$f":"IF(#REF!=\"\",1,0)","v":{"$error":"#REF!"}}]
[{"$f":"IF(#REF!=\"\",1,0)","v":{"$error":"#REF!"}}]
[{"$f":"IF(#REF!=\"\",1,0)","v":{"$error":"#REF!"}}]
[{"$f":"IF(#REF!=\"\",1,0)","v":{"$error":"#REF!"}}]
[{"$f":"IF(#REF!=\"\",1,0)","v":{"$error":"#REF!"}}]
[{"$f":"IF(#REF!=\"\",1,0)","v":{"$error":"#REF!"}}]
[{"$f":"IF(#REF!=\"\",1,0)","v":{"$error":"#REF!"}}]
[{"$f":"IF(#REF!=\"\",1,0)","v":{"$error":"#REF!"}}]
[{"$f":"IF(#REF!=\"\",1,0)","v":{"$error":"#REF!"}}]
[{"$f":"IF(#REF!=\"\",1,0)","v":{"$error":"#REF!"}}]
[{"$f":"IF(#REF!=\"\",1,0)","v":{"$error":"#REF!"}}]
[{"$f":"IF(#REF!=\"\",1,0)","v":{"$error":"#REF!"}}]
[{"$f":"IF(#REF!=\"\",1,0)","v":{"$error":"#REF!"}}]
[{"$f":"IF(#REF!=\"\",1,0)","v":{"$error":"#REF!"}}]
[{"$f":"IF(#REF!=\"\",1,0)","v":{"$error":"#REF!"}}]
[{"$f":"IF(#REF!=\"\",1,0)","v":{"$error":"#REF!"}}]
[{"$f":"IF(#REF!=\"\",1,0)","v":{"$error":"#REF!"}}]
[{"$f":"IF(#REF!=\"\",1,0)","v":{"$error":"#REF!"}}]
[{"$f":"IF(#REF!=\"\",1,0)","v":{"$error":"#REF!"}}]
[{"$f":"IF(#REF!=\"\",1,0)","v":{"$error":"#REF!"}}]
[{"$f":"IF(#REF!=\"\",1,0)","v":{"$error":"#REF!"}}]
[{"$f":"IF(#REF!=\"\",1,0)","v":{"$error":"#REF!"}}]
[{"$f":"IF(#REF!=\"\",1,0)","v":{"$error":"#REF!"}}]
[{"$f":"IF(#REF!=\"\",1,0)","v":{"$error":"#REF!"}}]
[{"$f":"IF(#REF!=\"\",1,0)","v":{"$error":"#REF!"}}]
[{"$f":"IF(#REF!=\"\",1,0)","v":{"$error":"#REF!"}}]
[{"$f":"IF(#REF!=\"\",1,0)","v":{"$error":"#REF!"}}]
[{"$f":"IF(#REF!=\"\",1,0)","v":{"$error":"#REF!"}}]
[{"$f":"IF(#REF!=\"\",1,0)","v":{"$error":"#REF!"}}]
[{"$f":"IF(#REF!=\"\",1,0)","v":{"$error":"#REF!"}}]
[{"$f":"IF(#REF!=\"\",1,0)","v":{"$error":"#REF!"}}]
[{"$f":"IF(#REF!=\"\",1,0)","v":{"$error":"#REF!"}}]
[{"$f":"IF(#REF!=\"\",1,0)","v":{"$error":"#REF!"}}]
[{"$f":"IF(#REF!=\"\",1,0)","v":{"$error":"#REF!"}}]
[{"$f":"IF(#REF!=\"\",1,0)","v":{"$error":"#REF!"}}]
[{"$f":"IF(#REF!=\"\",1,0)","v":{"$error":"#REF!"}}]
[{"$f":"IF(#REF!=\"\",1,0)","v":{"$error":"#REF!"}}]
[{"$f":"IF(#REF!=\"\",1,0)","v":{"$error":"#REF!"}}]
[{"$f":"IF(#REF!=\"\",1,0)","v":{"$error":"#REF!"}}]
[{"$f":"IF(#REF!=\"\",1,0)","v":{"$error":"#REF!"}}]
[{"$f":"IF(#REF!=\"\",1,0)","v":{"$error":"#REF!"}}]
[{"$f":"IF(#REF!=\"\",1,0)","v":{"$error":"#REF!"}}]
[{"$f":"IF(#REF!=\"\",1,0)","v":{"$error":"#REF!"}}]
[{"$f":"IF(#REF!=\"\",1,0)","v":{"$error":"#REF!"}}]
[{"$f":"IF(#REF!=\"\",1,0)","v":{"$error":"#REF!"}}]
[{"$f":"IF(#REF!=\"\",1,0)","v":{"$error":"#REF!"}}]
[{"$f":"IF(#REF!=\"\",1,0)","v":{"$error":"#REF!"}}]
[{"$f":"IF(#REF!=\"\",1,0)","v":{"$error":"#REF!"}}]
[{"$f":"IF(#REF!=\"\",1,0)","v":{"$error":"#REF!"}}]
[{"$f":"IF(#REF!=\"\",1,0)","v":{"$error":"#REF!"}}]
[{"$f":"IF(#REF!=\"\",1,0)","v":{"$error":"#REF!"}}]
[{"$f":"IF(#REF!=\"\",1,0)","v":{"$error":"#REF!"}}]
[{"$f":"IF(#REF!=\"\",1,0)","v":{"$error":"#REF!"}}]
[{"$f":"IF(#REF!=\"\",1,0)","v":{"$error":"#REF!"}}]
[{"$f":"IF(#REF!=\"\",1,0)","v":{"$error":"#REF!"}}]
[{"$f":"IF(#REF!=\"\",1,0)","v":{"$error":"#REF!"}}]
[{"$f":"IF(#REF!=\"\",1,0)","v":{"$error":"#REF!"}}]
[{"$f":"IF(#REF!=\"\",1,0)","v":{"$error":"#REF!"}}]
[{"$f":"IF(#REF!=\"\",1,0)","v":{"$error":"#REF!"}}]
[{"$f":"IF(#REF!=\"\",1,0)","v":{"$error":"#REF!"}}]
[{"$f":"IF(#REF!=\"\",1,0)","v":{"$error":"#REF!"}}]
[{"$f":"IF(#REF!=\"\",1,0)","v":{"$error":"#REF!"}}]
[{"$f":"IF(#REF!=\"\",1,0)","v":{"$error":"#REF!"}}]
[{"$f":"IF(#REF!=\"\",1,0)","v":{"$error":"#REF!"}}]
[{"$f":"IF(#REF!=\"\",1,0)","v":{"$error":"#REF!"}}]
[{"$f":"IF(#REF!=\"\",1,0)","v":{"$error":"#REF!"}}]
[{"$f":"IF(#REF!=\"\",1,0)","v":{"$error":"#REF!"}}]
[{"$f":"IF(#REF!=\"\",1,0)","v":{"$error":"#REF!"}}]
[{"$f":"IF(#REF!=\"\",1,0)","v":{"$error":"#REF!"}}]
[{"$f":"IF(#REF!=\"\",1,0)","v":{"$error":"#REF!"}}]
[{"$f":"IF(#REF!=\"\",1,0)","v":{"$error":"#REF!"}}]
[{"$f":"IF(#REF!=\"\",1,0)","v":{"$error":"#REF!"}}]
[{"$f":"IF(#REF!=\"\",1,0)","v":{"$error":"#REF!"}}]
[{"$f":"IF(#REF!=\"\",1,0)","v":{"$error":"#REF!"}}]
[{"$f":"IF(#REF!=\"\",1,0)","v":{"$error":"#REF!"}}]
[{"$f":"IF(#REF!=\"\",1,0)","v":{"$error":"#REF!"}}]
[{"$f":"IF(#REF!=\"\",1,0)","v":{"$error":"#REF!"}}]
[{"$f":"IF(#REF!=\"\",1,0)","v":{"$error":"#REF!"}}]
[{"$f":"IF(#REF!=\"\",1,0)","v":{"$error":"#REF!"}}]
[{"$f":"IF(#REF!=\"\",1,0)","v":{"$error":"#REF!"}}]
[{"$f":"IF(#REF!=\"\",1,0)","v":{"$error":"#REF!"}}]
[{"$f":"IF(#REF!=\"\",1,0)","v":{"$error":"#REF!"}}]
[{"$f":"IF(#REF!=\"\",1,0)","v":{"$error":"#REF!"}}]
[{"$f":"IF(#REF!=\"\",1,0)","v":{"$error":"#REF!"}}]
[{"$f":"IF(#REF!=\"\",1,0)","v":{"$error":"#REF!"}}]
[{"$f":"IF(#REF!=\"\",1,0)","v":{"$error":"#REF!"}}]
[{"$f":"IF(#REF!=\"\",1,0)","v":{"$error":"#REF!"}}]
[{"$f":"IF(#REF!=\"\",1,0)","v":{"$error":"#REF!"}}]
[{"$f":"IF(#REF!=\"\",1,0)","v":{"$error":"#REF!"}}]
[{"$f":"IF(#REF!=\"\",1,0)","v":{"$error":"#REF!"}}]
[{"$f":"IF(#REF!=\"\",1,0)","v":{"$error":"#REF!"}}]
[{"$f":"IF(#REF!=\"\",1,0)","v":{"$error":"#REF!"}}]
[{"$f":"IF(#REF!=\"\",1,0)","v":{"$error":"#REF!"}}]
[{"$f":"IF(#REF!=\"\",1,0)","v":{"$error":"#REF!"}}]
[{"$f":"IF(#REF!=\"\",1,0)","v":{"$error":"#REF!"}}]
[{"$f":"IF(#REF!=\"\",1,0)","v":{"$error":"#REF!"}}]
[{"$f":"IF(#REF!=\"\",1,0)","v":{"$error":"#REF!"}}]
[{"$f":"IF(#REF!=\"\",1,0)","v":{"$error":"#REF!"}}]
[{"$f":"IF(#REF!=\"\",1,0)","v":{"$error":"#REF!"}}]
[{"$f":"IF(#REF!=\"\",1,0)","v":{"$error":"#REF!"}}]
[{"$f":"IF(#REF!=\"\",1,0)","v":{"$error":"#REF!"}}]
[{"$f":"IF(#REF!=\"\",1,0)","v":{"$error":"#REF!"}}]
[{"$f":"IF(#REF!=\"\",1,0)","v":{"$error":"#REF!"}}]
[{"$f":"IF(#REF!=\"\",1,0)","v":{"$error":"#REF!"}}]
[{"$f":"IF(#REF!=\"\",1,0)","v":{"$error":"#REF!"}}]
[{"$f":"IF(#REF!=\"\",1,0)","v":{"$error":"#REF!"}}]
[{"$f":"IF(#REF!=\"\",1,0)","v":{"$error":"#REF!"}}]
[{"$f":"IF(#REF!=\"\",1,0)","v":{"$error":"#REF!"}}]
[{"$f":"IF(#REF!=\"\",1,0)","v":{"$error":"#REF!"}}]
[{"$f":"IF(#REF!=\"\",1,0)","v":{"$error":"#REF!"}}]
[{"$f":"IF(#REF!=\"\",1,0)","v":{"$error":"#REF!"}}]
[{"$f":"IF(#REF!=\"\",1,0)","v":{"$error":"#REF!"}}]
[{"$f":"IF(#REF!=\"\",1,0)","v":{"$error":"#REF!"}}]
[{"$f":"IF(#REF!=\"\",1,0)","v":{"$error":"#REF!"}}]
[{"$f":"IF(#REF!=\"\",1,0)","v":{"$error":"#REF!"}}]
[{"$f":"IF(#REF!=\"\",1,0)","v":{"$error":"#REF!"}}]
[{"$f":"IF(#REF!=\"\",1,0)","v":{"$error":"#REF!"}}]
[{"$f":"IF(#REF!=\"\",1,0)","v":{"$error":"#REF!"}}]
[{"$f":"IF(#REF!=\"\",1,0)","v":{"$error":"#REF!"}}]
[{"$f":"IF(#REF!=\"\",1,0)","v":{"$error":"#REF!"}}]
[{"$f":"IF(#REF!=\"\",1,0)","v":{"$error":"#REF!"}}]
[{"$f":"IF(#REF!=\"\",1,0)","v":{"$error":"#REF!"}}]
[{"$f":"IF(#REF!=\"\",1,0)","v":{"$error":"#REF!"}}]
[{"$f":"IF(#REF!=\"\",1,0)","v":{"$error":"#REF!"}}]
[{"$f":"IF(#REF!=\"\",1,0)","v":{"$error":"#REF!"}}]
[{"$f":"IF(#REF!=\"\",1,0)","v":{"$error":"#REF!"}}]
[{"$f":"IF(#REF!=\"\",1,0)","v":{"$error":"#REF!"}}]
[{"$f":"IF(#REF!=\"\",1,0)","v":{"$error":"#REF!"}}]
[{"$f":"IF(#REF!=\"\",1,0)","v":{"$error":"#REF!"}}]
[{"$f":"IF(#REF!=\"\",1,0)","v":{"$error":"#REF!"}}]
[{"$f":"IF(#REF!=\"\",1,0)","v":{"$error":"#REF!"}}]
[{"$f":"IF(#REF!=\"\",1,0)","v":{"$error":"#REF!"}}]
[{"$f":"IF(#REF!=\"\",1,0)","v":{"$error":"#REF!"}}]
[{"$f":"IF(#REF!=\"\",1,0)","v":{"$error":"#REF!"}}]
[{"$f":"IF(#REF!=\"\",1,0)","v":{"$error":"#REF!"}}]
[{"$f":"IF(#REF!=\"\",1,0)","v":{"$error":"#REF!"}}]
[{"$f":"IF(#REF!=\"\",1,0)","v":{"$error":"#REF!"}}]
[{"$f":"IF(#REF!=\"\",1,0)","v":{"$error":"#REF!"}}]
[{"$f":"IF(#REF!=\"\",1,0)","v":{"$error":"#REF!"}}]
[{"$f":"IF(#REF!=\"\",1,0)","v":{"$error":"#REF!"}}]
[{"$f":"IF(#REF!=\"\",1,0)","v":{"$error":"#REF!"}}]
[{"$f":"IF(#REF!=\"\",1,0)","v":{"$error":"#REF!"}}]
[{"$f":"IF(#REF!=\"\",1,0)","v":{"$error":"#REF!"}}]
[{"$f":"IF(#REF!=\"\",1,0)","v":{"$error":"#REF!"}}]
[{"$f":"IF(#REF!=\"\",1,0)","v":{"$error":"#REF!"}}]

{"sheet":"REESTR_LINK","index":12,"n_rows":3,"n_cols":3,"rows_kept":3,"cut":false,"hidden":true,"merged":[]}
["ID","LINK_NAME","REGION"]
[4189678,"https://portal.eias.ru/Portal/DownloadPage.aspx?type=12&guid=????????-????-????-????-????????????","ALL"]
[4190415,"https://eias.fstrf.ru/disclo/get_file?p_guid=????????-????-????-????-????????????","ALL"]

{"sheet":"REESTR_DS","index":13,"n_rows":6,"n_cols":2,"rows_kept":6,"cut":false,"hidden":true,"merged":[]}
[]
[]
[null,"городской округ \"Город Южно-Сахалинск\", городской округ \"Город Южно-Сахалинск\" (64701000);"]
[null,"территория 2"]
[null,"территория 3"]
[null,"территория 4"]

{"sheet":"modHTTP","index":14,"n_rows":0,"n_cols":0,"rows_kept":0,"cut":false,"hidden":true,"merged":[]}

{"sheet":"modfrmRezimChoose","index":15,"n_rows":0,"n_cols":0,"rows_kept":0,"cut":false,"hidden":true,"merged":[]}

{"sheet":"modSheetMain","index":16,"n_rows":1,"n_cols":2,"rows_kept":1,"cut":false,"hidden":true,"merged":[]}
["Форма","Листы"]

{"sheet":"REESTR_VT","index":17,"n_rows":5,"n_cols":2,"rows_kept":5,"cut":false,"hidden":true,"merged":[]}
["ID_TARIFF_NAME","TARIFF_NAME"]
[4213771,"Тариф на подключение (технологическое присоединение) к централизованной системе водоотведения в индивидуальном порядке"]
[4213772,"Тариф на подключение (технологическое присоединение) к централизованной системе водоотведения"]
[4213773,"Тариф на транспортировку сточных вод"]
[4213774,"Тариф на водоотведение"]

{"sheet":"REESTR_VED","index":18,"n_rows":4,"n_cols":2,"rows_kept":4,"cut":false,"hidden":true,"merged":[]}
["ID_TARIFF_NAME","VED_NAME"]
[4189714,"Водоотведение"]
[4189713,"Транспортировка"]
[4189712,"Подключение (технологическое присоединение) к централизованной системе водоотведения"]

{"sheet":"modfrmReestrObj","index":19,"n_rows":0,"n_cols":0,"rows_kept":0,"cut":false,"hidden":true,"merged":[]}

{"sheet":"AllSheetsInThisWorkbook","index":20,"n_rows":42,"n_cols":2,"rows_kept":42,"cut":false,"hidden":true,"merged":[]}
["Расчетные листы","Скрытые листы"]
["Instruction","modListTempFilter"]
["modUpdTemplLogger","modCheckCyan"]
["List00","REESTR_LINK"]
["List01","REESTR_DS"]
["List02","modHTTP"]
["List05_1","modfrmRezimChoose"]
["List06_1","modSheetMain"]
["List05_2","REESTR_VT"]
["List06_2","REESTR_VED"]
["List05_9","modfrmReestrObj"]
["List06_9","AllSheetsInThisWorkbook"]
["List05_10","TSH_et_union_vert"]
["List06_10","modInstruction"]
["List05_11","modRegion"]
["List11","modReestr"]
["List12","modfrmReestr"]
["List03","modUpdTemplMain"]
["List07","TSH_REESTR_ORG"]
["ListComm","modClassifierValidate"]
["ListCheck","modProv"]
[null,"modHyp"]
[null,"modServiceModule"]
[null,"modList00"]
[null,"modList01"]
[null,"modList02"]
[null,"modList03"]
[null,"TSH_et_union_hor"]
[null,"TSH_REESTR_MO_FILTER"]
[null,"TSH_REESTR_MO"]
[null,"TEHSHEET"]
[null,"modInfo"]
[null,"modList05"]
[null,"modList06"]
[null,"modList07"]
[null,"modList11"]
[null,"modList12"]
[null,"modfrmDateChoose"]
[null,"modComm"]
[null,"modThisWorkbook"]
[null,"modfrmReestrMR"]
[null,"modfrmCheckUpdates"]

{"sheet":"et_union_vert","index":21,"n_rows":0,"n_cols":0,"rows_kept":0,"cut":false,"hidden":true,"merged":[]}

{"sheet":"modInstruction","index":22,"n_rows":0,"n_cols":0,"rows_kept":0,"cut":false,"hidden":true,"merged":[]}

{"sheet":"modRegion","index":23,"n_rows":0,"n_cols":0,"rows_kept":0,"cut":false,"hidden":true,"merged":[]}

{"sheet":"modReestr","index":24,"n_rows":0,"n_cols":0,"rows_kept":0,"cut":false,"hidden":true,"merged":[]}

{"sheet":"modfrmReestr","index":25,"n_rows":0,"n_cols":0,"rows_kept":0,"cut":false,"hidden":true,"merged":[]}

{"sheet":"modUpdTemplMain","index":26,"n_rows":0,"n_cols":0,"rows_kept":0,"cut":false,"hidden":true,"merged":[]}

{"sheet":"REESTR_ORG","index":27,"n_rows":64,"n_cols":10,"rows_kept":64,"cut":false,"hidden":true,"merged":[]}
["№","REGION_ID","REGION_NAME","RST_ORG_ID","ORG_NAME","INN_NAME","KPP_NAME","ORG_START_DATE","ORG_END_DATE"]
[1,"2669","Сахалинская область","26802118","АО \"Анивские коммунальные  системы\"","6501232596","651001001","31-12-2010 00:00:00",null,"VO"]
[2,"2669","Сахалинская область","28157504","АО \"Аэропорт Южно-Сахалинск\"","6501255385","650101001",null,null,"VO"]
[3,"2669","Сахалинская область","30335229","АО \"ГУ ЖКХ\"","5116000922","770401001",null,null,"VO"]
[4,"2669","Сахалинская область","26374973","Акционерное общество \"Сахалинская коммунальная компания\"","6501157613","650101001",null,null,"VO"]
[5,"2669","Сахалинская область","26463661","Акционерное общество \"Тепло\"","6516008188","651601001",null,"24-02-2022 00:00:00","VO"]
[6,"2669","Сахалинская область","26651340","ГБУ \"Кировский дом-интернат для умственно отсталых детей\"","6517001763","651701001",null,null,"VO"]
[7,"2669","Сахалинская область","27569992","Дальневосточная дирекция по тепловодоснабжению – структурное подразделение Центральной дирекции по тепловодоснабжению – филиала ОАО \"Российские железные дороги\"","7708503727","272445024",null,null,"VO"]
[8,"2669","Сахалинская область","26318784","ЗАО \"Энергия Южно-Курильская\"","6518004559","651801001",null,null,"VO"]
[9,"2669","Сахалинская область","30479413","МКП \"Городской водоканал\"","6501281770","650101001",null,null,"VO"]
[10,"2669","Сахалинская область","31432272","МКП \"ЖКХ\" УГО","6508010419","650801001",null,null,"VO"]
[11,"2669","Сахалинская область","31194807","МКП \"Шахтерское коммунальное хозяйство\"","6508010458","650801001",null,null,"VO"]
[12,"2669","Сахалинская область","28464122","МКП СК ГО «Автодор»","6515003268","651501001","11-01-2013 00:00:00",null,"VO"]
[13,"2669","Сахалинская область","26375028","МП \"Водоканал\"","6516007970","651601001",null,null,"VO"]
[14,"2669","Сахалинская область","26318768","МП \"Тепло-электросистемы Северо-Курильского городского округа\"","6515002120","651501001",null,null,"VO"]
[15,"2669","Сахалинская область","30827075","МУП  \"Горнозаводская управляющая компания\"","6505010932","650501001",null,null,"VO"]
[16,"2669","Сахалинская область","30983249","МУП \"Водоканал\"","6509024319","650901001",null,null,"VO"]
[17,"2669","Сахалинская область","26375020","МУП \"Водоканал\"","6513000783","651301001",null,null,"VO"]
[18,"2669","Сахалинская область","31337977","МУП \"Водоканал\"","6516007970","651601000",null,null,"VO"]
[19,"2669","Сахалинская область","27870922","МУП \"Водоконал\" Корсаковского городского округа","6504009660","650401001","24-08-2012 00:00:00",null,"VO"]
[20,"2669","Сахалинская область","26375018","МУП \"Глена\"","6512004175","651201001",null,null,"VO"]
[21,"2669","Сахалинская область","28511003","МУП \"ЖКХ \"Универсал\"","6518008680","651801001",null,null,"VO"]
[22,"2669","Сахалинская область","26604513","МУП \"Жилкомсервис\"","6511004197","651101001","28-04-2010 00:00:00",null,"VO"]
[23,"2669","Сахалинская область","30372037","МУП \"ОКХ\"","6506010830","650601001","30-10-2015 00:00:00",null,"VO"]
[24,"2669","Сахалинская область","27869221","МУП \"Поронайская коммунальная компания-1\"","6507013791","650701001","07-09-2012 00:00:00",null,"VO"]
[25,"2669","Сахалинская область","27565788","МУП \"Смирныховское жилищно-коммунальное хозяйство\"","6514008993","651401001",null,null,"VO"]
[26,"2669","Сахалинская область","27869146","МУП \"Тепло\"","6509021565","650901001","21-03-2012 00:00:00",null,"VO"]
[27,"2669","Сахалинская область","27869204","МУП \"Тепловые сети\"","6509021741","650901001","30-07-2012 00:00:00",null,"VO"]
[28,"2669","Сахалинская область","28422353","МУП \"Теплотехник-1\"","6507014033","650701001",null,null,"VO"]
[29,"2669","Сахалинская область","30854597","МУП \"Транспорт\"","6502006053","650201001",null,null,"VO"]
[30,"2669","Сахалинская область","28954425","МУП \"Шахтёрсккомсервис\"","6508009886","650801001","25-12-2014 00:00:00",null,"VO"]
[31,"2669","Сахалинская область","28855778","МУП «Вахрушевская коммунальная компания»","6507014330","650701001","26-08-2014 00:00:00",null,"VO"]
[32,"2669","Сахалинская область","30354012","МУП «ЖКХ УГО»","6508009910","650801001","06-04-2015 00:00:00",null,"VO"]
[33,"2669","Сахалинская область","26604420","Муниципальное казенное предприятие \"Жилищно-коммунальное хозяйство\" муниципального образования городской округ \"Охинский\"","6506907877","650601001","26-05-2010 00:00:00",null,"VO"]
[34,"2669","Сахалинская область","26374988","Муниципальное унитарное предприятие \"Невельские коммунальные сети\"","6505011534","650501001",null,null,"VO"]
[35,"2669","Сахалинская область","27614786","Муниципальное унитарное предприятие \"Тепловик\"","6517007814","651701001",null,null,"VO"]
[36,"2669","Сахалинская область","26375030","Муниципальное унитарное предприятие \"Шикотанское жилищное управление\"","6518007990","651801001",null,null,"VO"]
[37,"2669","Сахалинская область","28016102","ОГАУ \"ЦМСР \"Чайка\"","6509005644","650901001","29-12-2007 00:00:00",null,"VO"]
[38,"2669","Сахалинская область","27682638","ООО \"Альянс\"","6512004626","651201001","07-12-2011 00:00:00",null,"VO"]
[39,"2669","Сахалинская область","30394649","ООО \"Водоканал\" Макаровского городского округа","6512004834","651201001",null,null,"VO"]
[40,"2669","Сахалинская область","26464552","ООО \"Водоканалремстрой\"","6502005148","650201001","21-01-2009 00:00:00",null,"VO"]
[41,"2669","Сахалинская область","26761349","ООО \"ЖКК\"","6501179504","650101001",null,null,"VO"]
[42,"2669","Сахалинская область","26604324","ООО \"ЖилКомСервис\"","6501240237","650301001","15-09-2010 00:00:00",null,"VO"]
[43,"2669","Сахалинская область","26381182","ООО \"Жилсервис\"","6507011378","650701001",null,null,"VO"]
[44,"2669","Сахалинская область","27568343","ООО \"КОМУС-1\"","6516008357","651601001","13-05-2011 00:00:00",null,"VO"]
[45,"2669","Сахалинская область","31448375","ООО \"КОМУС-2\"","6516008332","651601001",null,null,"VO"]
[46,"2669","Сахалинская область","26375011","ООО \"Комфорт\" с.Яблочное","6509018474","650901001",null,null,"VO"]
[47,"2669","Сахалинская область","28821196","ООО \"Ника плюс\"","6509022304","650901001",null,null,"VO"]
[48,"2669","Сахалинская область","31534660","ООО \"РВК-Сахалин\"","7730263950","650001001",null,null,"VO"]
[49,"2669","Сахалинская область","30835919","ООО \"РСО \"Малиновка\"","6501282300","650101001",null,null,"VO"]
[50,"2669","Сахалинская область","30858988","ООО \"РСО \"Универсал\"","6504017773","650401001","24-11-2016 00:00:00",null,"VO"]
[51,"2669","Сахалинская область","31335267","ООО \"САХАЛИН-ИСТ\"","6501166777","650101001","28-02-2006 00:00:00",null,"VO"]
[52,"2669","Сахалинская область","26575191","ООО \"Сити Молл Сервис\"","6501211998","650101001","19-10-2009 00:00:00",null,"VO"]
[53,"2669","Сахалинская область","26651030","ООО \"Шебунино\"","6505012376","650501001",null,"30-06-2022 00:00:00","VO"]
[54,"2669","Сахалинская область","31504394","ООО «ЮК ВДК»","6518008673","651801001",null,null,"VO"]
[55,"2669","Сахалинская область","31513630","ООО КК \"Зеленая Планета\"","6501303871","650101001","12-04-2019 00:00:00",null,"VO"]
[56,"2669","Сахалинская область","27870945","ООО Управляющая компания \"Жилищно-коммунальное хозяйство Дальнее\"","6501243020","650101001","13-12-2011 00:00:00",null,"VO"]
[57,"2669","Сахалинская область","26604633","ООО\"Холмский водоканал\"","6509020226","650901001",null,null,"VO"]
[58,"2669","Сахалинская область","26460728","Общество с ограниченной ответственностью \"Жилищно-коммунальное хозяйство Бошняково\"","6508008339","650801001",null,null,"VO"]
[59,"2669","Сахалинская область","26462650","Общество с ограниченной ответственностью \"Сахалинская Газовая Энергетическая компания\"","6501178250","650101001","22-12-2009 00:00:00",null,"VO"]
[60,"2669","Сахалинская область","26374980","Общество с ограниченной ответственностью \"Стародубское жилищно-коммунальное хозяйство\"","6503011962","650301001",null,null,"VO"]
[61,"2669","Сахалинская область","26476696","Общество с ограниченной ответственностью \"Шикотанский водоканал\"","6518008070","651801001","23-09-2009 00:00:00",null,"VO"]
[62,"2669","Сахалинская область","30903763","ФГБУ \"ЦЖКУ\" МИНОБОРОНЫ РОССИИ","7729314745","770101001",null,null,"VO"]
[63,"2669","Сахалинская область","30926365","ФГБУ «ЦЖКУ» МО РФ (Филиал ФГБУ «ЦЖКУ» МО РФ по ВВО)","7729314745","272443001","20-03-2017 00:00:00",null,"VO"]

{"sheet":"modClassifierValidate","index":28,"n_rows":0,"n_cols":0,"rows_kept":0,"cut":false,"hidden":true,"merged":[]}

{"sheet":"modProv","index":29,"n_rows":0,"n_cols":0,"rows_kept":0,"cut":false,"hidden":true,"merged":[]}

{"sheet":"modHyp","index":30,"n_rows":0,"n_cols":0,"rows_kept":0,"cut":false,"hidden":true,"merged":[]}

{"sheet":"modServiceModule","index":31,"n_rows":0,"n_cols":0,"rows_kept":0,"cut":false,"hidden":true,"merged":[]}

{"sheet":"modList01","index":32,"n_rows":0,"n_cols":0,"rows_kept":0,"cut":false,"hidden":true,"merged":[]}

{"sheet":"modList02","index":33,"n_rows":0,"n_cols":0,"rows_kept":0,"cut":false,"hidden":true,"merged":[]}

{"sheet":"modList03","index":34,"n_rows":0,"n_cols":0,"rows_kept":0,"cut":false,"hidden":true,"merged":[]}

{"sheet":"et_union_hor","index":35,"n_rows":298,"n_cols":418,"rows_kept":298,"cut":false,"hidden":true,"merged":[[33,283,34,283],[33,284,34,284],[33,285,34,285],[33,286,34,286],[33,276,34,276],[33,277,34,277],[33,278,34,278],[33,304,34,304],[33,305,34,305],[33,306,34,306],[33,307,34,307],[33,297,34,297],[33,298,34,298],[33,299,34,299],[33,300,34,300],[33,290,34,290],[33,291,34,291],[33,292,34,292],[33,293,34,293],[33,279,34,279],[33,269,34,269],[33,270,34,270],[33,271,34,271],[33,272,34,272],[33,262,34,262],[33,263,34,263],[33,264,34,264],[33,265,34,265],[33,255,34,255],[33,256,34,256],[33,257,34,257],[33,258,34,258],[33,248,34,248],[33,249,34,249],[33,250,34,250],[33,251,34,251],[33,241,34,241],[33,242,34,242],[33,243,34,243],[33,244,34,244],[33,234,34,234],[33,235,34,235],[33,236,34,236],[33,237,34,237],[33,227,34,227],[33,228,34,228],[33,229,34,229],[33,230,34,230],[33,220,34,220],[33,221,34,221],[33,222,34,222],[33,223,34,223],[33,213,34,213],[33,214,34,214],[33,215,34,215],[33,216,34,216],[33,206,34,206],[33,207,34,207],[33,208,34,208],[33,209,34,209],[33,199,34,199],[33,200,34,200],[33,201,34,201],[33,202,34,202],[33,192,34,192],[33,193,34,193],[33,194,34,194],[33,195,34,195],[33,185,34,185],[33,186,34,186],[33,187,34,187],[33,188,34,188],[33,178,34,178],[33,179,34,179],[33,180,34,180],[33,181,34,181],[33,171,34,171],[33,172,34,172],[33,173,34,173],[33,174,34,174],[33,164,34,164],[33,165,34,165],[33,166,34,166],[33,167,34,167],[33,157,34,157],[33,158,34,158],[33,159,34,159],[33,160,34,160],[33,150,34,150],[33,151,34,151],[33,152,34,152],[33,153,34,153],[33,143,34,143],[33,144,34,144],[33,145,34,145],[33,146,34,146],[33,136,34,136],[33,137,34,137],[33,138,34,138],[33,139,34,139],[33,129,34,129],[33,130,34,130],[33,131,34,131],[33,132,34,132],[33,122,34,122],[33,123,34,123],[33,124,34,124],[33,125,34,125],[33,115,34,115],[33,116,34,116],[33,117,34,117],[33,118,34,118],[33,108,34,108],[33,109,34,109],[33,110,34,110],[33,111,34,111],[33,101,34,101],[33,102,34,102],[33,103,34,103],[33,104,34,104],[33,94,34,94],[33,95,34,95],[33,96,34,96],[33,97,34,97],[33,87,34,87],[33,88,34,88],[33,89,34,89],[33,90,34,90],[33,80,34,80],[33,81,34,81],[33,82,34,82],[33,83,34,83],[33,73,34,73],[33,74,34,74],[33,75,34,75],[33,76,34,76],[33,66,34,66],[33,67,34,67],[33,68,34,68],[33,69,34,69],[33,59,34,59],[33,60,34,60],[33,61,34,61],[33,62,34,62],[33,52,34,52],[33,53,34,53],[33,54,34,54],[33,55,34,55],[33,45,34,45],[33,46,34,46],[33,47,34,47],[33,48,34,48],[33,38,34,38],[33,39,34,39],[33,40,34,40],[33,41,34,41],[33,31,34,31],[33,32,34,32],[33,33,34,33],[33,34,34,34],[65,13,66,13],[180,13,180,36],[63,8,68,8],[79,8,84,8],[81,18,82,18],[91,14,91,26],[99,23,100,23],[80,9,83,9],[96,8,102,8],[76,14,76,21],[81,22,83,22],[97,22,98,22],[99,25,100,25],[99,22,100,22],[99,24,100,24],[97,9,101,9],[97,25,98,25],[81,19,82,19],[165,13,165,37],[166,13,166,37],[167,13,167,37],[96,14,96,26],[135,9,138,9],[136,19,137,19],[199,24,200,24],[199,23,200,23],[199,22,200,22],[183,24,184,24],[199,21,200,21],[199,16,202,16],[199,20,201,20],[199,19,201,19],[199,17,201,17],[199,18,201,18],[8,3,11,3],[13,3,16,3],[33,18,34,18],[8,14,9,14],[24,17,25,19],[8,8,10,8],[13,7,15,7],[13,9,15,9],[151,8,156,8],[134,8,139,8],[117,8,122,8],[13,10,15,10],[49,19,50,19],[118,9,121,9],[152,9,155,9],[13,12,14,12],[13,14,14,14],[94,14,94,26],[81,17,82,17],[13,11,14,11],[24,14,24,16],[135,14,135,21],[92,14,92,26],[26,18,26,19],[8,11,9,11],[64,9,67,9],[25,14,26,14],[27,14,27,20],[33,13,34,13],[13,13,14,13],[8,4,11,4],[8,13,9,13],[8,10,10,10],[8,9,10,9],[8,5,11,5],[13,4,16,4],[13,8,15,8],[8,12,9,12],[13,5,16,5],[8,6,11,6],[31,8,36,8],[47,8,52,8],[8,7,10,7],[33,20,34,20],[24,20,26,20],[65,18,66,18],[44,14,44,21],[45,14,45,21],[13,6,16,6],[24,22,26,22],[49,18,50,18],[33,17,34,17],[33,19,34,19],[48,9,51,9],[49,17,50,17],[32,9,35,9],[25,15,25,16],[33,414,35,414],[46,14,46,21],[47,14,47,21],[48,14,48,21],[49,13,50,13],[33,24,34,24],[33,25,34,25],[33,26,34,26],[33,27,34,27],[33,311,34,311],[33,312,34,312],[33,313,34,313],[33,314,34,314],[33,318,34,318],[33,319,34,319],[33,320,34,320],[33,321,34,321],[33,325,34,325],[33,326,34,326],[33,327,34,327],[33,328,34,328],[33,332,34,332],[33,333,34,333],[33,334,34,334],[32,4,35,4],[44,0,55,0],[48,4,51,4],[45,1,54,1],[46,2,53,2],[114,14,114,21],[97,24,98,24],[113,14,113,21],[49,22,51,22],[49,20,50,20],[97,23,98,23],[63,14,63,21],[64,14,64,21],[65,22,67,22],[65,19,66,19],[60,14,60,21],[61,14,61,21],[62,14,62,21],[47,3,52,3],[81,20,82,20],[77,14,77,21],[78,14,78,21],[60,0,71,0],[79,3,84,3],[61,1,70,1],[62,2,69,2],[76,0,87,0],[77,1,86,1],[78,2,85,2],[28,0,39,0],[29,1,38,1],[30,2,37,2],[31,3,36,3],[80,4,83,4],[63,3,68,3],[253,5,254,5],[253,6,254,6],[182,2,188,2],[167,2,173,2],[64,4,67,4],[248,3,249,3],[248,4,249,4],[183,3,187,3],[183,37,188,37],[153,20,154,20],[136,17,137,17],[153,17,154,17],[168,11,172,11],[153,18,154,18],[168,38,173,38],[168,25,169,25],[168,24,169,24],[168,20,170,20],[136,20,137,20],[168,18,170,18],[182,13,182,36],[168,16,171,16],[168,22,169,22],[181,13,181,36],[183,23,184,23],[183,17,185,17],[183,19,185,19],[168,15,171,15],[183,22,184,22],[168,12,172,12],[168,17,171,17],[168,23,169,23],[288,0,296,0],[292,2,294,2],[293,8,294,8],[168,13,172,13],[181,1,189,1],[253,7,254,7],[166,1,174,1],[183,8,187,8],[183,9,187,9],[183,13,186,13],[168,3,172,3],[180,0,190,0],[165,0,175,0],[291,1,295,1],[248,2,249,2],[253,2,254,2],[183,10,187,10],[168,10,172,10],[168,8,172,8],[168,9,172,9],[147,14,147,21],[183,15,186,15],[148,14,148,21],[183,16,186,16],[168,14,171,14],[183,11,187,11],[183,12,187,12],[183,21,184,21],[168,19,170,19],[151,14,151,21],[153,19,154,19],[168,21,170,21],[183,20,185,20],[183,14,186,14],[183,18,185,18],[33,335,34,335],[33,339,34,339],[33,340,34,340],[33,341,34,341],[115,14,115,21],[65,20,66,20],[116,14,116,21],[152,14,152,21],[119,19,120,19],[118,14,118,21],[149,14,149,21],[136,18,137,18],[132,14,132,21],[119,20,120,20],[130,14,130,21],[150,14,150,21],[119,17,120,17],[131,14,131,21],[133,14,133,21],[93,14,93,26],[79,14,79,21],[80,14,80,21],[119,18,120,18],[65,17,66,17],[33,356,34,356],[33,360,34,360],[33,361,34,361],[33,362,34,362],[33,349,34,349],[33,353,34,353],[33,354,34,354],[33,355,34,355],[33,342,34,342],[33,346,34,346],[33,347,34,347],[33,348,34,348],[33,382,34,382],[33,383,34,383],[33,370,34,370],[33,374,34,374],[33,375,34,375],[33,376,34,376],[33,363,34,363],[33,367,34,367],[33,368,34,368],[33,369,34,369],[33,412,34,412],[28,14,28,413],[29,14,29,413],[30,14,30,413],[31,14,31,413],[32,14,32,413],[33,405,34,405],[33,409,34,409],[33,410,34,410],[33,411,34,411],[33,398,34,398],[33,402,34,402],[33,403,34,403],[33,404,34,404],[33,391,34,391],[33,395,34,395],[33,396,34,396],[33,397,34,397],[33,384,34,384],[33,388,34,388],[33,389,34,389],[33,390,34,390],[33,377,34,377],[33,381,34,381]]}
[]
["et_Comm"]
[]
[]
[]
[]
["et_List02(_1,_2,_3)"]
[]
[null,null,null,1,null,null,"нет",null,1,null,"нет",null,"1",null,"нет",null,"1"]
[null,null,null,null,null,null,null,null,null,null,null,null,null,null,null,null,null,"Добавить ЦС ВО для дифференциации"]
[null,null,null,null,null,null,null,null,null,null,null,null,null,"Добавить территорию для дифференциации"]
[]
[]
[null,null,null,null,null,null,null,null,1,null,"нет",null,"1",null,"нет",null,"1"]
[null,null,null,null,null,null,null,null,null,null,null,null,null,null,null,null,null,"Добавить ЦС ВО для дифференциации"]
[null,null,null,null,null,null,null,null,null,null,null,null,null,"Добавить территорию для дифференциации"]
[]
[]
["et_List06(_1,_2,_3)",null,"1"]
[]
[]
[]
[]
[]
[null,null,null,null,null,null,null,null,null,null,null,null,null,null,"Величина установленного тарифа",null,null,"Срок действия цены (тарифа) на тепловую энергию (мощность)",null,null,"Наличие других периодов действия тарифа"]
[null,null,null,null,null,null,null,null,null,null,null,null,null,null,"Одноставочный тариф, руб./Гкал","Двухставочный тариф"]
[null,null,null,null,null,null,null,null,null,null,null,null,null,null,null,"ставка за тепловую  энергию, руб./Гкал","ставка за содержание тепловой мощности, тыс.руб./Гкал/ч/мес","дата начала","дата окончания"]
[null,null,null,null,null,null,null,null,null,null,null,null,"7"]
[1,null,null,null,null,null,null,null,null,null,null,{"$f":"mergeValue(A29)","v":1},"Наименование тарифа",null,null,null,null,null,null,null,null,null,null,null,null,null,null,null,null,null,null,null,null,null,null,null,null,null,null,null,null,null,null,null,null,null,null,null,null,null,null,null,null,null,null,null,null,null,null,null,null,null,null,null,null,null,null,null,null,null,null,null,null,null,null,null,null,null,null,null,null,null,null,null,null,null,null,null,null,null,null,null,null,null,null,null,null,null,null,null,null,null,null,null,null,null,null,null,null,null,null,null,null,null,null,null,null,null,null,null,null,null,null,null,null,null,null,null,null,null,null,null,null,null,null,null,null,null,null,null,null,null,null,null,null,null,null,null,null,null,null,null,null,null,null,null,null,null,null,null,null,null,null,null,null,null,null,null,null,null,null,null,null,null,null,null,null,null,null,null,null,null,null,null,null,null,null,null,null,null,null,null,null,null,null,null,null,null,null,null,null,null,null,null,null,null,null,null,null,null,null,null,null,null,null,null,null,null,null,null,null,null,null,null,null,null,null,null,null,null,null,null,null,null,null,null,null,null,null,null,null,null,null,null,null,null,null,null,null,null,null,null,null,null,null,null,null,null,null,null,null,null,null,null,null,null,null,null,null,null,null,null,null,null,null,null,null,null,null,null,null,null,null,null,null,null,null,null,null,null,null,null,null,null,null,null,null,null,null,null,null,null,null,null,null,null,null,null,null,null,null,null,null,null,null,null,null,null,null,null,null,null,null,null,null,null,null,null,null,null,null,null,null,null,null,null,null,null,null,null,null,null,null,null,null,null,null,null,null,null,null,null,null,null,null,null,null,null,null,null,null,null,null,null,null,null,null,null,null,null,null,null,null,null,null,null,null,null,null,null,null,null,null,null,null,null,null,null,null,null,null,null,null,null,null,null,null,null,null,null,null,null,null,null,null,null,null,null,null,null,null,null,null,null,"Указывается наименование тарифа в случае утверждения нескольких тарифов.\nВ случае наличия нескольких тарифов информация по ним указывается в отдельных строках."]
[null,1,null,null,null,null,null,null,null,null,null,{"$f":"mergeValue(A30) &\".\"& mergeValue(B30)","v":"1.1"},"Территория действия тарифа",null,null,null,null,null,null,null,null,null,null,null,null,null,null,null,null,null,null,null,null,null,null,null,null,null,null,null,null,null,null,null,null,null,null,null,null,null,null,null,null,null,null,null,null,null,null,null,null,null,null,null,null,null,null,null,null,null,null,null,null,null,null,null,null,null,null,null,null,null,null,null,null,null,null,null,null,null,null,null,null,null,null,null,null,null,null,null,null,null,null,null,null,null,null,null,null,null,null,null,null,null,null,null,null,null,null,null,null,null,null,null,null,null,null,null,null,null,null,null,null,null,null,null,null,null,null,null,null,null,null,null,null,null,null,null,null,null,null,null,null,null,null,null,null,null,null,null,null,null,null,null,null,null,null,null,null,null,null,null,null,null,null,null,null,null,null,null,null,null,null,null,null,null,null,null,null,null,null,null,null,null,null,null,null,null,null,null,null,null,null,null,null,null,null,null,null,null,null,null,null,null,null,null,null,null,null,null,null,null,null,null,null,null,null,null,null,null,null,null,null,null,null,null,null,null,null,null,null,null,null,null,null,null,null,null,null,null,null,null,null,null,null,null,null,null,null,null,null,null,null,null,null,null,null,null,null,null,null,null,null,null,null,null,null,null,null,null,null,null,null,null,null,null,null,null,null,null,null,null,null,null,null,null,null,null,null,null,null,null,null,null,null,null,null,null,null,null,null,null,null,null,null,null,null,null,null,null,null,null,null,null,null,null,null,null,null,null,null,null,null,null,null,null,null,null,null,null,null,null,null,null,null,null,null,null,null,null,null,null,null,null,null,null,null,null,null,null,null,null,null,null,null,null,null,null,null,null,null,null,null,null,null,null,null,null,null,null,null,null,null,null,null,null,null,null,null,null,null,null,null,null,null,null,null,null,null,null,null,null,null,null,null,null,null,null,null,null,null,null,null,null,"Указывается наименование территории действия тарифа при наличии дифференциации тарифа по территориальному признаку.\nВ случае дифференциации тарифов по территориальному признаку информация по ним указывается в отдельных строках."]
[null,null,1,null,null,null,null,null,null,null,null,{"$f":"mergeValue(A31) &\".\"& mergeValue(B31)&\".\"& mergeValue(C31)","v":"1.1.1"},"Наименование централизованной системы водоотведения",null,null,null,null,null,null,null,null,null,null,null,null,null,null,null,null,null,null,null,null,null,null,null,null,null,null,null,null,null,null,null,null,null,null,null,null,null,null,null,null,null,null,null,null,null,null,null,null,null,null,null,null,null,null,null,null,null,null,null,null,null,null,null,null,null,null,null,null,null,null,null,null,null,null,null,null,null,null,null,null,null,null,null,null,null,null,null,null,null,null,null,null,null,null,null,null,null,null,null,null,null,null,null,null,null,null,null,null,null,null,null,null,null,null,null,null,null,null,null,null,null,null,null,null,null,null,null,null,null,null,null,null,null,null,null,null,null,null,null,null,null,null,null,null,null,null,null,null,null,null,null,null,null,null,null,null,null,null,null,null,null,null,null,null,null,null,null,null,null,null,null,null,null,null,null,null,null,null,null,null,null,null,null,null,null,null,null,null,null,null,null,null,null,null,null,null,null,null,null,null,null,null,null,null,null,null,null,null,null,null,null,null,null,null,null,null,null,null,null,null,null,null,null,null,null,null,null,null,null,null,null,null,null,null,null,null,null,null,null,null,null,null,null,null,null,null,null,null,null,null,null,null,null,null,null,null,null,null,null,null,null,null,null,null,null,null,null,null,null,null,null,null,null,null,null,null,null,null,null,null,null,null,null,null,null,null,null,null,null,null,null,null,null,null,null,null,null,null,null,null,null,null,null,null,null,null,null,null,null,null,null,null,null,null,null,null,null,null,null,null,null,null,null,null,null,null,null,null,null,null,null,null,null,null,null,null,null,null,null,null,null,null,null,null,null,null,null,null,null,null,null,null,null,null,null,null,null,null,null,null,null,null,null,null,null,null,null,null,null,null,null,null,null,null,null,null,null,null,null,null,null,null,null,null,null,null,null,null,null,null,null,null,null,null,null,null,null,null,null,null,null,"Указывается наименование централизованной системы водоотведения при наличии дифференциации тарифа по централизованным системам водоотведения.\nВ случае дифференциации тарифов по централизованным системам водоотведения информация по ним указывается в отдельных строках."]
[null,null,null,1,null,null,null,null,null,null,null,{"$f":"mergeValue(A32) &\".\"& mergeValue(B32)&\".\"& mergeValue(C32)&\".\"& mergeValue(D32)","v":"1.1.1.1"},"Наименование признака дифференциации",null,null,null,null,null,null,null,null,null,null,null,null,null,null,null,null,null,null,null,null,null,null,null,null,null,null,null,null,null,null,null,null,null,null,null,null,null,null,null,null,null,null,null,null,null,null,null,null,null,null,null,null,null,null,null,null,null,null,null,null,null,null,null,null,null,null,null,null,null,null,null,null,null,null,null,null,null,null,null,null,null,null,null,null,null,null,null,null,null,null,null,null,null,null,null,null,null,null,null,null,null,null,null,null,null,null,null,null,null,null,null,null,null,null,null,null,null,null,null,null,null,null,null,null,null,null,null,null,null,null,null,null,null,null,null,null,null,null,null,null,null,null,null,null,null,null,null,null,null,null,null,null,null,null,null,null,null,null,null,null,null,null,null,null,null,null,null,null,null,null,null,null,null,null,null,null,null,null,null,null,null,null,null,null,null,null,null,null,null,null,null,null,null,null,null,null,null,null,null,null,null,null,null,null,null,null,null,null,null,null,null,null,null,null,null,null,null,null,null,null,null,null,null,null,null,null,null,null,null,null,null,null,null,null,null,null,null,null,null,null,null,null,null,null,null,null,null,null,null,null,null,null,null,null,null,null,null,null,null,null,null,null,null,null,null,null,null,null,null,null,null,null,null,null,null,null,null,null,null,null,null,null,null,null,null,null,null,null,null,null,null,null,null,null,null,null,null,null,null,null,null,null,null,null,null,null,null,null,null,null,null,null,null,null,null,null,null,null,null,null,null,null,null,null,null,null,null,null,null,null,null,null,null,null,null,null,null,null,null,null,null,null,null,null,null,null,null,null,null,null,null,null,null,null,null,null,null,null,null,null,null,null,null,null,null,null,null,null,null,null,null,null,null,null,null,null,null,null,null,null,null,null,null,null,null,null,null,null,null,null,null,null,null,null,null,null,null,null,null,null,null,"Указывается наименование дополнительного признака дифференциации (при наличии).\nДифференциация тарифа осуществляется в соответствии с законодательством в сфере водоснабжении и водоотведении.\nВ случае дифференциации тарифов по дополнительным признакам информация по ним указывается в отдельных строках."]
[null,null,null,null,1,null,null,null,null,null,null,{"$f":"mergeValue(A33) &\".\"& mergeValue(B33)&\".\"& mergeValue(C33)&\".\"& mergeValue(D33)&\".\"& mergeValue(E33)","v":"1.1.1.1.1"},"Группа потребителей",null,null,null,null,null,null,null,null,null,null,null,null,null,null,null,null,null,null,null,null,null,null,null,null,null,null,null,null,null,null,null,null,null,null,null,null,null,null,null,null,null,null,null,null,null,null,null,null,null,null,null,null,null,null,null,null,null,null,null,null,null,null,null,null,null,null,null,null,null,null,null,null,null,null,null,null,null,null,null,null,null,null,null,null,null,null,null,null,null,null,null,null,null,null,null,null,null,null,null,null,null,null,null,null,null,null,null,null,null,null,null,null,null,null,null,null,null,null,null,null,null,null,null,null,null,null,null,null,null,null,null,null,null,null,null,null,null,null,null,null,null,null,null,null,null,null,null,null,null,null,null,null,null,null,null,null,null,null,null,null,null,null,null,null,null,null,null,null,null,null,null,null,null,null,null,null,null,null,null,null,null,null,null,null,null,null,null,null,null,null,null,null,null,null,null,null,null,null,null,null,null,null,null,null,null,null,null,null,null,null,null,null,null,null,null,null,null,null,null,null,null,null,null,null,null,null,null,null,null,null,null,null,null,null,null,null,null,null,null,null,null,null,null,null,null,null,null,null,null,null,null,null,null,null,null,null,null,null,null,null,null,null,null,null,null,null,null,null,null,null,null,null,null,null,null,null,null,null,null,null,null,null,null,null,null,null,null,null,null,null,null,null,null,null,null,null,null,null,null,null,null,null,null,null,null,null,null,null,null,null,null,null,null,null,null,null,null,null,null,null,null,null,null,null,null,null,null,null,null,null,null,null,null,null,null,null,null,null,null,null,null,null,null,null,null,null,null,null,null,null,null,null,null,null,null,null,null,null,null,null,null,null,null,null,null,null,null,null,null,null,null,null,null,null,null,null,null,null,null,null,null,null,null,null,null,null,null,null,null,null,null,null,null,null,null,null,null,null,null,null,null,"Указывается группа потребителей при наличии дифференциации тарифа по группам потребителей.\nЗначение выбирается из перечня: Организации-перепродавцы; Бюджетные организации; Население; Прочие; Без дифференциации.\nВ случае дифференциации тарифов группам потребителей информация по ним указывается в отдельных строках.",null,{"$f":"strCheckUnique(PB33:PB36)","v":""}]
[null,null,null,null,null,1,null,null,null,null,null,{"$f":"mergeValue(A34) &\".\"& mergeValue(B34)&\".\"& mergeValue(C34)&\".\"& mergeValue(D34)&\".\"& mergeValue(E34)&\".\"& mergeValue(F34)","v":"1.1.1.1.1.1"},null,null,null,null,null,null,"да",null,"да",null,null,null,null,"да",null,"да",null,null,null,null,"да",null,"да",null,null,null,null,"да",null,"да",null,null,null,null,"да",null,"да",null,null,null,null,"да",null,"да",null,null,null,null,"да",null,"да",null,null,null,null,"да",null,"да",null,null,null,null,"да",null,"да",null,null,null,null,"да",null,"да",null,null,null,null,"да",null,"да",null,null,null,null,"да",null,"да",null,null,null,null,"да",null,"да",null,null,null,null,"да",null,"да",null,null,null,null,"да",null,"да",null,null,null,null,"да",null,"да",null,null,null,null,"да",null,"да",null,null,null,null,"да",null,"да",null,null,null,null,"да",null,"да",null,null,null,null,"да",null,"да",null,null,null,null,"да",null,"да",null,null,null,null,"да",null,"да",null,null,null,null,"да",null,"да",null,null,null,null,"да",null,"да",null,null,null,null,"да",null,"да",null,null,null,null,"да",null,"да",null,null,null,null,"да",null,"да",null,null,null,null,"да",null,"да",null,null,null,null,"да",null,"да",null,null,null,null,"да",null,"да",null,null,null,null,"да",null,"да",null,null,null,null,"да",null,"да",null,null,null,null,"да",null,"да",null,null,null,null,"да",null,"да",null,null,null,null,"да",null,"да",null,null,null,null,"да",null,"да",null,null,null,null,"да",null,"да",null,null,null,null,"да",null,"да",null,null,null,null,"да",null,"да",null,null,null,null,"да",null,"да",null,null,null,null,"да",null,"да",null,null,null,null,"да",null,"да",null,null,null,null,"да",null,"да",null,null,null,null,"да",null,"да",null,null,null,null,"да",null,"да",null,null,null,null,"да",null,"да",null,null,null,null,"да",null,"да",null,null,null,null,"да",null,"да",null,null,null,null,"да",null,"да",null,null,null,null,"да",null,"да",null,null,null,null,"да",null,"да",null,null,null,null,"да",null,"да",null,null,null,null,"да",null,"да",null,null,null,null,"да",null,"да",null,null,null,null,"да",null,"да",null,null,null,null,"да",null,"да",null,null,null,null,"да",null,"нет",null,"В колонке «Параметр дифференциации тарифов» указывается значение дополнительного признака дифференциации.\nПри утверждении двухставочного тарифа колонка «Одноставочный тариф» не заполняется.\nПри утверждении одноставочного тарифа колонки в блоке «Двухставочный тариф» не заполняются.\nДаты начала и окончания действия тарифов указываются в виде «ДД.ММ.ГГГГ».\nВ случае отсутствия даты окончания действия тарифа в колонке «Дата окончания» указывается «Нет».\nВ случае наличия нескольких значений признака дифференциации тарифов информация по ним указывается в отдельных строках.\nВ случае дифференциации тарифов по периодам действия тарифа информация по ним указывается в отдельных колонках.",{"$f":"strCheckDate(O35:OX35)","v":""},null,{"$f":"IF(M34=\"\",\"\",M34 )","v":""}]
[null,null,null,null,null,null,null,null,null,null,null,null,null,null,null,null,{"$f":"R34 & \"-\" & T34","v":"-"},null,null,null,null,null,null,{"$f":"Y34 & \"-\" & AA34","v":"-"},null,null,null,null,null,null,{"$f":"AF34 & \"-\" & AH34","v":"-"},null,null,null,null,null,null,{"$f":"AM34 & \"-\" & AO34","v":"-"},null,null,null,null,null,null,{"$f":"AT34 & \"-\" & AV34","v":"-"},null,null,null,null,null,null,{"$f":"BA34 & \"-\" & BC34","v":"-"},null,null,null,null,null,null,{"$f":"BH34 & \"-\" & BJ34","v":"-"},null,null,null,null,null,null,{"$f":"BO34 & \"-\" & BQ34","v":"-"},null,null,null,null,null,null,{"$f":"BV34 & \"-\" & BX34","v":"-"},null,null,null,null,null,null,{"$f":"CC34 & \"-\" & CE34","v":"-"},null,null,null,null,null,null,{"$f":"CJ34 & \"-\" & CL34","v":"-"},null,null,null,null,null,null,{"$f":"CQ34 & \"-\" & CS34","v":"-"},null,null,null,null,null,null,{"$f":"CX34 & \"-\" & CZ34","v":"-"},null,null,null,null,null,null,{"$f":"DE34 & \"-\" & DG34","v":"-"},null,null,null,null,null,null,{"$f":"DL34 & \"-\" & DN34","v":"-"},null,null,null,null,null,null,{"$f":"DS34 & \"-\" & DU34","v":"-"},null,null,null,null,null,null,{"$f":"DZ34 & \"-\" & EB34","v":"-"},null,null,null,null,null,null,{"$f":"EG34 & \"-\" & EI34","v":"-"},null,null,null,null,null,null,{"$f":"EN34 & \"-\" & EP34","v":"-"},null,null,null,null,null,null,{"$f":"EU34 & \"-\" & EW34","v":"-"},null,null,null,null,null,null,{"$f":"FB34 & \"-\" & FD34","v":"-"},null,null,null,null,null,null,{"$f":"FI34 & \"-\" & FK34","v":"-"},null,null,null,null,null,null,{"$f":"FP34 & \"-\" & FR34","v":"-"},null,null,null,null,null,null,{"$f":"FW34 & \"-\" & FY34","v":"-"},null,null,null,null,null,null,{"$f":"GD34 & \"-\" & GF34","v":"-"},null,null,null,null,null,null,{"$f":"GK34 & \"-\" & GM34","v":"-"},null,null,null,null,null,null,{"$f":"GR34 & \"-\" & GT34","v":"-"},null,null,null,null,null,null,{"$f":"GY34 & \"-\" & HA34","v":"-"},null,null,null,null,null,null,{"$f":"HF34 & \"-\" & HH34","v":"-"},null,null,null,null,null,null,{"$f":"HM34 & \"-\" & HO34","v":"-"},null,null,null,null,null,null,{"$f":"HT34 & \"-\" & HV34","v":"-"},null,null,null,null,null,null,{"$f":"IA34 & \"-\" & IC34","v":"-"},null,null,null,null,null,null,{"$f":"IH34 & \"-\" & IJ34","v":"-"},null,null,null,null,null,null,{"$f":"IO34 & \"-\" & IQ34","v":"-"},null,null,null,null,null,null,{"$f":"IV34 & \"-\" & IX34","v":"-"},null,null,null,null,null,null,{"$f":"JC34 & \"-\" & JE34","v":"-"},null,null,null,null,null,null,{"$f":"JJ34 & \"-\" & JL34","v":"-"},null,null,null,null,null,null,{"$f":"JQ34 & \"-\" & JS34","v":"-"},null,null,null,null,null,null,{"$f":"JX34 & \"-\" & JZ34","v":"-"},null,null,null,null,null,null,{"$f":"KE34 & \"-\" & KG34","v":"-"},null,null,null,null,null,null,{"$f":"KL34 & \"-\" & KN34","v":"-"},null,null,null,null,null,null,{"$f":"KS34 & \"-\" & KU34","v":"-"},null,null,null,null,null,null,{"$f":"KZ34 & \"-\" & LB34","v":"-"},null,null,null,null,null,null,{"$f":"LG34 & \"-\" & LI34","v":"-"},null,null,null,null,null,null,{"$f":"LN34 & \"-\" & LP34","v":"-"},null,null,null,null,null,null,{"$f":"LU34 & \"-\" & LW34","v":"-"},null,null,null,null,null,null,{"$f":"MB34 & \"-\" & MD34","v":"-"},null,null,null,null,null,null,{"$f":"MI34 & \"-\" & MK34","v":"-"},null,null,null,null,null,null,{"$f":"MP34 & \"-\" & MR34","v":"-"},null,null,null,null,null,null,{"$f":"MW34 & \"-\" & MY34","v":"-"},null,null,null,null,null,null,{"$f":"ND34 & \"-\" & NF34","v":"-"},null,null,null,null,null,null,{"$f":"NK34 & \"-\" & NM34","v":"-"},null,null,null,null,null,null,{"$f":"NR34 & \"-\" & NT34","v":"-"},null,null,null,null,null,null,{"$f":"NY34 & \"-\" & OA34","v":"-"},null,null,null,null,null,null,{"$f":"OF34 & \"-\" & OH34","v":"-"},null,null,null,null,null,null,{"$f":"OM34 & \"-\" & OO34","v":"-"},null,null,null,null,null,null,{"$f":"OT34 & \"-\" & OV34","v":"-"}]
[null,null,null,null,null,null,null,null,null,null,null,null,"Добавить значение признака дифференциации"]
[null,null,null,null,null,null,null,null,null,null,null,null,"Добавить группу потребителей"]
[null,null,null,null,null,null,null,null,null,null,null,null,"Добавить наименование признака дифференциации"]
[null,null,null,null,null,null,null,null,null,null,null,null,"Добавить наименование системы водоотведения"]
[null,null,null,null,null,null,null,null,null,null,null,null,"Добавить территорию действия тарифа"]
[null,null,null,null,null,null,null,null,null,null,null,null,"Добавить наименование тарифа"]
[]
["et_List06(_1,_2,_3)",null,"2"]
[]
[1,null,null,null,null,null,null,null,null,null,null,{"$f":"mergeValue(A45)","v":1},"Наименование тарифа",null,null,null,null,null,null,null,null,null,"Указывается наименование тарифа в случае утверждения нескольких тарифов.\nВ случае наличия нескольких тарифов информация по ним указывается в отдельных строках."]
[null,1,null,null,null,null,null,null,null,null,null,{"$f":"mergeValue(A46) &\".\"& mergeValue(B46)","v":"1.1"},"Территория действия тарифа",null,null,null,null,null,null,null,null,null,"Указывается наименование территории действия тарифа при наличии дифференциации тарифа по территориальному признаку.\nВ случае дифференциации тарифов по территориальному признаку информация по ним указывается в отдельных строках."]
[null,null,1,null,null,null,null,null,null,null,null,{"$f":"mergeValue(A47) &\".\"& mergeValue(B47)&\".\"& mergeValue(C47)","v":"1.1.1"},"Наименование централизованной системы водоотведения",null,null,null,null,null,null,null,null,null,"Указывается наименование централизованной системы водоотведения при наличии дифференциации тарифа по централизованным системам водоотведения.\nВ случае дифференциации тарифов по централизованным системам водоотведения информация по ним указывается в отдельных строках."]
[null,null,null,1,null,null,null,null,null,null,null,{"$f":"mergeValue(A48) &\".\"& mergeValue(B48)&\".\"& mergeValue(C48)&\".\"& mergeValue(D48)","v":"1.1.1.1"},"Наименование признака дифференциации",null,null,null,null,null,null,null,null,null,"Указывается наименование дополнительного признака дифференциации (при наличии).\nДифференциация тарифа осуществляется в соответствии с законодательством в сфере водоснабжении и водоотведении.\nВ случае дифференциации тарифов по дополнительным признакам информация по ним указывается в отдельных строках."]
[null,null,null,null,1,null,null,null,null,null,null,{"$f":"mergeValue(A49) &\".\"& mergeValue(B49)&\".\"& mergeValue(C49)&\".\"& mergeValue(D49)&\".\"& mergeValue(E49)","v":"1.1.1.1.1"},"Группа потребителей",null,null,null,null,null,null,null,null,null,"Указывается группа потребителей при наличии дифференциации тарифа по группам потребителей.\nЗначение выбирается из перечня: Организации-перепродавцы; Бюджетные организации; Население; Прочие; Без дифференциации.\nВ случае дифференциации тарифов группам потребителей информация по ним указывается в отдельных строках.",null,{"$f":"strCheckUnique(Z49:Z52)","v":""}]
[null,null,null,null,null,1,null,null,null,null,null,{"$f":"mergeValue(A50) &\".\"& mergeValue(B50)&\".\"& mergeValue(C50)&\".\"& mergeValue(D50)&\".\"& mergeValue(E50)&\".\"& mergeValue(F50)","v":"1.1.1.1.1.1"},null,null,null,null,null,null,"да",null,"нет",null,"В колонке «Параметр дифференциации тарифов» указывается значение дополнительного признака дифференциации.\nПри утверждении двухставочного тарифа колонка «Одноставочный тариф» не заполняется.\nПри утверждении одноставочного тарифа колонки в блоке «Двухставочный тариф» не заполняются.\nДаты начала и окончания действия тарифов указываются в виде «ДД.ММ.ГГГГ».\nВ случае отсутствия даты окончания действия тарифа в колонке «Дата окончания» указывается «Нет».\nВ случае наличия нескольких значений признака дифференциации тарифов информация по ним указывается в отдельных строках.\nВ случае дифференциации тарифов по периодам действия тарифа информация по ним указывается в отдельных колонках.",{"$f":"strCheckDate(O51:V51)","v":""},null,{"$f":"IF(M50=\"\",\"\",M50 )","v":""}]
[null,null,null,null,null,null,null,null,null,null,null,null,null,null,null,null,{"$f":"R50 & \"-\" & T50","v":"-"}]
[null,null,null,null,null,null,null,null,null,null,null,null,"Добавить значение признака дифференциации"]
[null,null,null,null,null,null,null,null,null,null,null,null,"Добавить группу потребителей"]
[null,null,null,null,null,null,null,null,null,null,null,null,"Добавить наименование признака дифференциации"]
[null,null,null,null,null,null,null,null,null,null,null,null,"Добавить наименование системы водоотведения"]
[null,null,null,null,null,null,null,null,null,null,null,null,"Добавить территорию действия тарифа"]
[null,null,null,null,null,null,null,null,null,null,null,null,"Добавить наименование тарифа"]
[]
["et_List06(_1,_2,_3)",null,"3"]
[]
[1,null,null,null,null,null,null,null,null,null,null,{"$f":"mergeValue(A61)","v":1},"Наименование тарифа",null,null,null,null,null,null,null,null,null,"Указывается наименование тарифа в случае утверждения нескольких тарифов.\nВ случае наличия нескольких тарифов информация по ним указывается в отдельных строках."]
[null,1,null,null,null,null,null,null,null,null,null,{"$f":"mergeValue(A62) &\".\"& mergeValue(B62)","v":"1.1"},"Территория действия тарифа",null,null,null,null,null,null,null,null,null,"Указывается наименование территории действия тарифа при наличии дифференциации тарифа по территориальному признаку.\nВ случае дифференциации тарифов по территориальному признаку информация по ним указывается в отдельных строках."]
[null,null,1,null,null,null,null,null,null,null,null,{"$f":"mergeValue(A63) &\".\"& mergeValue(B63)&\".\"& mergeValue(C63)","v":"1.1.1"},"Наименование централизованной системы водоотведения",null,null,null,null,null,null,null,null,null,"Указывается наименование централизованной системы водоотведения при наличии дифференциации тарифа по централизованным системам водоотведения.\nВ случае дифференциации тарифов по централизованным системам водоотведения информация по ним указывается в отдельных строках."]
[null,null,null,1,null,null,null,null,null,null,null,{"$f":"mergeValue(A64) &\".\"& mergeValue(B64)&\".\"& mergeValue(C64)&\".\"& mergeValue(D64)","v":"1.1.1.1"},"Наименование признака дифференциации",null,null,null,null,null,null,null,null,null,"Указывается наименование дополнительного признака дифференциации (при наличии).\nДифференциация тарифа осуществляется в соответствии с законодательством в сфере водоснабжении и водоотведении.\nВ случае дифференциации тарифов по дополнительным признакам информация по ним указывается в отдельных строках."]
[null,null,null,null,1,null,null,null,null,null,null,{"$f":"mergeValue(A65) &\".\"& mergeValue(B65)&\".\"& mergeValue(C65)&\".\"& mergeValue(D65)&\".\"& mergeValue(E65)","v":"1.1.1.1.1"},"Группа потребителей",null,null,null,null,null,null,null,null,null,"Указывается группа потребителей при наличии дифференциации тарифа по группам потребителей.\nЗначение выбирается из перечня: Организации-перепродавцы; Бюджетные организации; Население; Прочие; Без дифференциации.\nВ случае дифференциации тарифов группам потребителей информация по ним указывается в отдельных строках.",null,{"$f":"strCheckUnique(Z65:Z68)","v":""}]
[null,null,null,null,null,1,null,null,null,null,null,{"$f":"mergeValue(A66) &\".\"& mergeValue(B66)&\".\"& mergeValue(C66)&\".\"& mergeValue(D66)&\".\"& mergeValue(E66)&\".\"& mergeValue(F66)","v":"1.1.1.1.1.1"},null,null,null,null,null,null,"да",null,"нет",null,"В колонке «Параметр дифференциации тарифов» указывается значение дополнительного признака дифференциации.\nПри утверждении двухставочного тарифа колонка «Одноставочный тариф» не заполняется.\nПри утверждении одноставочного тарифа колонки в блоке «Двухставочный тариф» не заполняются.\nДаты начала и окончания действия тарифов указываются в виде «ДД.ММ.ГГГГ».\nВ случае отсутствия даты окончания действия тарифа в колонке «Дата окончания» указывается «Нет».\nВ случае наличия нескольких значений признака дифференциации тарифов информация по ним указывается в отдельных строках.\nВ случае дифференциации тарифов по периодам действия тарифа информация по ним указывается в отдельных колонках.",{"$f":"strCheckDate(O67:V67)","v":""},null,{"$f":"IF(M66=\"\",\"\",M66 )","v":""}]
[null,null,null,null,null,null,null,null,null,null,null,null,null,null,null,null,{"$f":"R66 & \"-\" & T66","v":"-"}]
[null,null,null,null,null,null,null,null,null,null,null,null,"Добавить значение признака дифференциации"]
[null,null,null,null,null,null,null,null,null,null,null,null,"Добавить группу потребителей"]
[null,null,null,null,null,null,null,null,null,null,null,null,"Добавить наименование признака дифференциации"]
[null,null,null,null,null,null,null,null,null,null,null,null,"Добавить наименование системы водоотведения"]
[null,null,null,null,null,null,null,null,null,null,null,null,"Добавить территорию действия тарифа"]
[null,null,null,null,null,null,null,null,null,null,null,null,"Добавить наименование тарифа"]
[]
["et_List06(_1,_2,_3)",null,"4"]
[]
[1,null,null,null,null,null,null,null,null,null,null,{"$f":"mergeValue(A77)","v":1},"Наименование тарифа",null,null,null,null,null,null,null,null,null,"Указывается наименование тарифа в случае утверждения нескольких тарифов.\nВ случае наличия нескольких тарифов информация по ним указывается в отдельных строках."]
[null,1,null,null,null,null,null,null,null,null,null,{"$f":"mergeValue(A78) &\".\"& mergeValue(B78)","v":"1.1"},"Территория действия тарифа",null,null,null,null,null,null,null,null,null,"Указывается наименование территории действия тарифа при наличии дифференциации тарифа по территориальному признаку.\nВ случае дифференциации тарифов по территориальному признаку информация по ним указывается в отдельных строках."]
[null,null,1,null,null,null,null,null,null,null,null,{"$f":"mergeValue(A79) &\".\"& mergeValue(B79)&\".\"& mergeValue(C79)","v":"1.1.1"},"Наименование централизованной системы водоотведения",null,null,null,null,null,null,null,null,null,"Указывается наименование централизованной системы водоотведения при наличии дифференциации тарифа по централизованным системам водоотведения.\nВ случае дифференциации тарифов по централизованным системам водоотведения информация по ним указывается в отдельных строках."]
[null,null,null,1,null,null,null,null,null,null,null,{"$f":"mergeValue(A80) &\".\"& mergeValue(B80)&\".\"& mergeValue(C80)&\".\"& mergeValue(D80)","v":"1.1.1.1"},"Наименование признака дифференциации",null,null,null,null,null,null,null,null,null,"Указывается наименование дополнительного признака дифференциации (при наличии).\nДифференциация тарифа осуществляется в соответствии с законодательством в сфере водоснабжении и водоотведении.\nВ случае дифференциации тарифов по дополнительным признакам информация по ним указывается в отдельных строках."]
[null,null,null,null,1,null,null,null,null,null,null,{"$f":"mergeValue(A81) &\".\"& mergeValue(B81)&\".\"& mergeValue(C81)&\".\"& mergeValue(D81)&\".\"& mergeValue(E81)","v":"1.1.1.1.1"},"Группа потребителей",null,null,null,null,null,null,null,null,null,"Указывается группа потребителей при наличии дифференциации тарифа по группам потребителей.\nЗначение выбирается из перечня: Организации-перепродавцы; Бюджетные организации; Население; Прочие; Без дифференциации.\nВ случае дифференциации тарифов группам потребителей информация по ним указывается в отдельных строках.",null,{"$f":"strCheckUnique(Z81:Z84)","v":""}]
[null,null,null,null,null,1,null,null,null,null,null,{"$f":"mergeValue(A82) &\".\"& mergeValue(B82)&\".\"& mergeValue(C82)&\".\"& mergeValue(D82)&\".\"& mergeValue(E82)&\".\"& mergeValue(F82)","v":"1.1.1.1.1.1"},null,null,null,null,null,null,"да",null,"нет",null,"В колонке «Параметр дифференциации тарифов» указывается значение дополнительного признака дифференциации.\nПри утверждении двухставочного тарифа колонка «Одноставочный тариф» не заполняется.\nПри утверждении одноставочного тарифа колонки в блоке «Двухставочный тариф» не заполняются.\nДаты начала и окончания действия тарифов указываются в виде «ДД.ММ.ГГГГ».\nВ случае отсутствия даты окончания действия тарифа в колонке «Дата окончания» указывается «Нет».\nВ случае наличия нескольких значений признака дифференциации тарифов информация по ним указывается в отдельных строках.\nВ случае дифференциации тарифов по периодам действия тарифа информация по ним указывается в отдельных колонках.",{"$f":"strCheckDate(O83:V83)","v":""},null,{"$f":"IF(M82=\"\",\"\",M82 )","v":""}]
[null,null,null,null,null,null,null,null,null,null,null,null,null,null,null,null,{"$f":"R82 & \"-\" & T82","v":"-"}]
[null,null,null,null,null,null,null,null,null,null,null,null,"Добавить значение признака дифференциации"]
[null,null,null,null,null,null,null,null,null,null,null,null,"Добавить группу потребителей"]
[null,null,null,null,null,null,null,null,null,null,null,null,"Добавить наименование признака дифференциации"]
[null,null,null,null,null,null,null,null,null,null,null,null,"Добавить наименование системы водоотведения"]
[null,null,null,null,null,null,null,null,null,null,null,null,"Добавить территорию действия тарифа"]
[null,null,null,null,null,null,null,null,null,null,null,null,"Добавить наименование тарифа"]
[null,null,null,null,null,null,"et_List06(_1,_2,_3)",null,"5"]
[]
[null,null,null,null,null,null,null,null,null,null,null,"1","Наименование тарифа"]
[null,null,null,null,null,null,null,null,null,null,null,"1.1","Территория действия тарифа"]
[null,null,null,null,null,null,null,null,null,null,null,"1.1.1","Наименование системы теплоснабжения "]
[null,null,null,null,null,null,null,null,null,null,null,"1.1.1.1","Источник тепловой энергии  "]
[]
[null,null,null,null,null,null,null,null,null,null,null,"1.1.1.1.1.1","Группа потребителей",null,null,null,null,null,null,null,null,null,null,null,null,null,null,null,null,{"$f":"strCheckUnique(AE97:AE103)","v":""}]
[null,null,null,null,null,null,null,1,null,null,null,null,null,null,null,null,null,null,null,null,null,{"$f":"W98 & \"-\" & Y98","v":"-"},null,"да",null,"нет",null,null,{"$f":"strCheckDate(O98:AA98)","v":""},null,{"$f":"IF(M98=\"\",\"\",M98 )","v":""}]
[null,null,null,null,null,null,null,null,null,null,null,null,null,null,null,null,null,null,null,null,null,null,null,null,null,null,null,null,null,null,null,{"$f":"OFFSET(AF99,-1,0)","v":0}]
[null,null,null,null,null,null,null,null,null,null,null,null,null,null,null,null,null,null,null,null,null,{"$f":"W100 & \"-\" & Y100","v":"-"},null,"да",null,"нет",null,null,{"$f":"strCheckDate(O100:AA100)","v":""}]
[null,null,null,null,null,null,null,null,null,null,null,null,null,null,null,null,null,null,null,null,null,null,null,null,null,null,null,null,null,null,null,{"$f":"OFFSET(AF101,-1,0)","v":0}]
[null,null,null,null,null,null,null,null,null,null,null,null,"Добавить поставщика"]
[null,null,null,null,null,null,null,null,null,null,null,null,"Добавить вид теплоносителя (параметры теплоносителя)"]
[null,null,null,null,null,null,null,null,null,null,null,null,"Добавить группу потребителей"]
[]
[null,null,null,null,null,null,null,null,null,null,null,null,"Добавить источник тепловой энергии"]
[null,null,null,null,null,null,null,null,null,null,null,null,"Добавить наименование системы теплоснабжения"]
[null,null,null,null,null,null,null,null,null,null,null,null,"Добавить территорию действия тарифа"]
[null,null,null,null,null,null,null,null,null,null,null,null,null,null,null,null,null,null,null,null,null,null,null,"да",null,"нет"]
[]
[]
[null,null,null,null,null,null,"et_List06(_1,_2,_3)",null,"6"]
[]
[null,null,null,null,null,null,null,null,null,null,null,"1","Наименование тарифа"]
[null,null,null,null,null,null,null,null,null,null,null,"1.1","Территория действия тарифа"]
[null,null,null,null,null,null,null,null,null,null,null,"1.1.1","Наименование системы теплоснабжения "]
[null,null,null,null,null,null,null,null,null,null,null,"1.1.1.1","Источник тепловой энергии  "]
[]
[null,null,null,null,null,null,null,null,null,null,null,"1.1.1.1.1.1","Группа потребителей",null,null,null,null,null,null,null,null,null,null,null,{"$f":"strCheckUnique(Z119:Z122)","v":""}]
[null,null,null,null,null,null,null,1,null,null,null,null,null,null,null,null,null,null,"да",null,"нет",null,null,{"$f":"strCheckDate(O121:V121)","v":""},null,{"$f":"IF(M120=\"\",\"\",M120 )","v":""}]
[null,null,null,null,null,null,null,null,null,null,null,null,null,null,null,null,{"$f":"R120 & \"-\" & T120","v":"-"}]
[null,null,null,null,null,null,null,null,null,null,null,null,"Добавить вид теплоносителя (параметры теплоносителя)"]
[null,null,null,null,null,null,null,null,null,null,null,null,"Добавить группу потребителей"]
[]
[null,null,null,null,null,null,null,null,null,null,null,null,"Добавить источник тепловой энергии"]
[null,null,null,null,null,null,null,null,null,null,null,null,"Добавить наименование системы теплоснабжения"]
[null,null,null,null,null,null,null,null,null,null,null,null,"Добавить территорию действия тарифа"]
[]
[null,null,null,null,null,null,"et_List06(_1,_2,_3)",null,"7"]
[]
[null,null,null,null,null,null,null,null,null,null,null,"1","Наименование тарифа"]
[null,null,null,null,null,null,null,null,null,null,null,"1.1","Территория действия тарифа"]
[null,null,null,null,null,null,null,null,null,null,null,"1.1.1","Наименование системы теплоснабжения "]
[null,null,null,null,null,null,null,null,null,null,null,"1.1.1.1","Источник тепловой энергии  "]
[]
[null,null,null,null,null,null,null,null,null,null,null,"1.1.1.1.1.1","Группа потребителей",null,null,null,null,null,null,null,null,null,null,null,{"$f":"strCheckUnique(Z136:Z139)","v":""}]
[null,null,null,null,null,null,null,1,null,null,null,null,null,null,null,null,null,null,"да",null,"нет",null,null,{"$f":"strCheckDate(O138:V138)","v":""},null,{"$f":"IF(M137=\"\",\"\",M137 )","v":""}]
[null,null,null,null,null,null,null,null,null,null,null,null,null,null,null,null,{"$f":"R137 & \"-\" & T137","v":"-"}]
[null,null,null,null,null,null,null,null,null,null,null,null,"Добавить вид теплоносителя (параметры теплоносителя)"]
[null,null,null,null,null,null,null,null,null,null,null,null,"Добавить группу потребителей"]
[]
[null,null,null,null,null,null,null,null,null,null,null,null,"Добавить источник тепловой энергии"]
[null,null,null,null,null,null,null,null,null,null,null,null,"Добавить наименование системы теплоснабжения"]
[null,null,null,null,null,null,null,null,null,null,null,null,"Добавить территорию действия тарифа"]
[]
[null,null,null,null,null,null,"et_List06(_1,_2,_3)",null,"8"]
[]
[null,null,null,null,null,null,null,null,null,null,null,"1","Наименование тарифа"]
[null,null,null,null,null,null,null,null,null,null,null,"1.1","Территория действия тарифа"]
[null,null,null,null,null,null,null,null,null,null,null,"1.1.1","Наименование системы теплоснабжения "]
[null,null,null,null,null,null,null,null,null,null,null,"1.1.1.1","Источник тепловой энергии  "]
[null,null,null,null,null,null,null,null,null,null,null,"1.1.1.1.1","Схема подключения теплопотребляющей установки к коллектору источника тепловой энергии"]
[null,null,null,null,null,null,null,null,null,null,null,"1.1.1.1.1.1","Группа потребителей",null,null,null,null,null,null,null,null,null,null,null,{"$f":"strCheckUnique(Z153:Z156)","v":""}]
[null,null,null,null,null,null,null,1,null,null,null,null,null,null,null,null,null,null,"да",null,"нет",null,null,{"$f":"strCheckDate(O155:V155)","v":""},null,{"$f":"IF(M154=\"\",\"\",M154 )","v":""}]
[null,null,null,null,null,null,null,null,null,null,null,null,null,null,null,null,{"$f":"R154 & \"-\" & T154","v":"-"}]
[null,null,null,null,null,null,null,null,null,null,null,null,"Добавить вид теплоносителя (параметры теплоносителя)"]
[null,null,null,null,null,null,null,null,null,null,null,null,"Добавить группу потребителей"]
[null,null,null,null,null,null,null,null,null,null,null,null,"Добавить схему подключения"]
[null,null,null,null,null,null,null,null,null,null,null,null,"Добавить источник тепловой энергии"]
[null,null,null,null,null,null,null,null,null,null,null,null,"Добавить наименование системы теплоснабжения"]
[null,null,null,null,null,null,null,null,null,null,null,null,"Добавить территорию действия тарифа"]
[]
["et_List06(_1,_2,_3)",null,"9"]
[]
[]
[1,null,null,null,null,null,null,null,null,null,null,{"$f":"mergeValue(A166)","v":1},"Наименование тарифа",null,null,null,null,null,null,null,null,null,null,null,null,null,null,null,null,null,null,null,null,null,null,null,null,null,"Указывается наименование тарифа в случае утверждения нескольких тарифов.\nВ случае наличия нескольких тарифов информация по ним указывается в отдельных строках."]
[null,1,null,null,null,null,null,null,null,null,null,{"$f":"mergeValue(A167) &\".\"& mergeValue(B167)","v":"1.1"},"Территория действия тарифа",null,null,null,null,null,null,null,null,null,null,null,null,null,null,null,null,null,null,null,null,null,null,null,null,null,"Указывается наименование территории действия тарифа при наличии дифференциации тарифа по территориальному признаку.\nВ случае дифференциации тарифов по территориальному признаку информация по ним указывается в отдельных строках."]
[null,null,1,null,null,null,null,null,null,null,null,{"$f":"mergeValue(A168) &\".\"& mergeValue(B168)&\".\"& mergeValue(C168)","v":"1.1.1"},"Наименование централизованной системы водоотведения",null,null,null,null,null,null,null,null,null,null,null,null,null,null,null,null,null,null,null,null,null,null,null,null,null,"Указывается наименование централизованной системы водоотведения при наличии дифференциации тарифа по централизованным системам водоотведения.\nВ случае дифференциации тарифов по централизованным системам водоотведения информация по ним указывается в отдельных строках."]
[null,null,null,1,null,null,null,null,null,null,null,{"$f":"mergeValue(A169) &\".\"& mergeValue(B169)&\".\"& mergeValue(C169)&\".\"& mergeValue(D169)","v":"1.1.1.1"},null,"да",null,"1",null,"нет",null,1,null,"нет",null,1,null,"нет",null,1,null,null,null,null,null,null,"да",null,"нет",null,"В колодке «Параметр дифференциации тарифа/Заявитель» указывается наименование категории потребителей, к которой относится тариф.\nДаты начала и окончания указываются в виде «ДД.ММ.ГГГГ».\nВ случае отсутствия даты окончания тарифа в колонке «Дата окончания» указывается «Нет».\nВ случае наличия дифференциации по подключаемой нагрузке, диапазону диаметров, протяженности, условиям прокладки канализационной сети информация по ним указывается в отдельных строках.\nВ случае дифференциации тарифов по периодам действия тарифа информация по ним указывается в отдельных колонках.",{"$f":"strCheckDateOnDP(AD169:AL169,List06_9_DP)","v":""},{"$f":"IF(AND(COUNTIF(AP165:AP165,AP169)>1,AP169<>\"\"),\"ErrUnique:HasDoubleConn\",\"\")","v":""}]
[null,null,null,null,null,null,null,null,null,null,null,null,null,null,null,null,null,null,null,null,null,null,null,null,null,null,null,null,null,null,null,null,{"$f":"AH169 & \"-\" & AJ169","v":"-"},null,null,null,"нет"]
[]
[]
[null,null,null,null,null,null,null,null,null,null,null,null,null,null,null,null,"Добавить подключаемую нагрузку"]
[null,null,null,null,null,null,null,null,null,null,null,null,"Добавить строку"]
[null,null,null,null,null,null,null,null,null,null,null,null,"Добавить наименование системы водоотведения"]
[null,null,null,null,null,null,null,null,null,null,null,null,"Добавить территорию действия тарифа"]
[null,null,null,null,null,null,null,null,null,null,null,null,"Добавить наименование тарифа"]
[]
["et_List06(_1,_2,_3)",null,"10"]
[]
[1,null,null,null,null,null,null,null,null,null,null,{"$f":"mergeValue(A181)","v":1},"Наименование тарифа",null,null,null,null,null,null,null,null,null,null,null,null,null,null,null,null,null,null,null,null,null,null,null,null,"Указывается наименование тарифа в случае утверждения нескольких тарифов.\nВ случае наличия нескольких тарифов информация по ним указывается в отдельных строках."]
[null,1,null,null,null,null,null,null,null,null,null,{"$f":"mergeValue(A182) &\".\"& mergeValue(B182)","v":"1.1"},"Территория действия тарифа",null,null,null,null,null,null,null,null,null,null,null,null,null,null,null,null,null,null,null,null,null,null,null,null,"Указывается наименование территории действия тарифа при наличии дифференциации тарифа по территориальному признаку.\nВ случае дифференциации тарифов по территориальному признаку информация по ним указывается в отдельных строках."]
[null,null,1,null,null,null,null,null,null,null,null,{"$f":"mergeValue(A183) &\".\"& mergeValue(B183)&\".\"& mergeValue(C183)","v":"1.1.1"},"Наименование централизованной системы водоотведения",null,null,null,null,null,null,null,null,null,null,null,null,null,null,null,null,null,null,null,null,null,null,null,null,"Указывается наименование централизованной системы водоотведения при наличии дифференциации тарифа по централизованным системам водоотведения.\nВ случае дифференциации тарифов по централизованным системам водоотведения информация по ним указывается в отдельных строках."]
[null,null,null,1,null,null,null,null,null,null,null,{"$f":"mergeValue(A184) &\".\"& mergeValue(B184)&\".\"& mergeValue(C184)&\".\"& mergeValue(D184)","v":"1.1.1.1"},null,null,"1",null,"нет",null,1,null,"нет",null,"1",null,"нет",null,1,null,null,null,null,null,null,"да",null,"нет",null,"В колодке «Параметр дифференциации тарифа/Заявитель» указывается наименование категории потребителей, к которой относится тариф.\nДаты начала и окончания указываются в виде «ДД.ММ.ГГГГ».\nВ случае отсутствия даты окончания тарифа в колонке «Дата окончания» указывается «Нет».\nВ случае наличия дифференциации по подключаемой нагрузке, диапазону диаметров, протяженности, условиям прокладки канализационной сети информация по ним указывается в отдельных строках.\nВ случае дифференциации тарифов по периодам действия тарифа информация по ним указывается в отдельных колонках.",{"$f":"strCheckDateOnDP(AC184:AK184,List06_10_DP)","v":""},{"$f":"IF(AND(COUNTIF(AO180:AO180,AO184)>1,AO184<>\"\"),\"ErrUnique:HasDoubleConn\",\"\")","v":""}]
[null,null,null,null,null,null,null,null,null,null,null,null,null,null,null,null,null,null,null,null,null,null,null,null,null,null,null,null,null,null,null,{"$f":"AG184 & \"-\" & AI184","v":"-"},null,null,null,"нет"]
[]
[]
[null,null,null,null,null,null,null,null,null,null,null,null,null,null,null,"Добавить подключаемую нагрузку"]
[null,null,null,null,null,null,null,null,null,null,null,null,"Добавить строку"]
[null,null,null,null,null,null,null,null,null,null,null,null,"Добавить наименование системы водоотведения"]
[null,null,null,null,null,null,null,null,null,null,null,null,"Добавить территорию действия тарифа"]
[null,null,null,null,null,null,null,null,null,null,null,null,"Добавить наименование тарифа"]
[]
[]
[]
[]
[]
[]
[]
[null,null,null,null,null,null,null,null,null,null,null,null,null,null,null,null,"нет",null,1,null,"да",null,1,null,"да",null,1]
[null,null,null,null,null,null,null,null,null,null,null,null,null,null,null,null,null,null,null,null,null,null,null,null,null,null,null,"Добавить условия прокладки сетей"]
[null,null,null,null,null,null,null,null,null,null,null,null,null,null,null,null,null,null,null,null,null,null,null,"Добавить протяженность канализационной сети"]
[]
[]
[]
["et_List07"]
[]
[]
[]
["et_List06"]
[]
[null,null,null,null,1]
[]
["et_List07"]
[]
[null,null,null,null,"1"]
[]
["et_List08"]
[]
[null,null,null,null,"1"]
[]
["et_List00_01","et_List00_02","et_List00_03"]
[]
[null,null,null,null,null,"Адрес регулируемой организации"]
[null,null,null,null,"Юридический адрес"]
[null,null,null,null,"Почтовый адрес"]
[]
[null,null,null,null,null,"Руководитель"]
[null,null,null,null,"Фамилия, имя, отчество"]
[null,null,null,null,"(код) номер телефона"]
[]
[null,null,null,null,null,"Главный бухгалтер"]
[null,null,null,null,"Фамилия, имя, отчество"]
[null,null,null,null,"(код) номер телефона"]
[]
[null,null,null,null,null,"Должностное лицо, ответственное за составление формы"]
[null,null,null,null,"Фамилия, имя, отчество"]
[null,null,null,null,"Должность"]
[null,null,null,null,"(код) номер телефона"]
[null,null,null,null,"e-mail"]
[]
["et_List03"]
[]
["3","",null,null,null,"","","",null,null,null,null,{"$f":"IF(ISERROR(INDEX(kind_of_nameforms,MATCH(E244,kind_of_forms,0),1)),\"\",INDEX(kind_of_nameforms,MATCH(E244,kind_of_forms,0),1))","v":""}]
[]
[]
["et_List01_0"]
[]
[null,"auto",null,1,null,null,0,null,null,"0",null,null,{"$f":"mergeValue(H249)","v":0},null,null,{"$f":"IF(ISERROR(MATCH(Q249,MODesc,0)),\"n\",\"y\")","v":"n"},null,{"$f":"K249&\"(\"&L249&\")\"","v":"()"}]
[null,null,null,null,null,null,null,"Добавить МР"]
[]
["et_List01_1"]
[]
[null,"auto",null,null,null,null,0,null,null,"0",null,null,{"$f":"mergeValue(H254)","v":0},null,null,null,null,{"$f":"K254&\"(\"&L254&\")\"","v":"()"}]
[null,null,null,null,null,null,null,null,null,null,"Добавить МО"]
[]
["et_List01_2"]
[]
[null,"auto",null,null,null,null,null,null,null,0,null,null,{"$f":"mergeValue(H259)","v":0},null,null,null,null,{"$f":"K259&\" (\"&L259&\")\"","v":" ()"}]
[]
[]
["et_List11_1"]
[]
[]
[]
[]
["et_List12_1"]
[]
[null,null,null,null,null,"x","x"]
[]
[]
["et_List12_2"]
[]
[null,null,null,null,null,"x",null,"x"]
[]
[]
["et_List12_3"]
[]
[null,null,null,null,{"$f":"E278","v":0},"x",null,"x"]
[]
[]
["et_List12_4"]
[]
[null,null,null,null,{"$f":"E283","v":0},"x",null,"x"]
[]
[]
["et_List05(_1,_2,_3,_4)"]
[]
[1,null,null,null,null,{"$f":"\"2.\" &mergeValue(A289)","v":"2.1"},"Наименование централизованной системы коммунальной инфраструктуры",null,"Указывается наименование централизованной системы холодного водоснабжения/горячего водоснабжения/водоотведения/теплоснабжения, к которой относится размещаемая информация.\nВ случае наличия нескольких централизованных систем коммунальной инфраструктуры, информация по каждой из них указывается в отдельной строке."]
[null,null,null,null,null,{"$f":"\"3.\" &mergeValue(A290)","v":"3.1"},"Наименование регулируемого вида деятельности",null,"Указывается наименование вида регулируемой деятельности."]
[null,null,null,null,null,{"$f":"\"4.\"&mergeValue(A291)","v":"4.1"},"Территория оказания услуги по регулируемому виду деятельности","x"]
[null,1,null,null,null,{"$f":"\"4.\"&mergeValue(A292) &\".\"&mergeValue(B292)","v":"4.1.1"},"Субъект Российской Федерации",{"$f":"IF(region_name=\"\",\"\",region_name)","v":{"$error":"#REF!"}},"Указывается наименование субъекта Российской Федерации"]
[null,null,1,null,null,{"$f":"\"4.\"&mergeValue(A293) &\".\"&mergeValue(B293)&\".\"&mergeValue(C293)","v":"4.1.1.1"},"муниципальный район",null,"Указывается наименование муниципального района, на территории которого организация оказывает услуги по регулируемому виду деятельности."]
[null,null,null,1,null,{"$f":"\"4.\"&mergeValue(A294) &\".\"&mergeValue(B294)&\".\"&mergeValue(C294)&\".\"&mergeValue(D294)","v":"4.1.1.1.1"},"муниципальное образование",null,"Указывается наименование и код муниципального района, муниципального образования в соответствии с Общероссийским классификатором территорий муниципальных образований (далее - ОКТМО), входящего в муниципальный район, на территории которого организация оказывает услуги по регулируемому виду деятельности.\nВ случае оказания услуг по регулируемому виду деятельности на территории нескольких муниципальных районов (муниципальных образований) данные по каждому их них указываются в отдельной строке."]
[null,null,null,null,null,null,"Добавить МО"]
[null,null,null,null,null,null,"Добавить МР"]
[null,null,null,null,null,null,"Добавить территорию"]
[null,null,null,null,null,null,"Добавить ЦС"]

{"sheet":"REESTR_MO_FILTER","index":36,"n_rows":0,"n_cols":0,"rows_kept":0,"cut":false,"hidden":true,"merged":[]}

{"sheet":"REESTR_MO","index":37,"n_rows":19,"n_cols":4,"rows_kept":19,"cut":false,"hidden":true,"merged":[]}
["№","МР","МО","МО_ОКТМО"]
[1,"Анивский городской округ","Анивский городской округ","64708000"]
[2,"Корсаковский городской округ","Корсаковский городской округ","64716000"]
[3,"Курильский городской округ","Курильский городской округ","64720000"]
[4,"Макаровский городской округ","Макаровский городской округ","64724000"]
[5,"Невельский городской округ","Невельский городской округ","64728000"]
[6,"Северо-Курильский городской округ","Северо-Курильский городской округ","64743000"]
[7,"Томаринский городской округ","Томаринский городской округ","64748000"]
[8,"Тымовский городской округ","Тымовский городской округ","64750000"]
[9,"Холмский городской округ","Холмский городской округ","64754000"]
[10,"Южно-Курильский городской округ","Южно-Курильский городской округ","64756000"]
[11,"городской округ \"Александровск-Сахалинский район\"","городской округ \"Александровск-Сахалинский район\"","64704000"]
[12,"городской округ \"Город Южно-Сахалинск\"","городской округ \"Город Южно-Сахалинск\"","64701000"]
[13,"городской округ \"Долинский\"","городской округ \"Долинский\"","64712000"]
[14,"городской округ \"Ногликский\"","городской округ \"Ногликский\"","64732000"]
[15,"городской округ \"Охинский\"","городской округ \"Охинский\"","64736000"]
[16,"городской округ \"Поронайский\"","городской округ \"Поронайский\"","64740000"]
[17,"городской округ \"Смирныховский\"","городской округ \"Смирныховский\"","64746000"]
[18,"городской округ \"Углегорский\"","городской округ \"Углегорский\"","64752000"]

{"sheet":"TEHSHEET","index":38,"n_rows":87,"n_cols":53,"rows_kept":87,"cut":false,"hidden":true,"merged":[[0,51,0,52]]}
["REGION","year_list1","year_list","logical","Месяц\n(MONTH)","Квартал\n(QUARTER)","Месяц\n(kind_of_publication)","НДС\n/kind_of_NDS/","Номер СЦХВ(СЦВО)\n/SKI_number/","Единица измерения объема оказываемых услуг ГВС\n/kind_of_unit_GVS/","Метод регулирования\n/kind_of_control_method/",null,null,"Вид деятельности, на которую установлен тариф /kind_of_activity_WARM/","Вид теплоносителя\n(kind_of_heat_transfer)","Тип данных\n(kind_of_data_type)","Схема подключения\n(kind_of_scheme_in)\n(kind_of_scheme_in2)","Группы потребителей\n(kind_of_cons)","Тип прокладки тепловых сетей\n(kind_of_nets)","Диапазаны диаметров тепловых сетей\n(kind_of_diameters)","Подключаемая тепловая нагрузка\n(kind_of_load)",null,"Форма 2, таблица Х","виды тарифа\n/kind_group_rates/","Заголовок таблицы",null,"name_rates_4",null,"name_rates_8",null,null,"Подключаемая тепловая нагрузка\n(kind_of_load3)",null,"Вид теплоносителя\n(kind_of_heat_transfer2)","Вид теплоносителя\n(kind_of_heat_transfer3)",null,"Вид топлива\n(kind_of_fuel)",null,"Способ закупки товаров\n(kind_of_zak)",null,null,"виды тарифа\n/kind_group_rates_load/","виды тарифа\n/kind_group_rates_load_filter/",null,"виды признаков дифференциации\n/kind_of_diff/",null,"Диапазаны диаметров водопроводных сетей\n(kind_of_diameters2)",null,"List_H","List_M",null,"Перечень форм\n(kind_of_forms)"]
["Алтайский край",2000,2013,"да","январь","I квартал","На официальном сайте организации","общий","1","тыс.куб.м/сутки","метод экономически обоснованных расходов (затрат)","метод экономически обоснованных расходов (затрат)",1,"Передача+Сбыт","Без дифференциации","первичное раскрытие информации","без дифференциации","организации-перепродавцы","надземная (наземная)","50 - 250 мм","не превышает 0,1 Гкал/ч",1,null,"Тариф на водоотведение","Информация о предложении об установлении тарифов на водоотведение",null,"Тариф на холодную воду питьевую","Тариф на холодную воду питьевую","Плата за услуги по поддержанию резервной тепловой мощности при отсутствии потребления тепловой энергии для отдельных категорий (групп) социально значимых потребителей","Плата за услуги по поддержанию резервной тепловой мощности при отсутствии потребления тепловой энергии для отдельных категорий (групп) социально значимых потребителей",null,"не превышает 0,1 Гкал/ч",null,"Вода","Вода",null,"Газ природный по регулируемой цене",null,"Конкурс",null,null,"Тариф на подключение (технологическое присоединение) к централизованной системе водоотведения в индивидуальном порядке","Тариф на подключение (технологическое присоединение) к централизованной системе водоотведения в индивидуальном порядке",null,"объемы потребления воды абонентами",null,"40 мм и менее",null,"00","00",null,"Форма 1.0.1","Основные параметры раскрываемой информации"]
["Амурская область",2001,2014,"нет","февраль","II квартал","На сайте регулирующего органа","общий с учетом освобождения от уплаты НДС","2","Гкал/ч","метод индексации установленных тарифов","метод индексации установленных тарифов",2,"Передача","Горячая вода","изменения в раскрытой ранее информации","к коллектору источника тепловой энергии","бюджетные организации","подземная (канальная)","251 - 400 мм","более 0,1 Гкал/ч и не превышает 1,5 Гкал/ч",2,null,"Тариф на транспортировку сточных вод","Информация о предложении об установлении тарифов на транспортировку сточных вод",null,"Тариф на холодную воду артезианскую","Тариф на холодную воду артезианскую","Плата за услуги по поддержанию резервной тепловой мощности, оказываемые регулируемой организацией, мощность источников тепловой энергии которой используется для поддержания резервной мощности в соответствии со схемой теплоснабжения","Плата за услуги по поддержанию резервной тепловой мощности, оказываемые регулируемой организацией, мощность источников тепловой энергии которой используется для поддержания резервной мощности в соответствии со схемой теплоснабжения",null,"более 0,1 Гкал/ч и не превышает 1,5 Гкал/ч",null,"Отборный пар, 1,2-2,5 кг/см2","Пар",null,"Газ природный по нерегулируемой цене",null,"Аукцион",null,null,"Тариф на подключение (технологическое присоединение) к централизованной системе водоотведения","Тариф на подключение (технологическое присоединение) к централизованной системе водоотведения",null,"соответствие качества питьевой воды и горячей воды требованиям, установленным санитарными нормами и правилами",null,"от 41 мм до 70 мм включительно",null,"01","01",null,"Форма 3.2","Информация о величинах тарифов на водоотведение, транспортировку воды"]
["Архангельская область",2002,2015,null,"март","III квартал",null,"специальный (упрощенная система налогообложения, система налогообложения для сельскохозяйственных производителей)","3","куб.м/ч","метод обеспечения доходности инвестированного капитала","метод обеспечения доходности инвестированного капитала",3,"производство комбинированная выработка","Холодная вода",null,"к тепловой сети без дополнительного преобразования на тепловых пунктах, эксплуатируемых теплоснабжающей организацией","население и приравненные категории","подземная (бесканальная)","401 - 550 мм","превышает 1,5 Гкал/ч при наличии технической возможности подключения",3,null,222,null,null,"Тариф на холодную воду поверхностную","Тариф на холодную воду поверхностную","Плата за услуги по поддержанию резервной тепловой мощности, оказываемые регулируемой организацией, мощность тепловых сетей которой используется для поддержания резервной мощности в соответствии со схемой теплоснабжения","Плата за услуги по поддержанию резервной тепловой мощности, оказываемые регулируемой организацией, мощность тепловых сетей которой используется для поддержания резервной мощности в соответствии со схемой теплоснабжения",null,"превышает 1,5 Гкал/ч при наличии технической возможности подключения",null,"Отборный пар, 2,5-7 кг/см2",null,null,"Уголь",null,"Аукцион в электронной форме",null,null,"Тариф на транспортировку сточных вод","Тариф на транспортировку сточных вод",null,"иное",null,"от 71 мм до 100 мм включительно",null,"02","02",null,"Форма 3.4","Информация о величинах тарифов на подключение к централизованной системе водоотведения"]
["Астраханская область",2003,2016,null,"апрель","IV квартал",null,null,"4",null,"метод сравнения аналогов","метод сравнения аналогов",4,"производство (некомбинированная выработка)+передача+сбыт","Вода",null,"к тепловой сети после тепловых пунктов (на тепловых пунктах), эксплуатируемых теплоснабжающей организацией","прочие",null,"551 - 700 мм","превышает 1,5 Гкал/ч при отсутствии технической возможности подключения",4,null,333,null,1,"Добавить вариант …","Добавить вариант …",null,null,null,"не известна",null,"Отборный пар, 7-13 кг/см2",null,null,"Мазут",null,"Запрос котировок",null,null,"Тариф на водоотведение",null,null,null,null,"от 101 мм до 150 мм включительно",null,"03","03",null,"Форма 3.9","Информация об условиях, на которых осуществляется поставка регулируемых товаров и (или) оказание регулируемых услуг"]
["Белгородская область",2004,2017,null,"май",null,"НДС общий\n/kind_of_NDS_tariff/","НДС\n/kind_of_NDS_tariff/","5","Вид тарифа на передачу тепловой энергии /kind_of_tariff_unit/",null,null,null,"производство (некомбинированная выработка)+передача","Пар",null,null,"без дифференциации",null,"701 мм и выше","не известна",5,null,55,55,null,null,null,null,null,null,null,null,"Отборный пар, > 13 кг/см2",null,null,"Дизельное топливо",null,"Единственный поставщик",null,null,null,null,null,null,null,"от 151 мм до 200 мм включительно",null,"04","04",null,"Форма 3.10","Информация о порядке выполнения технологических, технических и других мероприятий, связанных с подключением к централизованной системе водоотведения"]
["Брянская область",2005,null,null,"июнь",null,"тариф указан с НДС для плательщиков НДС","тариф для организаций не являющихся плательщиками НДС","6","руб./Гкал/ч/мес",null,null,null,"производство (некомбинированная выработка)+сбыт","Отборный пар, 1,2-2,5 кг/см2",null,null,null,null,null,"нет","6",null,66666,null,null,null,null,null,null,null,null,null,"Острый и редуцированный пар",null,null,"Дрова",null,"Иное",null,null,null,null,null,null,null,"от 201 мм до 250 мм включительно",null,"05","05"]
["Владимирская область",2006,null,null,"июль",null,"тариф указан без НДС для плательщиков НДС","тариф не утверждался","7","руб./Гкал",null,null,null,"производство (некомбинированная выработка)","Отборный пар, 2,5-7 кг/см2",null,null,null,null,null,null,"7",null,77777,null,null,null,null,null,null,null,null,null,null,null,null,"Электроэнергия",null,null,null,null,null,null,null,null,null,"от 250  мм и более",null,"06","06"]
["Волгоградская область",2007,null,null,"август",null,"тариф не утверждался",null,"8",null,null,null,null,null,"Отборный пар, 7-13 кг/см2",null,null,null,null,null,null,"8",null,8888,null,1,null,null,null,null,null,null,null,null,null,null,"Прочее",null,null,null,null,null,null,null,null,null,null,null,"07","07"]
["Вологодская область",2008,null,null,"сентябрь",null,null,null,"9",null,null,null,null,null,"Отборный пар, > 13 кг/см2",null,null,null,null,null,null,"9",null,"Тариф на подключение (технологическое присоединение) к централизованной системе водоотведения в индивидуальном порядке","Информация о предложении об установлении платы за подключение к централизованной системе водоотведения (индивидуальной)",null,null,null,null,null,null,null,null,null,null,null,null,null,null,null,null,null,null,null,null,null,null,null,"08","08"]
["Воронежская область",2009,null,null,"октябрь",null,null,null,"10",null,null,null,null,null,"Острый и редуцированный пар",null,null,null,null,null,null,"10",null,"Тариф на подключение (технологическое присоединение) к централизованной системе водоотведения","Информация о предложении об установлении платы за подключение к централизованной системе водоотведения",null,null,null,null,null,null,null,null,null,null,null,null,null,null,null,null,null,null,null,null,null,null,null,"09","09"]
["г.Байконур",2010,null,null,"ноябрь",null,"НДС общий люди\n/kind_of_NDS_tariff_people/","НДС\n/kind_of_NDS_tariff_people/","11",null,null,null,null,null,"Горячая вода в системе централизованного теплоснабжения на отопление",null,null,null,null,null,null,null,null,null,null,null,null,null,null,null,null,null,null,null,null,null,null,null,null,null,null,null,null,null,null,null,null,null,"10","10"]
["г. Москва",2011,null,null,"декабрь",null,"тариф с НДС организаций-плательщиков НДС","тариф организаций не являющихся плательщиками НДС","12",null,null,null,null,null,"Прочее",null,null,null,null,null,null,null,null,null,null,null,null,null,null,null,null,null,null,null,null,null,null,null,null,null,null,null,null,null,null,null,null,null,"11","11"]
["г.Санкт-Петербург",2012,null,null,null,null,"тариф не утверждался","тариф не утверждался","13",null,null,null,null,"Вид деятельности /kind_of_activity/",null,null,null,null,null,null,null,null,null,null,null,null,null,null,null,null,null,null,null,null,null,null,null,null,null,null,null,null,null,null,null,null,null,null,"12","12"]
["г.Севастополь",2013,null,null,null,null,null,null,"14",null,null,null,null,"производство тепловой энергии (мощности) в режиме комбинированной выработки электрической и тепловой энергии источниками тепловой энергии с установленной генерирующей мощностью производства электрической энергии 25 МВт и более",null,null,null,null,null,null,null,null,null,null,null,null,null,null,null,null,null,null,null,null,null,null,null,null,null,null,null,null,null,null,null,null,null,null,"13","13"]
["Еврейская автономная область",2014,null,null,null,null,null,null,"15",null,null,null,null,"производство тепловой энергии (мощности) в режиме комбинированной выработки электрической и тепловой энергии источниками тепловой энергии с установленной генерирующей мощностью производства электрической энергии менее 25 МВт",null,null,null,null,null,null,null,null,null,null,null,null,null,null,null,null,null,null,null,null,null,null,null,null,null,null,null,null,null,null,null,null,null,null,"14","14"]
["Забайкальский край",2015,null,null,null,null,null,null,"16",null,null,null,null,"производство тепловой энергии (мощности) не в режиме комбинированной выработки электрической и тепловой энергии источниками тепловой энергии",null,null,null,null,null,null,null,null,null,null,null,null,null,null,null,null,null,null,null,null,null,null,null,null,null,null,null,null,null,null,null,null,null,null,"15","15"]
["Ивановская область",2016,null,null,null,null,null,null,"17",null,null,null,null,"производство теплоносителя",null,null,null,null,null,null,null,null,null,null,null,null,null,null,null,null,null,null,null,null,null,null,null,null,null,null,null,null,null,null,null,null,null,null,"16","16"]
["Иркутская область",2017,null,null,null,null,null,null,"18",null,null,null,null,"передача тепловой энергии и теплоносителя",null,null,null,null,null,null,null,null,null,null,null,null,null,null,null,null,null,null,null,null,null,null,null,null,null,null,null,null,null,null,null,null,null,null,"17","17"]
["Кабардино-Балкарская республика",2018,null,null,null,null,null,null,"19",null,null,null,null,"сбыт тепловой энергии и теплоносителя",null,null,null,null,null,null,null,null,null,null,null,null,null,null,null,null,null,null,null,null,null,null,null,null,null,null,null,null,null,null,null,null,null,null,"18","18"]
["Калининградская область",2019,null,null,null,null,null,null,"20",null,null,null,null,"подключение к системе теплоснабжения",null,null,null,null,null,null,null,null,null,null,null,null,null,null,null,null,null,null,null,null,null,null,null,null,null,null,null,null,null,null,null,null,null,null,"19","19"]
["Калужская область",2020,null,null,null,null,null,null,null,null,null,null,null,"поддержание резервной тепловой мощности при отсутствии потребления тепловой энергии",null,null,null,null,null,null,null,null,null,null,null,null,null,null,null,null,null,null,null,null,null,null,null,null,null,null,null,null,null,null,null,null,null,null,"20","20"]
["Камчатский край",2021,null,null,null,null,null,null,null,null,null,null,null,null,null,null,null,null,null,null,null,null,null,null,null,null,null,null,null,null,null,null,null,null,null,null,null,null,null,null,null,null,null,null,null,null,null,null,"21","21"]
["Карачаево-Черкесская республика",2022,null,null,null,null,null,null,null,null,null,null,null,null,null,null,null,null,null,null,null,null,null,null,null,null,null,null,null,null,null,null,null,null,null,null,null,null,null,null,null,null,null,null,null,null,null,null,"22","22"]
["Кемеровская область",2023,null,null,null,null,null,null,null,null,null,null,null,null,null,null,null,null,null,null,null,null,null,null,null,null,null,null,null,null,null,null,null,null,null,null,null,null,null,null,null,null,null,null,null,null,null,null,"23","23"]
["Кировская область",2024,null,null,null,null,null,null,null,null,null,null,null,null,null,null,null,null,null,null,null,null,null,null,null,null,null,null,null,null,null,null,null,null,null,null,null,null,null,null,null,null,null,null,null,null,null,null,null,"24"]
["Костромская область",2025,null,null,null,null,null,null,null,null,null,null,null,null,null,null,null,null,null,null,null,null,null,null,null,null,null,null,null,null,null,null,null,null,null,null,null,null,null,null,null,null,null,null,null,null,null,null,null,"25"]
["Краснодарский край",null,null,null,null,null,null,"Текущая дата",null,null,null,null,null,null,null,null,null,null,null,null,null,null,null,null,null,null,null,null,null,null,null,null,null,null,null,null,null,null,null,null,null,null,null,null,null,null,null,null,null,"26"]
["Красноярский край",null,null,"Организация",{"$f":"IF(periodStart = \"\",\"\", periodStart)","v":{"$error":"#REF!"}},{"$f":"IF(periodEnd = \"\",\"\", periodEnd)","v":{"$error":"#REF!"}},null,"25.11.2022 13:25:07",null,null,null,null,null,null,null,null,null,null,null,null,null,null,null,null,null,null,null,null,null,null,null,null,null,null,null,null,null,null,null,null,null,null,null,null,null,null,null,null,null,"27"]
["Курганская область",null,null,null,null,null,null,null,null,null,null,null,null,null,null,null,null,null,null,null,null,null,null,null,null,null,null,null,null,null,null,null,null,null,null,null,null,null,null,null,null,null,null,null,null,null,null,null,null,"28"]
["Курская область",null,null,null,null,null,null,null,null,null,null,null,null,null,null,null,null,null,null,null,null,null,null,null,null,null,null,null,null,null,null,null,null,null,null,null,null,null,null,null,null,null,null,null,null,null,null,null,null,"29"]
["Ленинградская область",null,null,"Виды деятельности",null,null,null,"https://appsrv.regportal-tariff.ru/procwsxls/",null,null,null,null,null,null,null,null,null,null,null,null,null,null,null,null,null,null,null,null,null,null,null,null,null,null,null,null,null,null,null,null,null,null,null,null,null,null,null,null,null,"30"]
["Липецкая область",null,null,null,null,null,null,null,null,null,null,null,null,null,null,null,null,null,null,null,null,null,null,null,null,null,null,null,null,null,null,null,null,null,null,null,null,null,null,null,null,null,null,null,null,null,null,null,null,"31"]
["Магаданская область",null,null,null,null,null,null,null,null,null,null,null,null,null,null,null,null,null,null,null,null,null,null,null,null,null,null,null,null,null,null,null,null,null,null,null,null,null,null,null,null,null,null,null,null,null,null,null,null,"32"]
["Московская область",null,null,null,null,null,null,null,null,null,null,null,null,null,null,null,null,null,null,null,null,null,null,null,null,null,null,null,null,null,null,null,null,null,null,null,null,null,null,null,null,null,null,null,null,null,null,null,null,"33"]
["Мурманская область",null,null,null,null,null,null,null,null,null,null,null,null,null,null,null,null,null,null,null,null,null,null,null,null,null,null,null,null,null,null,null,null,null,null,null,null,null,null,null,null,null,null,null,null,null,null,null,null,"34"]
["Ненецкий автономный округ",null,null,null,null,null,null,null,null,null,null,null,null,null,null,null,null,null,null,null,null,null,null,null,null,null,null,null,null,null,null,null,null,null,null,null,null,null,null,null,null,null,null,null,null,null,null,null,null,"35"]
["Нижегородская область",null,null,null,null,null,null,null,null,null,null,null,null,null,null,null,null,null,null,null,null,null,null,null,null,null,null,null,null,null,null,null,null,null,null,null,null,null,null,null,null,null,null,null,null,null,null,null,null,"36"]
["Новгородская область",null,null,null,null,null,null,null,null,null,null,null,null,null,null,null,null,null,null,null,null,null,null,null,null,null,null,null,null,null,null,null,null,null,null,null,null,null,null,null,null,null,null,null,null,null,null,null,null,"37"]
["Новосибирская область",null,null,null,null,null,null,null,null,null,null,null,null,null,null,null,null,null,null,null,null,null,null,null,null,null,null,null,null,null,null,null,null,null,null,null,null,null,null,null,null,null,null,null,null,null,null,null,null,"38"]
["Омская область",null,null,null,null,null,null,null,null,null,null,null,null,null,null,null,null,null,null,null,null,null,null,null,null,null,null,null,null,null,null,null,null,null,null,null,null,null,null,null,null,null,null,null,null,null,null,null,null,"39"]
["Оренбургская область",null,null,null,null,null,null,null,null,null,null,null,null,null,null,null,null,null,null,null,null,null,null,null,null,null,null,null,null,null,null,null,null,null,null,null,null,null,null,null,null,null,null,null,null,null,null,null,null,"40"]
["Орловская область",null,null,null,null,null,null,null,null,null,null,null,null,null,null,null,null,null,null,null,null,null,null,null,null,null,null,null,null,null,null,null,null,null,null,null,null,null,null,null,null,null,null,null,null,null,null,null,null,"41"]
["Пензенская область",null,null,null,null,null,null,null,null,null,null,null,null,null,null,null,null,null,null,null,null,null,null,null,null,null,null,null,null,null,null,null,null,null,null,null,null,null,null,null,null,null,null,null,null,null,null,null,null,"42"]
["Пермский край",null,null,null,null,null,null,null,null,null,null,null,null,null,null,null,null,null,null,null,null,null,null,null,null,null,null,null,null,null,null,null,null,null,null,null,null,null,null,null,null,null,null,null,null,null,null,null,null,"43"]
["Приморский край",null,null,null,null,null,null,null,null,null,null,null,null,null,null,null,null,null,null,null,null,null,null,null,null,null,null,null,null,null,null,null,null,null,null,null,null,null,null,null,null,null,null,null,null,null,null,null,null,"44"]
["Псковская область",null,null,null,null,null,null,null,null,null,null,null,null,null,null,null,null,null,null,null,null,null,null,null,null,null,null,null,null,null,null,null,null,null,null,null,null,null,null,null,null,null,null,null,null,null,null,null,null,"45"]
["Республика Адыгея",null,null,null,null,null,null,null,null,null,null,null,null,null,null,null,null,null,null,null,null,null,null,null,null,null,null,null,null,null,null,null,null,null,null,null,null,null,null,null,null,null,null,null,null,null,null,null,null,"46"]
["Республика Алтай",null,null,null,null,null,null,null,null,null,null,null,null,null,null,null,null,null,null,null,null,null,null,null,null,null,null,null,null,null,null,null,null,null,null,null,null,null,null,null,null,null,null,null,null,null,null,null,null,"47"]
["Республика Башкортостан",null,null,null,null,null,null,null,null,null,null,null,null,null,null,null,null,null,null,null,null,null,null,null,null,null,null,null,null,null,null,null,null,null,null,null,null,null,null,null,null,null,null,null,null,null,null,null,null,"48"]
["Республика Бурятия",null,null,null,null,null,null,null,null,null,null,null,null,null,null,null,null,null,null,null,null,null,null,null,null,null,null,null,null,null,null,null,null,null,null,null,null,null,null,null,null,null,null,null,null,null,null,null,null,"49"]
["Республика Дагестан",null,null,null,null,null,null,null,null,null,null,null,null,null,null,null,null,null,null,null,null,null,null,null,null,null,null,null,null,null,null,null,null,null,null,null,null,null,null,null,null,null,null,null,null,null,null,null,null,"50"]
["Республика Ингушетия",null,null,null,null,null,null,null,null,null,null,null,null,null,null,null,null,null,null,null,null,null,null,null,null,null,null,null,null,null,null,null,null,null,null,null,null,null,null,null,null,null,null,null,null,null,null,null,null,"51"]
["Республика Калмыкия",null,null,null,null,null,null,null,null,null,null,null,null,null,null,null,null,null,null,null,null,null,null,null,null,null,null,null,null,null,null,null,null,null,null,null,null,null,null,null,null,null,null,null,null,null,null,null,null,"52"]
["Республика Карелия",null,null,null,null,null,null,null,null,null,null,null,null,null,null,null,null,null,null,null,null,null,null,null,null,null,null,null,null,null,null,null,null,null,null,null,null,null,null,null,null,null,null,null,null,null,null,null,null,"53"]
["Республика Коми",null,null,null,null,null,null,null,null,null,null,null,null,null,null,null,null,null,null,null,null,null,null,null,null,null,null,null,null,null,null,null,null,null,null,null,null,null,null,null,null,null,null,null,null,null,null,null,null,"54"]
["Республика Крым",null,null,null,null,null,null,null,null,null,null,null,null,null,null,null,null,null,null,null,null,null,null,null,null,null,null,null,null,null,null,null,null,null,null,null,null,null,null,null,null,null,null,null,null,null,null,null,null,"55"]
["Республика Марий Эл",null,null,null,null,null,null,null,null,null,null,null,null,null,null,null,null,null,null,null,null,null,null,null,null,null,null,null,null,null,null,null,null,null,null,null,null,null,null,null,null,null,null,null,null,null,null,null,null,"56"]
["Республика Мордовия",null,null,null,null,null,null,null,null,null,null,null,null,null,null,null,null,null,null,null,null,null,null,null,null,null,null,null,null,null,null,null,null,null,null,null,null,null,null,null,null,null,null,null,null,null,null,null,null,"57"]
["Республика Саха (Якутия)",null,null,null,null,null,null,null,null,null,null,null,null,null,null,null,null,null,null,null,null,null,null,null,null,null,null,null,null,null,null,null,null,null,null,null,null,null,null,null,null,null,null,null,null,null,null,null,null,"58"]
["Республика Северная Осетия-Алания",null,null,null,null,null,null,null,null,null,null,null,null,null,null,null,null,null,null,null,null,null,null,null,null,null,null,null,null,null,null,null,null,null,null,null,null,null,null,null,null,null,null,null,null,null,null,null,null,"59"]
["Республика Татарстан"]
["Республика Тыва"]
["Республика Хакасия"]
["Ростовская область"]
["Рязанская область"]
["Самарская область"]
["Саратовская область"]
["Сахалинская область"]
["Свердловская область"]
["Смоленская область"]
["Ставропольский край"]
["Тамбовская область"]
["Тверская область"]
["Томская область"]
["Тульская область"]
["Тюменская область"]
["Удмуртская республика"]
["Ульяновская область"]
["Хабаровский край"]
["Ханты-Мансийский автономный округ"]
["Челябинская область"]
["Чеченская республика"]
["Чувашская республика"]
["Чукотский автономный округ"]
["Ямало-Ненецкий автономный округ"]
["Ярославская область"]

{"sheet":"modInfo","index":39,"n_rows":36,"n_cols":2,"rows_kept":36,"cut":false,"hidden":true,"merged":[]}
[null,"Титульный"]
[null,"Для выбора того или иного источника публикации выполните двойной щелчок по синей ячейке напротив соответствующего источника.\nВНИМАНИЕ! Если Вы снимаете галочку с пункта, то будут скрыты и очищены соответствующие строки на листе \"Форма 1.0.2\"!\n\nОпубликование перечисленных в шаблоне показателей на сайте организации в сети Интернет и в печатных изданиях не обязательно, если данный шаблон предоставлен по системе ЕИАС (региональный сегмент)."]
[null,"Обязательное опубликование на официальном сайте органа исполнительной власти субъекта Российской Федерации в области государственного регулирования цен (тарифов), и (или) на официальном сайте органа местного самоуправления поселения или городского округа в случае их наделения в соответствии с законом субъекта Российской Федерации полномочиями по государственному регулированию цен (тарифов)предусмотрено пунктом 3 (а) постановления Правительства №6 от 17.01.2013г."]
[null,"Задайте период регулирования, выбрав даты начала и окончания периода регулирования из календаря (иконка справа от указанной ячейки), либо введите дату непосредственно в ячейку в формате - 'ДД.ММ.ГГГГ'"]
[null,"Шаблон заполняется раздельно по каждому виду тарифа"]
[null,"В зависимости от указанного вида деятельности будут доступны для заполнения поля 'Производство', 'Передача' и 'Сбыт'"]
[null,"Если выбрано 'да', на листах с разбивкой по потребителям доступны для заполнения графы для двухставочного ставочного тарифа по группам потребителей"]
[null,"Если выбрано 'да', значения тарифов для групп потребителей на листах с разбивкой по потребителям заполнятся автоматически значениями первой группы"]
[null,"Если выбрано значение «да» - в шаблоне будет сформирован лист «Форма 1.0.2» для уведомления органа регулирования о публикации информации в печатных изданиях"]
[null,"По умолчанию установлено значение «первичное раскрытие информации» Это означает, что информация раскрывается в соответствии с установленными сроком и периодичностью. В случае, если в уже отправленном шаблоне обнаружена ошибка или произошло изменение информации, исправленный шаблон необходимо отправить с типом отчета «изменения в раскрытой ранее информации». "]
[null,"Укажите является ли данное юридическое лицо подразделением(филиалом) другой организации"]
[null,"Ссылки на публикации"]
[null,"Вводите адрес сайта, не нарушая цвет ячейки /если копируете гиперссылку из браузера, то выполните двойной щелчок по ячейке и только после этого можете вставить скопированный элемент/"]
[null,"Обосновывающие материалы необходимо загружать с помощью \"ЕИАС Мониторинг\". Ссылка на инструкцию по загрузке обосновывающих материалов расположена на листе 'Инструкция' в п.'Методология заполнения'.\n\nВвводите ссылку, не нарушая цвет ячейки /если копируете гиперссылку из браузера, то выполните двойной щелчок по ячейке и только после этого можете вставить скопированный элемент/."]
[null,"Если для какого-либо пункта графы 'Наименование источника (сайта или печатного издания)' информация не раскрывалась, то в соответствующем поле укажите - 'не раскрывалась'"]
[null,"Список МО"]
[null,"В случае, если тариф не дифференцируется по системам теплоснабжения, перечислите все муниципальные районы, в которых организация осуществляет услуги теплоснабжения и сфере оказания услуг по передаче тепловой энергии"]
[null,"В случае, если тариф не дифференцируется по системам теплоснабжения, перечислите все муниципальные образования, в которых организация осуществляет услуги теплоснабжения и сфере оказания услуг по передаче тепловой энергии"]
[null,"Признак дифференциации тарифа"]
[null,"В случае, если тариф не дифференцируется по системам теплоснабжения, укажите \"1\".\nВведите значение от 1 до 100, чтобы указать очередной условный порядковый номер системы теплоснабжения"]
[null,"Стандарты"]
[null,"В качестве примечания Вы можете указать единицу измерения"]
[]
[null,"Для корректного формирования Таблицы 25 Формы 1.10 необходимо задать разбивку по диаметрам и способу прокладки тепловых сетей"]
[]
[null,"Перечень тарифов"]
[null,"Указывается наименование тарифа в случае утверждения нескольких тарифов.\nВ случае наличия нескольких тарифов информация по ним указывается в отдельных строках."]
[null,"Укажите «Да» в поле «Да/Нет», если дифференциация используется.\nВ поле «Описание» указывается наименование территории действия тарифа при наличии дифференциации тарифа по территориальному признаку.\nВ случае дифференциации тарифов по территориальному признаку информация по ним указывается в отдельных строках."]
[null,"Признаки дифференциации указываются в соответствии с п.6 ст.32 ФЗ РФ от 07.12.2011 №416-ФЗ"]
[null,"Укажите «Да» в поле «Да/Нет», если дифференциация используется. В поле «Описание» укажите название ЦС ВО или любое другое описание"]
[]
[null,"Территории"]
[1,"Наименование территории действия тарифа для целей идентификации"]
[2,"Муниципальные районы и муниципальные образования, на территории которых действует тариф"]
[null,"Инструкция"]
[null,"Нет доступных обновлений, версия отчёта актуальна"]

{"sheet":"modList05","index":40,"n_rows":0,"n_cols":0,"rows_kept":0,"cut":false,"hidden":true,"merged":[]}

{"sheet":"modList06","index":41,"n_rows":0,"n_cols":0,"rows_kept":0,"cut":false,"hidden":true,"merged":[]}

{"sheet":"modList07","index":42,"n_rows":0,"n_cols":0,"rows_kept":0,"cut":false,"hidden":true,"merged":[]}

{"sheet":"modList11","index":43,"n_rows":0,"n_cols":0,"rows_kept":0,"cut":false,"hidden":true,"merged":[]}

{"sheet":"modList12","index":44,"n_rows":0,"n_cols":0,"rows_kept":0,"cut":false,"hidden":true,"merged":[]}

{"sheet":"modfrmDateChoose","index":45,"n_rows":0,"n_cols":0,"rows_kept":0,"cut":false,"hidden":true,"merged":[]}

{"sheet":"modComm","index":46,"n_rows":0,"n_cols":0,"rows_kept":0,"cut":false,"hidden":true,"merged":[]}

{"sheet":"modThisWorkbook","index":47,"n_rows":0,"n_cols":0,"rows_kept":0,"cut":false,"hidden":true,"merged":[]}

{"sheet":"modfrmReestrMR","index":48,"n_rows":0,"n_cols":0,"rows_kept":0,"cut":false,"hidden":true,"merged":[]}

{"sheet":"modfrmCheckUpdates","index":49,"n_rows":0,"n_cols":0,"rows_kept":0,"cut":false,"hidden":true,"merged":[]}